Ref No,Fund Type,Dept,Cost Centre Description    ,Description    ,Creditor Name    ,GL Code Net Amount,Payment date        
2,Revenue,CAHD,18-25 Year Olds,Permanent Residential,1 St Georges House,13021, 23-Oct-2018
3,Revenue,CAHD,CSC - UASC Housing Support,Grants to Voluntary Bodies,1625 Independent People,12579, 16-Oct-2018
4,Revenue,CAHD,CSC - UASC Housing Support,Grants to Voluntary Bodies,1625 Independent People,12579, 04-Oct-2018
5,Revenue,CAHD,CSC - LAC Housing Support Grants,Grants to Voluntary Bodies,1625 Independent People,3265, 02-Oct-2018
6,Revenue,CAHD,Supporting People Programme,Grants to Voluntary Bodies,1625 Independent People,18078, 01-Oct-2018
7,Revenue,CAHD,Supporting People Programme,Grants to Voluntary Bodies,1625 Independent People,9811.67, 04-Oct-2018
8,Revenue,CAHD,CSC - Care Leavers Independent Living,Independent Living,16Pluscare Support Solutions,6689.56, 15-Oct-2018
9,Revenue,CAHD,CSC - Care Leavers Independent Living,Adults - Family Support,16Pluscare Support Solutions,4918.22, 17-Oct-2018
10,Revenue,CAHD,CSC - Care Leavers Independent Living,Independent Living,16Pluscare Support Solutions,3766.24, 17-Oct-2018
11,Revenue,CAHD,CSC - Asylum Seekers - Unaccompanied,Independent Living,16Pluscare Support Solutions,4060.93, 17-Oct-2018
12,Revenue,CAHD,CSC - Asylum Seekers - Unaccompanied,Independent Living,16Pluscare Support Solutions,10973.62, 12-Oct-2018
13,Revenue,CAHD,CSC - Care Leavers Independent Living,Independent Living,16Pluscare Support Solutions,7061.7, 12-Oct-2018
14,Revenue,CAHD,CSC - Care Leavers Independent Living,Adults - Family Support,16Pluscare Support Solutions,5896.42, 12-Oct-2018
15,Revenue,CAHD,CSC - Care Leavers Independent Living,Independent Living,16Pluscare Support Solutions,5990.36, 12-Oct-2018
16,Revenue,CAHD,Bed Purchasing - North,Permanent Residential,1St Floor Lingfield House,2677.24, 23-Oct-2018
17,Revenue,CAHD,Homecare - Central,Other Small Contracts,3 Trees Community Support Ltd,2244.48, 18-Oct-2018
18,Revenue,CAHD,Home Care - Elderly - South,Day Care / Social Activities,3 Trees Community Support Ltd,95.2, 18-Oct-2018
19,Revenue,CAHD,Home Care - Elderly - North,Day Care / Social Activities,3 Trees Community Support Ltd,1037.68, 18-Oct-2018
20,Revenue,CAHD,Home Care - Elderly - North,Other Small Contracts,3 Trees Community Support Ltd,856.8, 18-Oct-2018
21,Revenue,CAHD,Home Care - Elderly - North,Supported Living,3 Trees Community Support Ltd,5342.91, 18-Oct-2018
22,Revenue,CAHD,Homecare - Central,Other Small Contracts,3 Trees Community Support Ltd,2217.76, 18-Oct-2018
23,Revenue,CAHD,Home Care - Elderly - South,Day Care / Social Activities,3 Trees Community Support Ltd,95.2, 18-Oct-2018
24,Revenue,CAHD,Home Care - Elderly - North,Day Care / Social Activities,3 Trees Community Support Ltd,1037.68, 18-Oct-2018
25,Revenue,CAHD,Home Care - Elderly - North,Other Small Contracts,3 Trees Community Support Ltd,856.8, 18-Oct-2018
26,Revenue,CAHD,Home Care - Elderly - North,Supported Living,3 Trees Community Support Ltd,5355.13, 18-Oct-2018
27,Revenue,CAHD,Homecare - Central,Other Small Contracts,3 Trees Community Support Ltd,2244.48, 18-Oct-2018
28,Revenue,CAHD,Home Care - Elderly - South,Day Care / Social Activities,3 Trees Community Support Ltd,95.2, 18-Oct-2018
29,Revenue,CAHD,Home Care - Elderly - North,Day Care / Social Activities,3 Trees Community Support Ltd,1037.68, 18-Oct-2018
30,Revenue,CAHD,Home Care - Elderly - North,Other Small Contracts,3 Trees Community Support Ltd,861.56, 18-Oct-2018
31,Revenue,CAHD,Home Care - Elderly - North,Supported Living,3 Trees Community Support Ltd,5334.4, 18-Oct-2018
32,Revenue,CAHD,Homecare - Central,Other Small Contracts,3 Trees Community Support Ltd,2247.82, 26-Oct-2018
33,Revenue,CAHD,Home Care - Elderly - South,Day Care / Social Activities,3 Trees Community Support Ltd,95.2, 26-Oct-2018
34,Revenue,CAHD,Home Care - Elderly - North,Day Care / Social Activities,3 Trees Community Support Ltd,1047.2, 26-Oct-2018
35,Revenue,CAHD,Home Care - Elderly - North,Other Small Contracts,3 Trees Community Support Ltd,852.04, 26-Oct-2018
36,Revenue,CAHD,Home Care - Elderly - North,Supported Living,3 Trees Community Support Ltd,5599.6, 26-Oct-2018
37,Revenue,CAHD,Homecare - Central,Other Small Contracts,3 Trees Community Support Ltd,2244.48, 31-Oct-2018
38,Revenue,CAHD,Home Care - Elderly - South,Day Care / Social Activities,3 Trees Community Support Ltd,95.2, 31-Oct-2018
39,Revenue,CAHD,Home Care - Elderly - North,Day Care / Social Activities,3 Trees Community Support Ltd,1032.92, 31-Oct-2018
40,Revenue,CAHD,Home Care - Elderly - North,Other Small Contracts,3 Trees Community Support Ltd,899.64, 31-Oct-2018
41,Revenue,CAHD,Home Care - Elderly - North,Supported Living,3 Trees Community Support Ltd,5427.23, 31-Oct-2018
42,Revenue,CAHD,18-25 Year Olds,Permanent Residential,5Th Floor Harlech Court,14897.4, 23-Oct-2018
43,Revenue,CAHD,18-25 Year Olds,Permanent Residential,5Th Floor Harlech Court,17792.32, 23-Oct-2018
44,Revenue,CAHD,Bed Purchasing - North,Permanent Residential,5Th Floor Harlech Court,13492.04, 23-Oct-2018
45,Revenue,CAHD,18-25 Year Olds,Permanent Residential,5Th Floor Harlech Court,13505.44, 23-Oct-2018
46,Revenue,CAHD,Bed Purchasing - North,Permanent Residential,5Th Floor Harlech Court,14372.24, 23-Oct-2018
47,Revenue,CAHD,Jointly Funded H&SC Packages,Permanent Residential,5Th Floor Harlech Court,3556.48, 23-Oct-2018
48,Revenue,CAHD,18-25 Year Olds,Permanent Residential,5Th Floor Harlech Court,1823.72, 23-Oct-2018
49,Revenue,CAHD,Bed Purchasing - South,Permanent Residential,5Th Floor Harlech Court,16276.48, 23-Oct-2018
50,Revenue,CAHD,Bed Purchasing - South,Permanent Residential,5Th Floor Harlech Court,83669.25, 23-Oct-2018
51,Revenue,CAHD,Bed Purchasing - South,Respite Planned - Residential,5Th Floor Harlech Court,68095.29, 23-Oct-2018
52,Revenue,CAHD,Bed Purchasing - South,Permanent Residential,5Th Floor Harlech Court,22745.04, 23-Oct-2018
53,Revenue,CAHD,Bed Purchasing - South,Permanent Residential,5Th Floor Harlech Court,10175.32, 23-Oct-2018
54,Revenue,CAHD,Bed purchasing - S28A Under 65 - South,Permanent Residential,5Th Floor Harlech Court,10649.12, 23-Oct-2018
55,Revenue,CAHD,Bed Purchasing - South,Permanent Residential,5Th Floor Harlech Court,11168.36, 23-Oct-2018
56,Revenue,CAHD,Bed Purchasing - Elderly S117- North,Permanent Residential,5Th Floor Harlech Court,9034.16, 23-Oct-2018
57,Revenue,CAHD,Jointly Funded H&SC Packages,Permanent Residential,5Th Floor Harlech Court,2692, 23-Oct-2018
58,Revenue,CAHD,Bed Purchasing - South,Permanent Residential,5Th Floor Harlech Court,17423.02, 23-Oct-2018
59,Revenue,CAHD,Jointly Funded H&SC Packages,Permanent Residential,5Th Floor Harlech Court,5191.71, 23-Oct-2018
60,Revenue,CAHD,CSC - Vinney Green Secure Unit,R & M by Departments,Abbey Fire Protection Limited,1343.89, 19-Oct-2018
61,Revenue,CAHD,Home Care - Elderly - South,Day Care / Social Activities,About Me Care and Support Limited,1386.32, 15-Oct-2018
62,Revenue,CAHD,Home Care - Elderly - North,Day Care / Social Activities,About Me Care and Support Limited,626.08, 02-Oct-2018
63,Revenue,CAHD,Section 117 Placements MH Younger,Permanent Residential,Acorn Care Providers,6453.32, 23-Oct-2018
64,Revenue,CAHD,MH Purchasing - Younger,Permanent Residential,Acorn Care Providers,24857.14, 23-Oct-2018
65,Revenue,CAHD,MH Purchasing - Younger,Permanent Residential,Acorn Care Providers,6000, 23-Oct-2018
66,Revenue,CAHD,Training - Adult Services,Training Expenses,Acorn Health & Safety Limited,457.75, 10-Oct-2018
67,Revenue,CAHD,Training - Adult Services,Training Expenses,Acorn Health & Safety Limited,465, 18-Oct-2018
68,Revenue,CAHD,Training Budget - Children`s Social Serv,Training Expenses,Acorn Health & Safety Limited,479, 18-Oct-2018
69,Revenue,CAHD,Training - Adult Services,Training Expenses,Acorn Health & Safety Limited,465, 17-Oct-2018
70,Revenue,CAHD,Training - Adult Services,Training Expenses,Acorn Health & Safety Limited,467.25, 26-Oct-2018
71,Revenue,CAHD,Older People's Commissioned Se,Grants to Voluntary Bodies,Action for Blind People,24975, 01-Oct-2018
72,Revenue,CAHD,Minor Adaptations Service,Grants to Voluntary Bodies,Action for Blind People,2500, 01-Oct-2018
73,Revenue,CAHD,CSC - Agency Fostering,Foster Parent Allowances,Action for Children,3244.2, 08-Oct-2018
74,Revenue,CAHD,CSC - Agency Fostering,Foster Parent Allowances,Action for Children,6750, 15-Oct-2018
75,Revenue,CAHD,Home Care - Elderly - South,Other Small Contracts,Advantedge Commercial Finance Limited,520.8, 24-Oct-2018
76,Revenue,CAHD,Mental Health and Emotional Wellbeing,Other Small Contracts,Age UK South Gloucestershire,13725, 01-Oct-2018
77,Revenue,CAHD,Home Care - Elderly - South,Other Small Contracts,Agincare UK Limited,1352.8, 18-Oct-2018
78,Revenue,CAHD,Home Care - Elderly - North,Other Small Contracts,Agincare UK Limited,1326.1, 18-Oct-2018
79,Revenue,CAHD,Home Care - Elderly - South,Other Small Contracts,Agincare UK Limited,1041.3, 18-Oct-2018
80,Revenue,CAHD,Home Care - Elderly - North,Other Small Contracts,Agincare UK Limited,1103.6, 18-Oct-2018
81,Revenue,CAHD,Extra Care Housing,Private & Voluntary Home Care,Agincare UK Limited,21920.39, 01-Oct-2018
82,Revenue,CAHD,Extra Care Housing,Private & Voluntary Home Care,Agincare UK Limited,10674.56, 01-Oct-2018
83,Revenue,CAHD,Extra Care Housing,Private & Voluntary Home Care,Agincare UK Limited,27590, 04-Oct-2018
84,Revenue,CAHD,Prison Assessments & Costs,Other Supplies & Services,Agincare UK Limited,3090.63, 26-Oct-2018
85,Revenue,CAHD,CSC - Vinney Green Secure Unit,Training Expenses,Aim Project,540, 19-Oct-2018
86,Revenue,CAHD,Home Care - Elderly - South,Other Small Contracts,AliMo Care Ltd,690.07, 24-Oct-2018
87,Revenue,CAHD,Home Care - Elderly - South,Other Small Contracts,AliMo Care Ltd,868.3, 24-Oct-2018
88,Revenue,CAHD,Home Care - Elderly - South,Other Small Contracts,AliMo Care Ltd,795.18, 24-Oct-2018
89,Revenue,CAHD,Home Care - Elderly - South,Other Small Contracts,AliMo Care Ltd,914, 26-Oct-2018
90,Revenue,CAHD,Bed Purchasing - North,Permanent Nursing,Allambie Court,2266.04, 23-Oct-2018
91,Revenue,CAHD,Bed Purchasing - North,Permanent Nursing,Allambie Court,2266.04, 23-Oct-2018
92,Revenue,CAHD,Mental Health and Emotional Wellbeing,Other Small Contracts,Alzheimers Society,11142.75, 01-Oct-2018
93,Revenue,CAHD,Bed Purchasing - North,Permanent Nursing,Amerind Grove Nursing Home,2642.88, 23-Oct-2018
94,Revenue,CAHD,CSC - Agency Fostering,Foster Parent Allowances,Amicus Foster Care Ltd,5234.24, 08-Oct-2018
95,Revenue,CAHD,CSC - Parent & Child Assessments,Foster Parent Allowances,Amicus Foster Care Ltd,8363.32, 12-Oct-2018
96,Revenue,CAHD,CSC - Agency Fostering,Foster Parent Allowances,Amicus Foster Care Ltd,4721.61, 08-Oct-2018
97,Revenue,CAHD,Supporting People Programme,Grants to Voluntary Bodies,Anchor Housing,827, 01-Oct-2018
98,Revenue,CAHD,CSC - Section 17 0-25,Preventative Assistance,Angel Care Support Limited,1008, 10-Oct-2018
99,Revenue,CAHD,Childrens - Safeguarding Board,Training Expenses,Anthony Domaille,1350, 10-Oct-2018
100,Revenue,CAHD,Childrens - Safeguarding Board,Training Expenses,Anthony Domaille,1800, 31-Oct-2018
101,Revenue,CAHD,"Education, Learning and Skills",Premises Hire,Aquaterra Leisure,713.5, 09-Oct-2018
102,Revenue,CAHD,"Education, Learning and Skills",Premises Hire,Aquaterra Leisure,1550, 23-Oct-2018
103,Revenue,CAHD,Jointly Funded H&SC Packages,Permanent Residential,Ash View House,1085.36, 23-Oct-2018
104,Revenue,CAHD,Bed Purchasing - South,Permanent Residential,Ash View House,5293.96, 23-Oct-2018
105,Revenue,CAHD,S117 Placements PCT,Permanent Residential,Ash View House,7379.2, 23-Oct-2018
106,Revenue,CAHD,18-25 Year Olds,Permanent Residential,Ash View House,6933.12, 23-Oct-2018
107,Revenue,CAHD,Section 117 Placements MH Younger,Permanent Residential,Ash View House,4808.72, 23-Oct-2018
108,Revenue,CAHD,Jointly Funded H&SC Packages,Permanent Residential,Ash View House,2060.92, 23-Oct-2018
109,Revenue,CAHD,Bed purchasing - Elderly S117 - South,Permanent Residential,Ash View House,6535.92, 23-Oct-2018
110,Revenue,CAHD,18-25 Year Olds,Permanent Residential,Ash View House,6460.48, 23-Oct-2018
111,Revenue,CAHD,Bed Purchasing - North,Permanent Residential,Aspects 2 Limited,7062.4, 23-Oct-2018
112,Revenue,CAHD,Supporting People Programme,Grants to Voluntary Bodies,Aspects and Milestones Trust,3361, 01-Oct-2018
113,Revenue,CAHD,Supporting People Programme,Grants to Voluntary Bodies,Aspects and Milestones Trust,1685, 01-Oct-2018
114,Revenue,CAHD,Home Care - Elderly - South,Adults - Family Support,Ategi Limited,713.4, 16-Oct-2018
115,Revenue,CAHD,Home Care - Elderly - South,Adults - Family Support,Ategi Limited,925.82, 16-Oct-2018
116,Revenue,CAHD,Home Care - Elderly - South,Adults - Family Support,Ategi Limited,925.82, 19-Oct-2018
117,Revenue,CAHD,Home Care - Elderly - South,Adults - Family Support,Ategi Limited,857.68, 19-Oct-2018
118,Revenue,CAHD,Home Care - Elderly - South,Adults - Family Support,Ategi Limited,993.96, 02-Oct-2018
119,Revenue,CAHD,Home Care - Elderly - South,Adults - Family Support,Ategi Limited,871.96, 02-Oct-2018
120,Revenue,CAHD,Home Care - Elderly - South,Adults - Family Support,Ategi Limited,509.31, 02-Oct-2018
121,Revenue,CAHD,Home Care - Elderly - South,Adults - Family Support,Ategi Limited,518.32, 19-Oct-2018
122,Revenue,CAHD,Bed Purchasing - South,Adults - Family Support,Ategi Limited,13031.12, 17-Oct-2018
123,Revenue,CAHD,Bed Purchasing - South,Permanent Residential,Autism Specialised Care Homes,6354.36, 23-Oct-2018
124,Revenue,CAHD,Bed Purchasing - South,Permanent Residential,Avery Homes Downend Limited,3800, 23-Oct-2018
125,Revenue,CAHD,Bed Purchasing - South,Permanent Residential,Avery Homes Downend Limited,3800, 23-Oct-2018
126,Revenue,CAHD,Bed Purchasing - North,Permanent Residential,Avery Homes Downend Limited,2850, 23-Oct-2018
127,Revenue,CAHD,CSC - Asylum Seekers - Unaccompanied,Personal Needs of Clients,Avon & Bristol Law Centre,500, 26-Oct-2018
128,Revenue,CAHD,Younger Adult Mental Health,Health Services (Third Party Payments),Avon & Wiltshire Mental Health,1693.33, 10-Oct-2018
129,Revenue,CAHD,Early Years High Needs Support,Other Private Contractors,Baker Street Nursery & Pre-School,910.13, 26-Oct-2018
130,Revenue,CAHD,"Education, Learning and Skills",Agency Staff (Admin/Support Staff) Pay,Baltimore Consulting Group,4657.5, 05-Oct-2018
131,Revenue,CAHD,"Education, Learning and Skills",Agency Staff (Admin/Support Staff) Pay,Baltimore Consulting Group,2070, 05-Oct-2018
132,Revenue,CAHD,"Education, Learning and Skills",Agency Staff (Admin/Support Staff) Pay,Baltimore Consulting Group,1035, 05-Oct-2018
133,Revenue,CAHD,"Education, Learning and Skills",Agency Staff (Admin/Support Staff) Pay,Baltimore Consulting Group,2070, 05-Oct-2018
134,Revenue,CAHD,"Education, Learning and Skills",Agency Staff (Admin/Support Staff) Pay,Baltimore Consulting Group,1035, 05-Oct-2018
135,Revenue,CAHD,A & CL - Pre-Employability 18/19,Premises Hire,Banjo Island Community & Sports Association,570, 31-Oct-2018
136,Revenue,CAHD,A & CL - Employability 18/19,Premises Hire,Banjo Island Community & Sports Association,380, 31-Oct-2018
137,Revenue,CAHD,A & CL - Community Development 18/19,Premises Hire,Banjo Island Community & Sports Association,190, 31-Oct-2018
138,Revenue,CAHD,18-25 Year Olds,Day Care / Social Activities,Barnardo Services Limited,2748, 24-Oct-2018
139,Revenue,CAHD,Childrens - Safeguarding Board,Training Expenses,Barnardo Services Limited,425, 11-Oct-2018
140,Revenue,CAHD,CSC - Family Group Conferencing,Grants to Voluntary Bodies,Barnardo Services Limited,5422.75, 23-Oct-2018
141,Revenue,CAHD,Purchase of RAC places,Other L.A.'s - General,Bath & North East Somerset Council,966.08, 31-Oct-2018
142,Revenue,CAHD,Pensions - Non DSG,Annual Pension,Bath & North East Somerset Council,110728.27, 26-Oct-2018
143,Revenue,CAHD,Pensions - Non DSG,Annual Pension,Bath & North East Somerset Council,6181.9, 08-Oct-2018
144,Revenue,CAHD,Pathway 3 - (Complex Beds),Permanent Nursing,Beaufort Care Ltd,5441, 11-Oct-2018
145,Revenue,CAHD,South Glos Users in South Glos Homes,Permanent Nursing,Beaufort Grange Care Home,632.64, 23-Oct-2018
146,Revenue,CAHD,South Glos Users in South Glos Homes,Permanent Nursing,Beaufort Grange Care Home,632.64, 23-Oct-2018
147,Revenue,CAHD,South Glos Users in South Glos Homes,Permanent Nursing,Beaufort Grange Care Home,632.64, 23-Oct-2018
148,Revenue,CAHD,South Glos Users in South Glos Homes,Permanent Nursing,Beaufort Grange Care Home,632.64, 23-Oct-2018
149,Revenue,CAHD,South Glos Users in South Glos Homes,Permanent Nursing,Beaufort Grange Care Home,632.64, 23-Oct-2018
150,Revenue,CAHD,South Glos Users in South Glos Homes,Permanent Nursing,Beaufort Grange Care Home,632.64, 23-Oct-2018
151,Revenue,CAHD,South Glos Users in South Glos Homes,Permanent Nursing,Beaufort Grange Care Home,632.64, 23-Oct-2018
152,Revenue,CAHD,South Glos Users in South Glos Homes,Permanent Nursing,Beaufort Grange Care Home,632.64, 23-Oct-2018
153,Revenue,CAHD,Bed Purchasing - Elderly S117- North,Permanent Nursing,Beaufort Grange Care Home,4762.72, 23-Oct-2018
154,Revenue,CAHD,South Glos Users in South Glos Homes,Permanent Nursing,Beaufort Grange Care Home,632.64, 23-Oct-2018
155,Revenue,CAHD,South Glos Users in South Glos Homes,Permanent Nursing,Beaufort Grange Care Home,632.64, 23-Oct-2018
156,Revenue,CAHD,South Glos Users in South Glos Homes,Permanent Nursing,Beaufort Grange Care Home,632.64, 23-Oct-2018
157,Revenue,CAHD,South Glos Users in South Glos Homes,Permanent Nursing,Beaufort Grange Care Home,632.64, 23-Oct-2018
158,Revenue,CAHD,South Glos Users in South Glos Homes,Permanent Nursing,Beaufort Grange Care Home,632.64, 23-Oct-2018
159,Revenue,CAHD,South Glos Users in South Glos Homes,Permanent Nursing,Beaufort Grange Care Home,632.64, 23-Oct-2018
160,Revenue,CAHD,South Glos Users in South Glos Homes,Permanent Nursing,Beaufort Grange Care Home,632.64, 23-Oct-2018
161,Revenue,CAHD,South Glos Users in South Glos Homes,Permanent Nursing,Beaufort Grange Care Home,632.64, 23-Oct-2018
162,Revenue,CAHD,South Glos Users in South Glos Homes,Permanent Nursing,Beaufort Grange Care Home,2959.85, 23-Oct-2018
163,Revenue,CAHD,South Glos Users in South Glos Homes,Permanent Nursing,Beaufort Grange Care Home,632.64, 23-Oct-2018
164,Revenue,CAHD,South Glos Users in South Glos Homes,Permanent Nursing,Beaufort Grange Care Home,4292.91, 23-Oct-2018
165,Revenue,CAHD,South Glos Users in South Glos Homes,Permanent Nursing,Beaufort Grange Care Home,632.64, 23-Oct-2018
166,Revenue,CAHD,South Glos Users in South Glos Homes,Permanent Nursing,Beaufort Grange Care Home,3072.82, 23-Oct-2018
167,Revenue,CAHD,South Glos Users in South Glos Homes,Permanent Nursing,Beaufort Grange Care Home,632.64, 23-Oct-2018
168,Revenue,CAHD,South Glos Users in South Glos Homes,Permanent Nursing,Beaufort Grange Care Home,632.64, 23-Oct-2018
169,Revenue,CAHD,South Glos Users in South Glos Homes,Permanent Nursing,Beaufort Grange Care Home,632.64, 23-Oct-2018
170,Revenue,CAHD,South Glos Users in South Glos Homes,Permanent Nursing,Beaufort Grange Care Home,3524.71, 23-Oct-2018
171,Revenue,CAHD,South Glos Users in South Glos Homes,Permanent Nursing,Beaufort Grange Care Home,632.64, 23-Oct-2018
172,Revenue,CAHD,South Glos Users in South Glos Homes,Permanent Nursing,Beaufort Grange Care Home,632.64, 23-Oct-2018
173,Revenue,CAHD,Bed Purchasing - North,Permanent Residential,Beaufort House,2489.8, 23-Oct-2018
174,Revenue,CAHD,Bed Purchasing - Southmead Hospital,Permanent Nursing,Beaufort House,2800, 23-Oct-2018
175,Revenue,CAHD,Bed Purchasing - Southmead Hospital,Permanent Residential,Beaufort House,2710.56, 23-Oct-2018
176,Revenue,CAHD,Bed Purchasing - North,Permanent Residential,Beaufort House,2511.12, 23-Oct-2018
177,Revenue,CAHD,Bed Purchasing - South,Permanent Residential,Beaufort House,2477.4, 23-Oct-2018
178,Revenue,CAHD,Bed Purchasing - Central,Permanent Residential,Beaufort House,2800, 23-Oct-2018
179,Revenue,CAHD,Bed Purchasing - Southmead Hospital,Respite Planned - Residential,Beaufort House,2710.56, 23-Oct-2018
180,Revenue,CAHD,Bed Purchasing - Southmead Hospital,Permanent Residential,Beaufort House,2710.56, 23-Oct-2018
181,Revenue,CAHD,Bed Purchasing - North,Permanent Residential,Beaufort House,2636.64, 23-Oct-2018
182,Revenue,CAHD,Bed Purchasing - South,Permanent Residential,Beaufort House,2649.4, 23-Oct-2018
183,Revenue,CAHD,South Glos Users in South Glos Homes,Permanent Nursing,Beech House,632.64, 23-Oct-2018
184,Revenue,CAHD,Bed Purchasing - South,Permanent Residential,Beech House,2890.28, 23-Oct-2018
185,Revenue,CAHD,South Glos Users in South Glos Homes,Permanent Nursing,Beech House,632.64, 23-Oct-2018
186,Revenue,CAHD,Bed Purchasing - Southmead Hospital,Permanent Residential,Beech House,4055.64, 23-Oct-2018
187,Revenue,CAHD,South Glos Users in South Glos Homes,Permanent Nursing,Beech House,632.64, 23-Oct-2018
188,Revenue,CAHD,South Glos Users in South Glos Homes,Permanent Nursing,Beech House,632.64, 23-Oct-2018
189,Revenue,CAHD,South Glos Users in South Glos Homes,Permanent Nursing,Beech House,632.64, 23-Oct-2018
190,Revenue,CAHD,Bed Purchasing - Central,Permanent Residential,Beech House,12127.83, 23-Oct-2018
191,Revenue,CAHD,Bed Purchasing - North,Permanent Nursing,Beech House,2761.24, 23-Oct-2018
192,Revenue,CAHD,South Glos Users in South Glos Homes,Permanent Nursing,Beech House,632.64, 23-Oct-2018
193,Revenue,CAHD,South Glos Users in South Glos Homes,Permanent Nursing,Beech House,632.64, 23-Oct-2018
194,Revenue,CAHD,Bed Purchasing - North,Permanent Nursing,Beech House,3088.64, 23-Oct-2018
195,Revenue,CAHD,South Glos Users in South Glos Homes,Permanent Nursing,Beech House,632.64, 23-Oct-2018
196,Revenue,CAHD,Bed Purchasing - North,Permanent Nursing,Beech House,3464.6, 23-Oct-2018
197,Revenue,CAHD,South Glos Users in South Glos Homes,Permanent Nursing,Beech House,632.64, 23-Oct-2018
198,Revenue,CAHD,Bed Purchasing - North,Permanent Residential,Beech House,2890.28, 23-Oct-2018
199,Revenue,CAHD,South Glos Users in South Glos Homes,Permanent Nursing,Beech House,632.64, 23-Oct-2018
200,Revenue,CAHD,South Glos Users in South Glos Homes,Permanent Nursing,Beech House,632.64, 23-Oct-2018
201,Revenue,CAHD,South Glos Users in South Glos Homes,Permanent Nursing,Beech House,632.64, 23-Oct-2018
202,Revenue,CAHD,South Glos Users in South Glos Homes,Permanent Nursing,Beech House,632.64, 23-Oct-2018
203,Revenue,CAHD,Bed Purchasing - North,Permanent Nursing,Beech House,14903.57, 23-Oct-2018
204,Revenue,CAHD,Bed Purchasing - North,Permanent Nursing,Beech House,2925, 23-Oct-2018
205,Revenue,CAHD,Bed Purchasing - North,Permanent Nursing,Beech House,975, 23-Oct-2018
206,Revenue,CAHD,South Glos Users in South Glos Homes,Permanent Nursing,Beech House,632.64, 23-Oct-2018
207,Revenue,CAHD,South Glos Users in South Glos Homes,Permanent Nursing,Beech House,632.64, 23-Oct-2018
208,Revenue,CAHD,Bed Purchasing - North,Permanent Residential,Beech House,3974.12, 23-Oct-2018
209,Revenue,CAHD,South Glos Users in South Glos Homes,Permanent Nursing,Beech House,700.42, 23-Oct-2018
210,Revenue,CAHD,Bed Purchasing - Southmead Hospital,Permanent Residential,Beech House,3749.92, 23-Oct-2018
211,Revenue,CAHD,South Glos Users in South Glos Homes,Permanent Nursing,Beech House,632.64, 23-Oct-2018
212,Revenue,CAHD,South Glos Users in South Glos Homes,Permanent Nursing,Beech House,632.64, 23-Oct-2018
213,Revenue,CAHD,South Glos Users in South Glos Homes,Permanent Nursing,Beech House,632.64, 23-Oct-2018
214,Revenue,CAHD,South Glos Users in South Glos Homes,Permanent Nursing,Beech House,632.64, 23-Oct-2018
215,Revenue,CAHD,Bed Purchasing - North,Permanent Nursing,Beech House,3362.72, 23-Oct-2018
216,Revenue,CAHD,South Glos Users in South Glos Homes,Permanent Nursing,Beech House,632.64, 23-Oct-2018
217,Revenue,CAHD,Bed Purchasing - North,Permanent Nursing,Beech House,3229.92, 23-Oct-2018
218,Revenue,CAHD,South Glos Users in South Glos Homes,Permanent Nursing,Beech House,632.64, 23-Oct-2018
219,Revenue,CAHD,South Glos Users in South Glos Homes,Permanent Nursing,Beech House,632.64, 23-Oct-2018
220,Revenue,CAHD,South Glos Users in South Glos Homes,Permanent Nursing,Beech House,3095.42, 23-Oct-2018
221,Revenue,CAHD,South Glos Users in South Glos Homes,Permanent Nursing,Beech House,632.64, 23-Oct-2018
222,Revenue,CAHD,Statemented Support Payments to OLAs,Other L.A.'s - General,Beechen Cliff School,718.49, 24-Oct-2018
223,Revenue,CAHD,Independent Special Placements - Pre 16,Other Private Contractors,Belgrave School,4666.67, 26-Oct-2018
224,Revenue,CAHD,Independent Special Placements - Pre 16,Other Private Contractors,Belgrave School,6500, 05-Oct-2018
225,Revenue,CAHD,Independent Special Placements - Pre 16,Other Private Contractors,Belgrave School,4700, 19-Oct-2018
226,Revenue,CAHD,"Education, Learning and Skills",Consultants Fees,Individual,1129, 12-Oct-2018
227,Revenue,CAHD,Bed purchasing - Elderly S117 - South,Permanent Residential,Bidna House,3606.08, 23-Oct-2018
228,Revenue,CAHD,CSC - Care Leavers Support Costs,"Provisions (Food, etc)",Big Yellow Self Storage Company Limited,1753.01, 09-Oct-2018
229,Revenue,CAHD,Bed Purchasing - North,Permanent Nursing,Bloomfield Care Centre,4367.36, 23-Oct-2018
230,Revenue,CAHD,South Glos Users in South Glos Homes,Permanent Nursing,Blossom Field,632.64, 23-Oct-2018
231,Revenue,CAHD,Bed Purchasing - Elderly S117- North,Permanent Nursing,Blossom Field,3607, 23-Oct-2018
232,Revenue,CAHD,South Glos Users in South Glos Homes,Permanent Nursing,Blossom Field,632.64, 23-Oct-2018
233,Revenue,CAHD,South Glos Users in South Glos Homes,Permanent Nursing,Blossom Field,632.64, 23-Oct-2018
234,Revenue,CAHD,South Glos Users in South Glos Homes,Permanent Nursing,Blossom Field,632.64, 23-Oct-2018
235,Revenue,CAHD,Bed Purchasing - North,Permanent Nursing,Blossom Field,3080, 23-Oct-2018
236,Revenue,CAHD,South Glos Users in South Glos Homes,Permanent Nursing,Blossom Field,632.64, 23-Oct-2018
237,Revenue,CAHD,South Glos Users in South Glos Homes,Permanent Nursing,Blossom Field,632.64, 23-Oct-2018
238,Revenue,CAHD,Bed Purchasing - North,Permanent Nursing,Blossom Field,9971.9, 23-Oct-2018
239,Revenue,CAHD,Bed Purchasing - North,Permanent Nursing,Blossom Field,4167.36, 23-Oct-2018
240,Revenue,CAHD,South Glos Users in South Glos Homes,Permanent Nursing,Blossom Field,1491.22, 23-Oct-2018
241,Revenue,CAHD,South Glos Users in South Glos Homes,Permanent Nursing,Blossom Field,632.64, 23-Oct-2018
242,Revenue,CAHD,South Glos Users in South Glos Homes,Permanent Nursing,Blossom Field,632.64, 23-Oct-2018
243,Revenue,CAHD,South Glos Users in South Glos Homes,Permanent Nursing,Blossom Field,632.64, 23-Oct-2018
244,Revenue,CAHD,South Glos Users in South Glos Homes,Permanent Nursing,Blossom Field,632.64, 23-Oct-2018
245,Revenue,CAHD,South Glos Users in South Glos Homes,Permanent Nursing,Blossom Field,632.64, 23-Oct-2018
246,Revenue,CAHD,Bed Purchasing - South,Permanent Nursing,Blossom Field,4309.64, 23-Oct-2018
247,Revenue,CAHD,South Glos Users in South Glos Homes,Permanent Nursing,Blossom Field,632.64, 23-Oct-2018
248,Revenue,CAHD,Bed Purchasing - North,Permanent Nursing,Blossom Field,2708.64, 23-Oct-2018
249,Revenue,CAHD,South Glos Users in South Glos Homes,Permanent Nursing,Blossom Field,632.64, 23-Oct-2018
250,Revenue,CAHD,Bed Purchasing - North,Permanent Nursing,Blossom Field,738.72, 23-Oct-2018
251,Revenue,CAHD,South Glos Users in South Glos Homes,Permanent Nursing,Blossom Field,3118.01, 23-Oct-2018
252,Revenue,CAHD,South Glos Users in South Glos Homes,Permanent Nursing,Blossom Field,632.64, 23-Oct-2018
253,Revenue,CAHD,South Glos Users in South Glos Homes,Permanent Nursing,Blossom Field,632.64, 23-Oct-2018
254,Revenue,CAHD,Bed Purchasing - North,Permanent Nursing,Blossom Field,4687.4, 23-Oct-2018
255,Revenue,CAHD,South Glos Users in South Glos Homes,Permanent Nursing,Blossom Field,632.64, 23-Oct-2018
256,Revenue,CAHD,South Glos Users in South Glos Homes,Permanent Nursing,Blossom Field,632.64, 23-Oct-2018
257,Revenue,CAHD,South Glos Users in South Glos Homes,Permanent Nursing,Blossom Field,632.64, 23-Oct-2018
258,Revenue,CAHD,South Glos Users in South Glos Homes,Permanent Nursing,Blossom Field,632.64, 23-Oct-2018
259,Revenue,CAHD,South Glos Users in South Glos Homes,Permanent Nursing,Blossom Field,3728.06, 23-Oct-2018
260,Revenue,CAHD,South Glos Users in South Glos Homes,Permanent Nursing,Blossom Field,2756.5, 23-Oct-2018
261,Revenue,CAHD,South Glos Users in South Glos Homes,Permanent Nursing,Blossom Field,632.64, 23-Oct-2018
262,Revenue,CAHD,Bed Purchasing - North,Permanent Nursing,Blossom Field,4259.2, 23-Oct-2018
263,Revenue,CAHD,South Glos Users in South Glos Homes,Permanent Nursing,Blossom Field,632.64, 23-Oct-2018
264,Revenue,CAHD,Bed Purchasing - North,Permanent Nursing,Blossom Field,3896.72, 23-Oct-2018
265,Revenue,CAHD,South Glos Users in South Glos Homes,Permanent Nursing,Blossom Field,632.64, 23-Oct-2018
266,Revenue,CAHD,South Glos Users in South Glos Homes,Permanent Nursing,Blossom Field,632.64, 23-Oct-2018
267,Revenue,CAHD,Bed Purchasing - North,Permanent Nursing,Blossom Field,3549.76, 23-Oct-2018
268,Revenue,CAHD,South Glos Users in South Glos Homes,Permanent Nursing,Blossom Field,632.64, 23-Oct-2018
269,Revenue,CAHD,South Glos Users in South Glos Homes,Permanent Nursing,Blossom Field,632.64, 23-Oct-2018
270,Revenue,CAHD,South Glos Users in South Glos Homes,Permanent Nursing,Blossom Field,2507.97, 23-Oct-2018
271,Revenue,CAHD,Bed Purchasing - North,Permanent Residential,Bluebells,3612.88, 23-Oct-2018
272,Revenue,CAHD,Homecare - Central,Other Small Contracts,Bluebird Care (South Gloucestershire),37.75, 26-Oct-2018
273,Revenue,CAHD,Home Care - Elderly - South,Other Small Contracts,Bluebird Care (South Gloucestershire),231.44, 26-Oct-2018
274,Revenue,CAHD,Home Care - Elderly - North,Other Small Contracts,Bluebird Care (South Gloucestershire),1863.31, 26-Oct-2018
275,Revenue,CAHD,Home Care - Elderly - South,Other Small Contracts,Bluebird Care (South Gloucestershire),215.66, 26-Oct-2018
276,Revenue,CAHD,Home Care - Elderly - North,Other Small Contracts,Bluebird Care (South Gloucestershire),1875.59, 26-Oct-2018
277,Revenue,CAHD,Training - Adult Services,Training Expenses,Individual,1550, 15-Oct-2018
278,Revenue,CAHD,Drug and Alcohol Programme,Other Small Contracts,Boots UK Ltd,825, 15-Oct-2018
279,Revenue,CAHD,Drug and Alcohol Programme,Other Small Contracts,Boots UK Ltd,900, 15-Oct-2018
280,Revenue,CAHD,Drug and Alcohol Programme,Other Small Contracts,Boots UK Ltd,600, 15-Oct-2018
281,Revenue,CAHD,Bed purchasing - S28A Under 65 - South,Permanent Residential,Bradbury House,4946.4, 23-Oct-2018
282,Revenue,CAHD,18-25 Year Olds,Permanent Residential,Bradbury House,9684.64, 23-Oct-2018
283,Revenue,CAHD,Bed Purchasing - North,Permanent Residential,Bradbury House,2751.32, 23-Oct-2018
284,Revenue,CAHD,Schools Specific Grant Income,Other Public Bodies,Branas ISAF Ltd,630, 29-Oct-2018
285,Revenue,CAHD,CSC - Residential Placements,Permanent Residential,Branas ISAF Ltd,20357.14, 10-Oct-2018
286,Revenue,CAHD,CSC - Residential Placements,Permanent Residential,Branas ISAF Ltd,21035.71, 10-Oct-2018
287,Revenue,CAHD,CSC - Residential Placements,Permanent Residential,Branas ISAF Ltd,19928.57, 12-Oct-2018
288,Revenue,CAHD,CSC - Residential Placements,Permanent Residential,Branas ISAF Ltd,21035.71, 12-Oct-2018
289,Revenue,CAHD,CSC - Residential Placements,Permanent Residential,Branas ISAF Ltd,19928.57, 08-Oct-2018
290,Revenue,CAHD,Social Lettings Agency,Fees - General,Individual,11.41, 03-Oct-2018
291,Revenue,CAHD,Social Lettings Agency,Other Supplies & Services,Individual,511.34, 03-Oct-2018
292,Revenue,CAHD,Bed Purchasing - Southmead Hospital,Permanent Residential,Bridge House Care Home,2469.12, 23-Oct-2018
293,Revenue,CAHD,Bed Purchasing - North,Permanent Residential,Bridge House Care Home,2427.4, 23-Oct-2018
294,Revenue,CAHD,Home Care - Elderly - North,Day Care / Social Activities,Bridge House Care Home,750, 23-Oct-2018
295,Revenue,CAHD,Bed Purchasing - North,Permanent Residential,Bridge House Care Home,13918.86, 23-Oct-2018
296,Revenue,CAHD,Bed Purchasing - North,Permanent Residential,Bridge House Care Home,2564, 23-Oct-2018
297,Revenue,CAHD,Home Care - Elderly - North,Day Care / Social Activities,Bridge House Care Home,675, 23-Oct-2018
298,Revenue,CAHD,CSC - Vinney Green Secure Unit,Training Expenses,Bridgwater and Taunton College,2573, 17-Oct-2018
299,Revenue,CAHD,CSC - Vinney Green Secure Unit,Training Expenses,Bridgwater and Taunton College,2573, 17-Oct-2018
300,Revenue,CAHD,Bed Purchasing - North,Permanent Residential,Bridgwater Court,10521.12, 23-Oct-2018
301,Revenue,CAHD,EARLY YEARS DISABILITY  ACCES FUND,Preventative Assistance,Bright Sparks,615, 09-Oct-2018
302,Revenue,CAHD,EARLY YEARS DISABILITY  ACCES FUND,Preventative Assistance,Bright Sparks,615, 09-Oct-2018
303,Revenue,CAHD,EARLY YEARS DISABILITY  ACCES FUND,Preventative Assistance,Bright Sparks,615, 12-Oct-2018
304,Revenue,CAHD,Yate Detached,Rent,Brimsham Green School,552.36, 01-Oct-2018
305,Revenue,CAHD,Health Inequalities,Other Small Contracts,Bristol & Avon Chinese Womens Group,500, 01-Oct-2018
306,Revenue,CAHD,Statemented Support Academies,Schools Funding,Bristol & South Gloucestershire UTC,7298.24, 24-Oct-2018
307,Revenue,CAHD,Older People's Commissioned Se,Grants to Voluntary Bodies,Bristol Area Stroke Foundation,19052.75, 01-Oct-2018
308,Revenue,CAHD,Mental Health  Projects,Project Funding,Bristol City Community Trust,1900, 12-Oct-2018
309,Revenue,CAHD,Housing Needs,Interpreting & Translation,Bristol City Council,698.1, 16-Oct-2018
310,Revenue,CAHD,Transport OLA Special Schools and RB,Client Transport,Bristol City Council,3989.61, 23-Oct-2018
311,Revenue,CAHD,Schools Specific Grant Income,Other Public Bodies,Bristol City Council,630, 29-Oct-2018
312,Revenue,CAHD,Placements OLA Special Schools and RB,Other L.A.'s - General,Bristol City Council - Schools,2050.17, 29-Oct-2018
313,Revenue,CAHD,Placements OLA Special Schools and RB,Other L.A.'s - General,Bristol City Council - Schools,2578, 29-Oct-2018
314,Revenue,CAHD,Placements OLA Special Schools and RB,Other L.A.'s - General,Bristol City Council - Schools,1350.17, 29-Oct-2018
315,Revenue,CAHD,Statemented Support Payments to OLAs,Other L.A.'s - General,Bristol City Council - Schools,1378.83, 24-Oct-2018
316,Revenue,CAHD,Schools Specific Grant Income,Other Public Bodies,Bristol City Council - Schools,630, 29-Oct-2018
317,Revenue,CAHD,Placements OLA Special Schools and RB,Other L.A.'s - General,Bristol City Council - Schools,2578, 29-Oct-2018
318,Revenue,CAHD,Placements OLA Special Schools and RB,Other L.A.'s - General,Bristol City Council - Schools,1305.58, 29-Oct-2018
319,Revenue,CAHD,Placements OLA Special Schools and RB,Other L.A.'s - General,Bristol City Council - Schools,3356.33, 29-Oct-2018
320,Revenue,CAHD,Statemented Support Payments to OLAs,Other L.A.'s - General,Bristol City Council - Schools,907.16, 24-Oct-2018
321,Revenue,CAHD,Placements OLA Special Schools and RB,Other L.A.'s - General,Bristol City Council - Schools,2578, 29-Oct-2018
322,Revenue,CAHD,Placements OLA Special Schools and RB,Other L.A.'s - General,Bristol City Council - Schools,1381, 29-Oct-2018
323,Revenue,CAHD,Placements OLA Special Schools and RB,Other L.A.'s - General,Bristol City Council - Schools,2050.17, 29-Oct-2018
324,Revenue,CAHD,Placements OLA Special Schools and RB,Other L.A.'s - General,Bristol City Council - Schools,914.33, 29-Oct-2018
325,Revenue,CAHD,Placements OLA Special Schools and RB,Other L.A.'s - General,Bristol City Council - Schools,1381, 29-Oct-2018
326,Revenue,CAHD,Placements OLA Special Schools and RB,Other L.A.'s - General,Bristol City Council - Schools,2050.17, 29-Oct-2018
327,Revenue,CAHD,Placements OLA Special Schools and RB,Other L.A.'s - General,Bristol City Council - Schools,2578, 29-Oct-2018
328,Revenue,CAHD,Placements OLA Special Schools and RB,Other L.A.'s - General,Bristol City Council - Schools,809, 29-Oct-2018
329,Revenue,CAHD,Placements OLA Special Schools and RB,Other L.A.'s - General,Bristol City Council - Schools,883.5, 29-Oct-2018
330,Revenue,CAHD,Placements OLA Special Schools and RB,Other L.A.'s - General,Bristol City Council - Schools,4107.54, 29-Oct-2018
331,Revenue,CAHD,Placements OLA Special Schools and RB,Other L.A.'s - General,Bristol City Council - Schools,1031.2, 29-Oct-2018
332,Revenue,CAHD,Placements OLA Special Schools and RB,Other L.A.'s - General,Bristol City Council - Schools,2578, 29-Oct-2018
333,Revenue,CAHD,Placements OLA Special Schools and RB,Other L.A.'s - General,Bristol City Council - Schools,809, 29-Oct-2018
334,Revenue,CAHD,Placements OLA Special Schools and RB,Other L.A.'s - General,Bristol City Council - Schools,2578, 29-Oct-2018
335,Revenue,CAHD,Placements OLA Special Schools and RB,Other L.A.'s - General,Bristol City Council - Schools,883.5, 29-Oct-2018
336,Revenue,CAHD,Placements OLA Special Schools and RB,Other L.A.'s - General,Bristol City Council - Schools,2062.4, 29-Oct-2018
337,Revenue,CAHD,Placements OLA Special Schools and RB,Other L.A.'s - General,Bristol City Council - Schools,2578, 29-Oct-2018
338,Revenue,CAHD,Placements OLA Special Schools and RB,Other L.A.'s - General,Bristol City Council - Schools,883.5, 29-Oct-2018
339,Revenue,CAHD,Family and Young People Support North,Medical Fees,Bristol Dyslexia Centre,500, 18-Oct-2018
340,Revenue,CAHD,Statemented Support Payments to OLAs,Other L.A.'s - General,Broadlands Academy,1331.66, 24-Oct-2018
341,Revenue,CAHD,0-25 Education Support Team,Training Expenses,Browne Jacobson,1906.69, 25-Oct-2018
342,Revenue,CAHD,Health Inequalities,Other Small Contracts,Individual,500, 01-Oct-2018
343,Revenue,CAHD,SLA Grants - Support Serv,Grants to Voluntary Bodies,Individual,500, 01-Oct-2018
344,Revenue,CAHD,Alexandra Way,Special Premises Repairs (Ins Claims),Brunel Design Partnership Limited,700, 22-Oct-2018
345,Revenue,CAHD,South Glos Users in South Glos Homes,Permanent Nursing,Brunelcare,677.83, 12-Oct-2018
346,Revenue,CAHD,South Glos Users in South Glos Homes,Permanent Nursing,Brunelcare,677.83, 12-Oct-2018
347,Revenue,CAHD,South Glos Users in South Glos Homes,Permanent Nursing,Brunelcare,677.83, 12-Oct-2018
348,Revenue,CAHD,South Glos Users in South Glos Homes,Permanent Nursing,Brunelcare,677.83, 12-Oct-2018
349,Revenue,CAHD,South Glos Users in South Glos Homes,Permanent Nursing,Brunelcare,677.83, 12-Oct-2018
350,Revenue,CAHD,South Glos Users in South Glos Homes,Permanent Nursing,Brunelcare,677.83, 12-Oct-2018
351,Revenue,CAHD,South Glos Users in South Glos Homes,Permanent Nursing,Brunelcare,677.83, 12-Oct-2018
352,Revenue,CAHD,South Glos Users in South Glos Homes,Permanent Nursing,Brunelcare,677.83, 12-Oct-2018
353,Revenue,CAHD,South Glos Users in South Glos Homes,Permanent Nursing,Brunelcare,677.83, 12-Oct-2018
354,Revenue,CAHD,South Glos Users in South Glos Homes,Permanent Nursing,Brunelcare,677.83, 12-Oct-2018
355,Revenue,CAHD,South Glos Users in South Glos Homes,Permanent Nursing,Brunelcare,677.83, 12-Oct-2018
356,Revenue,CAHD,South Glos Users in South Glos Homes,Permanent Nursing,Brunelcare,677.83, 12-Oct-2018
357,Revenue,CAHD,South Glos Users in South Glos Homes,Permanent Nursing,Brunelcare,677.83, 12-Oct-2018
358,Revenue,CAHD,Bed purchasing - Elderly S117 - South,Permanent Nursing,Brunelcare,3467.53, 12-Oct-2018
359,Revenue,CAHD,Bed purchasing - Elderly S117 - South,Permanent Nursing,Brunelcare,3467.53, 12-Oct-2018
360,Revenue,CAHD,Bed purchasing - Elderly S117 - South,Permanent Nursing,Brunelcare,3467.53, 12-Oct-2018
361,Revenue,CAHD,Bed Purchasing - Elderly S117- North,Permanent Nursing,Brunelcare,3467.53, 12-Oct-2018
362,Revenue,CAHD,Bed Purchasing - Elderly S117- North,Permanent Nursing,Brunelcare,3467.53, 12-Oct-2018
363,Revenue,CAHD,Bed Purchasing - South,Permanent Nursing,Brunelcare,2337.64, 12-Oct-2018
364,Revenue,CAHD,Bed Purchasing - South,Permanent Nursing,Brunelcare,2875.67, 12-Oct-2018
365,Revenue,CAHD,Bed Purchasing - South,Permanent Nursing,Brunelcare,2531.49, 12-Oct-2018
366,Revenue,CAHD,Bed Purchasing - South,Permanent Nursing,Brunelcare,2679.86, 12-Oct-2018
367,Revenue,CAHD,Bed Purchasing - South,Permanent Nursing,Brunelcare,2905.67, 12-Oct-2018
368,Revenue,CAHD,Bed Purchasing - South,Permanent Nursing,Brunelcare,2532.34, 12-Oct-2018
369,Revenue,CAHD,Enhanced Dementia Beds,Respite Planned - Nursing,Brunelcare,1384.29, 12-Oct-2018
370,Revenue,CAHD,Enhanced Dementia Beds,Respite Planned - Nursing,Brunelcare,2768.57, 12-Oct-2018
371,Revenue,CAHD,Bed Purchasing - North,Permanent Nursing,Brunelcare,2835.47, 12-Oct-2018
372,Revenue,CAHD,Bed Purchasing - North,Permanent Nursing,Brunelcare,2791.41, 12-Oct-2018
373,Revenue,CAHD,Bed Purchasing - North,Permanent Nursing,Brunelcare,3459.13, 12-Oct-2018
374,Revenue,CAHD,Bed Purchasing - North,Permanent Nursing,Brunelcare,2875.67, 12-Oct-2018
375,Revenue,CAHD,Bed Purchasing - North,Permanent Nursing,Brunelcare,3467.53, 12-Oct-2018
376,Revenue,CAHD,Bed Purchasing - North,Respite Planned - Nursing,Brunelcare,1519.96, 12-Oct-2018
377,Revenue,CAHD,Bed Purchasing - North,Respite Planned - Nursing,Brunelcare,924.67, 12-Oct-2018
378,Revenue,CAHD,Pathway 2 - (Interim Beds),Permanent Nursing,Brunelcare,17511, 10-Oct-2018
379,Revenue,CAHD,Home Care - Elderly - South,Other Small Contracts,Brunelcare,24665.55, 08-Oct-2018
380,Revenue,CAHD,Home Care - Elderly - North,Other Small Contracts,Brunelcare,1710.8, 08-Oct-2018
381,Revenue,CAHD,Home Care - Elderly - South,Other Small Contracts,Brunelcare,21762.65, 24-Oct-2018
382,Revenue,CAHD,Home Care - Elderly - North,Other Small Contracts,Brunelcare,1456, 24-Oct-2018
383,Revenue,CAHD,Home Care - Elderly - South,Other Small Contracts,Brunelcare,24938.55, 31-Oct-2018
384,Revenue,CAHD,Home Care - Elderly - North,Other Small Contracts,Brunelcare,1151.15, 31-Oct-2018
385,Revenue,CAHD,Home Care - Elderly - South,Other Small Contracts,Brunelcare,819, 24-Oct-2018
386,Revenue,CAHD,Pathway 1 - Re-Ablement Home Care,Other Small Contracts,Brunelcare,2147, 24-Oct-2018
387,Revenue,CAHD,Pathway 1 - Re-Ablement Home Care,Other Small Contracts,Brunelcare,1465.1, 23-Oct-2018
388,Revenue,CAHD,Pathway 1 - Re-Ablement Home Care,Other Small Contracts,Brunelcare,1606.15, 12-Oct-2018
389,Revenue,CAHD,Pathway 1 - Re-Ablement Home Care,Other Small Contracts,Brunelcare,1642.55, 12-Oct-2018
390,Revenue,CAHD,Pathway 1 - Re-Ablement Home Care,Other Small Contracts,Brunelcare,70000, 22-Oct-2018
391,Revenue,CAHD,Pathway 1 - Re-Ablement Home Care,Other Small Contracts,Brunelcare,73400.08, 03-Oct-2018
392,Revenue,CAHD,CSC - Vinney Green Secure Unit,Catering Equipment,Bunzl Lockhart Catering Equiptment,419, 24-Oct-2018
393,Revenue,CAHD,South Glos Users in all other LA Homes,Permanent Nursing,Bupa Care Services  Bridge House,1523.13, 23-Oct-2018
394,Revenue,CAHD,Bed Purchasing - North,Permanent Nursing,Bupa Care Services  Bridge House,661.05, 23-Oct-2018
395,Revenue,CAHD,NTS Grant - Trainee Social Wor,Training Expenses,BW Training & Coaching Ltd,900, 26-Oct-2018
396,Revenue,CAHD,Training - Adult Services,Training Expenses,BW Training & Coaching Ltd,1800, 15-Oct-2018
397,Revenue,CAHD,Academy Resource Base Funding,Other Public Bodies,Cabot Learning Federation,1175.88, 23-Oct-2018
398,Revenue,CAHD,Academy Resource Base Funding,Other Public Bodies,Cabot Learning Federation,1540.83, 23-Oct-2018
399,Revenue,CAHD,Academy Resource Base Funding,Other Public Bodies,Cabot Learning Federation,1702.96, 23-Oct-2018
400,Revenue,CAHD,Academy Resource Base Funding,Other Public Bodies,Cabot Learning Federation,1540.83, 23-Oct-2018
401,Revenue,CAHD,Academy Resource Base Funding,Other Public Bodies,Cabot Learning Federation,1175.88, 23-Oct-2018
402,Revenue,CAHD,Academy Resource Base Funding,Other Public Bodies,Cabot Learning Federation,1175.88, 23-Oct-2018
403,Revenue,CAHD,Academy Resource Base Funding,Other Public Bodies,Cabot Learning Federation,1702.96, 23-Oct-2018
404,Revenue,CAHD,Academy Resource Base Funding,Other Public Bodies,Cabot Learning Federation,1702.96, 23-Oct-2018
405,Revenue,CAHD,Academy Resource Base Funding,Other Public Bodies,Cabot Learning Federation,1540.83, 23-Oct-2018
406,Revenue,CAHD,Academy Resource Base Funding,Other Public Bodies,Cabot Learning Federation,892.04, 23-Oct-2018
407,Revenue,CAHD,Academy Resource Base Funding,Other Public Bodies,Cabot Learning Federation,1137.95, 23-Oct-2018
408,Revenue,CAHD,Academy Resource Base Funding,Other Public Bodies,Cabot Learning Federation,1648.03, 23-Oct-2018
409,Revenue,CAHD,Schools Specific Grant Income,Other Public Bodies,Cabot Learning Federation,630, 29-Oct-2018
410,Revenue,CAHD,Schools Specific Grant Income,Other Public Bodies,Cabot Learning Federation,630, 29-Oct-2018
411,Revenue,CAHD,Schools Specific Grant Income,Other Public Bodies,Cabot Learning Federation,630, 29-Oct-2018
412,Revenue,CAHD,Schools Specific Grant Income,Other Public Bodies,Cabot Learning Federation,630, 29-Oct-2018
413,Revenue,CAHD,Schools Specific Grant Income,Other Public Bodies,Cabot Learning Federation,630, 29-Oct-2018
414,Revenue,CAHD,Schools Specific Grant Income,Other Public Bodies,Cabot Learning Federation,630, 29-Oct-2018
415,Revenue,CAHD,Schools Specific Grant Income,Other Public Bodies,Cabot Learning Federation,630, 29-Oct-2018
416,Revenue,CAHD,Schools Specific Grant Income,Other Public Bodies,Cabot Learning Federation,880, 29-Oct-2018
417,Revenue,CAHD,Schools Specific Grant Income,Other Public Bodies,Cabot Learning Federation,630, 29-Oct-2018
418,Revenue,CAHD,Schools Specific Grant Income,Other Public Bodies,Cabot Learning Federation,630, 29-Oct-2018
419,Revenue,CAHD,Schools Specific Grant Income,Other Public Bodies,Cabot Learning Federation,630, 29-Oct-2018
420,Revenue,CAHD,Schools Specific Grant Income,Other Public Bodies,Cabot Learning Federation,630, 29-Oct-2018
421,Revenue,CAHD,Schools Specific Grant Income,Other Public Bodies,Cabot Learning Federation,630, 29-Oct-2018
422,Revenue,CAHD,Schools Specific Grant Income - from OLA,Other Public Bodies,Cabot Learning Federation,4500, 23-Oct-2018
423,Revenue,CAHD,Schools Block Growth Contingency,Other Public Bodies,Cabot Learning Federation,74474.58, 23-Oct-2018
424,Revenue,CAHD,Schools Block Growth Contingency,Other Public Bodies,Cabot Learning Federation,29166.67, 23-Oct-2018
425,Revenue,CAHD,Schools Block Growth Contingency,Other Public Bodies,Cabot Learning Federation,29166.67, 23-Oct-2018
426,Revenue,CAHD,Schools Specific Grant Income - from OLA,Other Public Bodies,Cabot Learning Federation,1500, 23-Oct-2018
427,Revenue,CAHD,Statemented Support Payments to OLAs,Other L.A.'s - General,Cabot Learning Federation,518.03, 24-Oct-2018
428,Revenue,CAHD,Statemented Support Academies,Schools Funding,Cabot Learning Federation,706.7, 24-Oct-2018
429,Revenue,CAHD,Statemented Support Academies,Schools Funding,Cabot Learning Federation,753.87, 24-Oct-2018
430,Revenue,CAHD,Statemented Support Academies,Schools Funding,Cabot Learning Federation,659.53, 24-Oct-2018
431,Revenue,CAHD,Statemented Support Academies,Schools Funding,Cabot Learning Federation,706.7, 24-Oct-2018
432,Revenue,CAHD,Statemented Support Academies,Schools Funding,Cabot Learning Federation,518.03, 24-Oct-2018
433,Revenue,CAHD,Statemented Support Academies,Schools Funding,Cabot Learning Federation,836.41, 24-Oct-2018
434,Revenue,CAHD,Statemented Support Academies,Schools Funding,Cabot Learning Federation,576.99, 24-Oct-2018
435,Revenue,CAHD,Statemented Support Academies,Schools Funding,Cabot Learning Federation,753.87, 24-Oct-2018
436,Revenue,CAHD,Statemented Support Academies,Schools Funding,Cabot Learning Federation,954.33, 24-Oct-2018
437,Revenue,CAHD,Statemented Support Academies,Schools Funding,Cabot Learning Federation,706.7, 24-Oct-2018
438,Revenue,CAHD,Statemented Support Academies,Schools Funding,Cabot Learning Federation,553.41, 24-Oct-2018
439,Revenue,CAHD,Statemented Support Academies,Schools Funding,Cabot Learning Federation,694.91, 24-Oct-2018
440,Revenue,CAHD,Statemented Support Academies,Schools Funding,Cabot Learning Federation,883.58, 24-Oct-2018
441,Revenue,CAHD,Statemented Support Academies,Schools Funding,Cabot Learning Federation,1084.03, 24-Oct-2018
442,Revenue,CAHD,Statemented Support Academies,Schools Funding,Cabot Learning Federation,954.33, 24-Oct-2018
443,Revenue,CAHD,Statemented Support Payments to OLAs,Other L.A.'s - General,Cabot Learning Federation,600.58, 24-Oct-2018
444,Revenue,CAHD,Statemented Support Academies,Schools Funding,Cabot Learning Federation,859.99, 24-Oct-2018
445,Revenue,CAHD,Statemented Support Academies,Schools Funding,Cabot Learning Federation,600.58, 24-Oct-2018
446,Revenue,CAHD,Statemented Support Academies,Schools Funding,Cabot Learning Federation,871.78, 24-Oct-2018
447,Revenue,CAHD,Statemented Support Academies,Schools Funding,Cabot Learning Federation,1048.66, 24-Oct-2018
448,Revenue,CAHD,Statemented Support Academies,Schools Funding,Cabot Learning Federation,506.24, 24-Oct-2018
449,Revenue,CAHD,Statemented Support Academies,Schools Funding,Cabot Learning Federation,1048.66, 24-Oct-2018
450,Revenue,CAHD,Statemented Support Payments to OLAs,Other L.A.'s - General,Cabot Learning Federation,600.58, 24-Oct-2018
451,Revenue,CAHD,Statemented Support Payments to OLAs,Other L.A.'s - General,Cabot Learning Federation,1072.24, 24-Oct-2018
452,Revenue,CAHD,Statemented Support Payments to OLAs,Other L.A.'s - General,Cabot Learning Federation,588.78, 24-Oct-2018
453,Revenue,CAHD,Statemented Support Academies,Schools Funding,Cabot Learning Federation,918.95, 24-Oct-2018
454,Revenue,CAHD,Cambrian Green Day Service,Catering - Client Meals/Pupil Sch. Meals,Cambrian Court Dining,594, 16-Oct-2018
455,Revenue,CAHD,Cambrian Green Day Service,Catering - Client Meals/Pupil Sch. Meals,Cambrian Court Dining,544.5, 16-Oct-2018
456,Revenue,CAHD,Cambrian Green Day Service,Catering - Client Meals/Pupil Sch. Meals,Cambrian Court Dining,577.5, 16-Oct-2018
457,Revenue,CAHD,Cambrian Green Day Service,Catering - Client Meals/Pupil Sch. Meals,Cambrian Court Dining,621.5, 16-Oct-2018
458,Revenue,CAHD,Cambrian Green Day Service,Catering - Client Meals/Pupil Sch. Meals,Cambrian Court Dining,566.5, 16-Oct-2018
459,Revenue,CAHD,Cambrian Green Day Service,Catering - Client Meals/Pupil Sch. Meals,Cambrian Court Dining,594, 16-Oct-2018
460,Revenue,CAHD,Cambrian Green Day Service,Catering - Client Meals/Pupil Sch. Meals,Cambrian Court Dining,594, 16-Oct-2018
461,Revenue,CAHD,Cambrian Green Day Service,Catering - Client Meals/Pupil Sch. Meals,Cambrian Court Dining,561, 16-Oct-2018
462,Revenue,CAHD,Cambrian Green Day Service,Catering - Client Meals/Pupil Sch. Meals,Cambrian Court Dining,500.5, 16-Oct-2018
463,Revenue,CAHD,Cambrian Green Day Service,Catering - Client Meals/Pupil Sch. Meals,Cambrian Court Dining,621.5, 16-Oct-2018
464,Revenue,CAHD,Home Care - Elderly - North,Day Care / Social Activities,Camphill Communities Thornbury Limited,1012.42, 05-Oct-2018
465,Revenue,CAHD,Home Care - Elderly - North,Other Small Contracts,Camphill Communities Thornbury Limited,163.44, 05-Oct-2018
466,Revenue,CAHD,Home Care - Elderly - North,Supported Living,Camphill Communities Thornbury Limited,726.4, 05-Oct-2018
467,Revenue,CAHD,Home Care - Elderly - North,Day Care / Social Activities,Camphill Communities Thornbury Limited,1125.92, 11-Oct-2018
468,Revenue,CAHD,Home Care - Elderly - North,Other Small Contracts,Camphill Communities Thornbury Limited,163.44, 11-Oct-2018
469,Revenue,CAHD,Home Care - Elderly - North,Supported Living,Camphill Communities Thornbury Limited,912.54, 11-Oct-2018
470,Revenue,CAHD,Home Care - Elderly - North,Day Care / Social Activities,Camphill Communities Thornbury Limited,989.72, 19-Oct-2018
471,Revenue,CAHD,Home Care - Elderly - North,Other Small Contracts,Camphill Communities Thornbury Limited,163.44, 19-Oct-2018
472,Revenue,CAHD,Home Care - Elderly - North,Supported Living,Camphill Communities Thornbury Limited,1053.28, 19-Oct-2018
473,Revenue,CAHD,Home Care - Elderly - North,Day Care / Social Activities,Camphill Communities Thornbury Limited,681, 26-Oct-2018
474,Revenue,CAHD,Home Care - Elderly - North,Other Small Contracts,Camphill Communities Thornbury Limited,163.44, 26-Oct-2018
475,Revenue,CAHD,Home Care - Elderly - North,Supported Living,Camphill Communities Thornbury Limited,1026.04, 26-Oct-2018
476,Revenue,CAHD,Bed Purchasing - Elderly S117- North,Permanent Residential,Canjayor,2468.44, 23-Oct-2018
477,Revenue,CAHD,Alexandra Way,Refuse Collection Charges,Cannon Hygiene Limited,547.8, 19-Oct-2018
478,Revenue,CAHD,CSC - Agency Fostering,Foster Parent Allowances,Capstone Foster Care (South West) Limited,3517.37, 01-Oct-2018
479,Revenue,CAHD,CSC - Agency Fostering,Foster Parent Allowances,Capstone Foster Care (South West) Limited,3385.8, 01-Oct-2018
480,Revenue,CAHD,CSC - Agency Fostering,Foster Parent Allowances,Capstone Foster Care (South West) Limited,3385.8, 01-Oct-2018
481,Revenue,CAHD,CSC - Agency Fostering,Foster Parent Allowances,Capstone Foster Care (South West) Limited,3517.37, 01-Oct-2018
482,Revenue,CAHD,Home Care - Elderly - South,Other Small Contracts,Care 1st Homecare,1366.43, 26-Oct-2018
483,Revenue,CAHD,Home Care - Elderly - North,Other Small Contracts,Care 1st Homecare,3684.47, 26-Oct-2018
484,Revenue,CAHD,Younger MH non-res purchasing,Other Small Contracts,Care 1st Homecare,127.96, 26-Oct-2018
485,Revenue,CAHD,Home Care - Elderly - South,Other Small Contracts,Care 1st Homecare,1288.74, 26-Oct-2018
486,Revenue,CAHD,Home Care - Elderly - North,Other Small Contracts,Care 1st Homecare,3805.92, 26-Oct-2018
487,Revenue,CAHD,Younger MH non-res purchasing,Other Small Contracts,Care 1st Homecare,132.53, 26-Oct-2018
488,Revenue,CAHD,Home Care - Elderly - South,Other Small Contracts,Care 1st Homecare,996.26, 26-Oct-2018
489,Revenue,CAHD,Home Care - Elderly - North,Other Small Contracts,Care 1st Homecare,3743.8, 26-Oct-2018
490,Revenue,CAHD,Younger MH non-res purchasing,Other Small Contracts,Care 1st Homecare,123.39, 26-Oct-2018
491,Revenue,CAHD,Home Care - Elderly - South,Other Small Contracts,Care 1st Homecare,233.07, 26-Oct-2018
492,Revenue,CAHD,Home Care - Elderly - North,Other Small Contracts,Care 1st Homecare,2734.93, 26-Oct-2018
493,Revenue,CAHD,Younger MH non-res purchasing,Other Small Contracts,Care 1st Homecare,36.56, 26-Oct-2018
494,Revenue,CAHD,Home Care - Elderly - South,Other Small Contracts,Care Horizons Limited,899.61, 19-Oct-2018
495,Revenue,CAHD,Home Care - Elderly - North,Day Care / Social Activities,Care Horizons Limited,131.88, 19-Oct-2018
496,Revenue,CAHD,Younger MH non-res purchasing,Other Small Contracts,Care Horizons Limited,202.53, 19-Oct-2018
497,Revenue,CAHD,Home Care - Elderly - South,Other Small Contracts,Care Horizons Limited,937.29, 18-Oct-2018
498,Revenue,CAHD,Home Care - Elderly - North,Day Care / Social Activities,Care Horizons Limited,381.51, 18-Oct-2018
499,Revenue,CAHD,Younger MH non-res purchasing,Other Small Contracts,Care Horizons Limited,150.72, 18-Oct-2018
500,Revenue,CAHD,Home Care - Elderly - South,Other Small Contracts,Care Horizons Limited,942, 26-Oct-2018
501,Revenue,CAHD,Home Care - Elderly - North,Day Care / Social Activities,Care Horizons Limited,376.8, 26-Oct-2018
502,Revenue,CAHD,Home Care - Elderly - North,Other Small Contracts,Care Horizons Limited,70.65, 26-Oct-2018
503,Revenue,CAHD,Younger MH non-res purchasing,Other Small Contracts,Care Horizons Limited,37.68, 26-Oct-2018
504,Revenue,CAHD,Home Care - Elderly - South,Other Small Contracts,Care Horizons Limited,923.16, 26-Oct-2018
505,Revenue,CAHD,Home Care - Elderly - North,Day Care / Social Activities,Care Horizons Limited,381.51, 26-Oct-2018
506,Revenue,CAHD,Younger MH non-res purchasing,Other Small Contracts,Care Horizons Limited,226.08, 26-Oct-2018
507,Revenue,CAHD,SLA Grants - Support Serv,Grants to Voluntary Bodies,Carers Support Centre,12275, 01-Oct-2018
508,Revenue,CAHD,SLA Grants - Support Serv,Grants to Voluntary Bodies,Carers Support Centre,25275, 01-Oct-2018
509,Revenue,CAHD,Health Inequalities,Other Small Contracts,Carers Support Centre,60477, 01-Oct-2018
510,Revenue,CAHD,Home Care - Elderly - North,Other Small Contracts,Caring Comes 1st Ltd,1087.8, 12-Oct-2018
511,Revenue,CAHD,Home Care - Elderly - South,Other Small Contracts,Caring Comes 1st Ltd,2131.2, 15-Oct-2018
512,Revenue,CAHD,Home Care - Elderly - South,Other Small Contracts,Caring Comes 1st Ltd,1060.05, 15-Oct-2018
513,Revenue,CAHD,Home Care - Elderly - South,Other Small Contracts,Caring Comes 1st Ltd,543.9, 12-Oct-2018
514,Revenue,CAHD,Home Care - Elderly - South,Other Small Contracts,Caring Comes 1st Ltd,754.8, 12-Oct-2018
515,Revenue,CAHD,Home Care - Elderly - South,Other Small Contracts,Caring Comes 1st Ltd,932.4, 12-Oct-2018
516,Revenue,CAHD,Home Care - Elderly - South,Other Small Contracts,Caring Comes 1st Ltd,932.4, 12-Oct-2018
517,Revenue,CAHD,Home Care - Elderly - North,Other Small Contracts,Caring Comes 1st Ltd,621.6, 12-Oct-2018
518,Revenue,CAHD,Home Care - Elderly - North,Other Small Contracts,Caring Comes 1st Ltd,1099.56, 03-Oct-2018
519,Revenue,CAHD,Home Care - Elderly - South,Other Small Contracts,Caring Comes 1st Ltd,1918.62, 15-Oct-2018
520,Revenue,CAHD,Home Care - Elderly - South,Other Small Contracts,Caring Comes 1st Ltd,757.35, 12-Oct-2018
521,Revenue,CAHD,Home Care - Elderly - South,Other Small Contracts,Caring Comes 1st Ltd,925.65, 15-Oct-2018
522,Revenue,CAHD,Home Care - Elderly - South,Other Small Contracts,Caring Comes 1st Ltd,628.32, 19-Oct-2018
523,Revenue,CAHD,Home Care - Elderly - South,Other Small Contracts,Caring Comes 1st Ltd,841.5, 04-Oct-2018
524,Revenue,CAHD,CSC - Vinney Green Secure Unit,R & M by Departments,Carlton Services UK Limited,664, 22-Oct-2018
525,Revenue,CAHD,Home Care - Elderly - North,Supported Living,Cartrefi Cymru Co-operative Ltd,7015.68, 09-Oct-2018
526,Revenue,CAHD,Statemented Support Academies,Schools Funding,Castle School Education Trust,659.53, 24-Oct-2018
527,Revenue,CAHD,Statemented Support Academies,Schools Funding,Castle School Education Trust,635.95, 24-Oct-2018
528,Revenue,CAHD,Statemented Support Academies,Schools Funding,Castle School Education Trust,706.7, 24-Oct-2018
529,Revenue,CAHD,Statemented Support Academies,Schools Funding,Castle School Education Trust,918.95, 24-Oct-2018
530,Revenue,CAHD,Statemented Support Academies,Schools Funding,Castle School Education Trust,1072.24, 24-Oct-2018
531,Revenue,CAHD,Statemented Support Academies,Schools Funding,Castle School Education Trust,683.12, 24-Oct-2018
532,Revenue,CAHD,Statemented Support Academies,Schools Funding,Castle School Education Trust,1001.49, 24-Oct-2018
533,Revenue,CAHD,Statemented Support Academies,Schools Funding,Castle School Education Trust,1602.87, 24-Oct-2018
534,Revenue,CAHD,Statemented Support Academies,Schools Funding,Castle School Education Trust,1001.49, 24-Oct-2018
535,Revenue,CAHD,Statemented Support Academies,Schools Funding,Castle School Education Trust,1142.99, 24-Oct-2018
536,Revenue,CAHD,Statemented Support Academies,Schools Funding,Castle School Education Trust,1260.91, 24-Oct-2018
537,Revenue,CAHD,Statemented Support Academies,Schools Funding,Castle School Education Trust,647.74, 24-Oct-2018
538,Revenue,CAHD,Statemented Support Academies,Schools Funding,Castle School Education Trust,730.28, 24-Oct-2018
539,Revenue,CAHD,Statemented Support Academies,Schools Funding,Castle School Education Trust,541.62, 24-Oct-2018
540,Revenue,CAHD,Statemented Support Academies,Schools Funding,Castle School Education Trust,1095.83, 24-Oct-2018
541,Revenue,CAHD,Statemented Support Academies,Schools Funding,Castle School Education Trust,718.49, 24-Oct-2018
542,Revenue,CAHD,Statemented Support Academies,Schools Funding,Castle School Education Trust,765.66, 24-Oct-2018
543,Revenue,CAHD,Statemented Support Academies,Schools Funding,Castle School Education Trust,966.12, 24-Oct-2018
544,Revenue,CAHD,Statemented Support Academies,Schools Funding,Castle School Education Trust,848.2, 24-Oct-2018
545,Revenue,CAHD,Statemented Support Academies,Schools Funding,Castle School Education Trust,989.7, 24-Oct-2018
546,Revenue,CAHD,Statemented Support Academies,Schools Funding,Castle School Education Trust,1378.83, 24-Oct-2018
547,Revenue,CAHD,Statemented Support Academies,Schools Funding,Castle School Education Trust,1201.95, 24-Oct-2018
548,Revenue,CAHD,Statemented Support Academies,Schools Funding,Castle School Education Trust,659.53, 24-Oct-2018
549,Revenue,CAHD,Statemented Support Academies,Schools Funding,Castle School Education Trust,718.49, 24-Oct-2018
550,Revenue,CAHD,Statemented Support Academies,Schools Funding,Castle School Education Trust,1284.49, 24-Oct-2018
551,Revenue,CAHD,Schools Specific Grant Income,Other Public Bodies,Castle School Education Trust,630, 29-Oct-2018
552,Revenue,CAHD,Schools Specific Grant Income,Other Public Bodies,Castle School Education Trust,630, 29-Oct-2018
553,Revenue,CAHD,Schools Specific Grant Income,Other Public Bodies,Castle School Education Trust,630, 29-Oct-2018
554,Revenue,CAHD,Schools Specific Grant Income,Other Public Bodies,Castle School Education Trust,630, 29-Oct-2018
555,Revenue,CAHD,Schools Specific Grant Income,Other Public Bodies,Castle School Education Trust,630, 29-Oct-2018
556,Revenue,CAHD,Schools Specific Grant Income,Other Public Bodies,Castle School Education Trust,630, 29-Oct-2018
557,Revenue,CAHD,Schools Specific Grant Income,Other Public Bodies,Castle School Education Trust,630, 29-Oct-2018
558,Revenue,CAHD,Schools Specific Grant Income,Other Public Bodies,Castle School Education Trust,630, 29-Oct-2018
559,Revenue,CAHD,Academy Resource Base Funding,Other Public Bodies,Castle School Education Trust,1175.88, 23-Oct-2018
560,Revenue,CAHD,Academy Resource Base Funding,Other Public Bodies,Castle School Education Trust,1702.96, 23-Oct-2018
561,Revenue,CAHD,Academy Resource Base Funding,Other Public Bodies,Castle School Education Trust,2189.53, 23-Oct-2018
562,Revenue,CAHD,Academy Resource Base Funding,Other Public Bodies,Castle School Education Trust,1702.96, 23-Oct-2018
563,Revenue,CAHD,Academy Resource Base Funding,Other Public Bodies,Castle School Education Trust,1702.96, 23-Oct-2018
564,Revenue,CAHD,Academy Resource Base Funding,Other Public Bodies,Castle School Education Trust,1702.96, 23-Oct-2018
565,Revenue,CAHD,Academy Resource Base Funding,Other Public Bodies,Castle School Education Trust,1702.96, 23-Oct-2018
566,Revenue,CAHD,Schools Specific Grant Income - from OLA,Other Public Bodies,Castle School Education Trust,750, 23-Oct-2018
567,Revenue,CAHD,Schools Block Growth Contingency,Other Public Bodies,Castle School Education Trust,46646.08, 23-Oct-2018
568,Revenue,CAHD,Schools Block Growth Contingency,Other Public Bodies,Castle School Education Trust,29166.67, 23-Oct-2018
569,Revenue,CAHD,Schools Specific Grant Income,Other Public Bodies,Castle School Education Trust,630, 29-Oct-2018
570,Revenue,CAHD,Statemented Support Academies,Schools Funding,Castle School Education Trust,612.37, 24-Oct-2018
571,Revenue,CAHD,Statemented Support Academies,Schools Funding,Castle School Education Trust,1626.45, 24-Oct-2018
572,Revenue,CAHD,Schools Specific Grant Income - from OLA,Other Public Bodies,Castle School Education Trust,750, 23-Oct-2018
573,Revenue,CAHD,Statemented Support Academies,Schools Funding,Castle School Education Trust,812.83, 24-Oct-2018
574,Revenue,CAHD,Statemented Support Academies,Schools Funding,Castle School Education Trust,989.7, 24-Oct-2018
575,Revenue,CAHD,Statemented Support Academies,Schools Funding,Castle School Education Trust,1048.66, 24-Oct-2018
576,Revenue,CAHD,Statemented Support Academies,Schools Funding,Castle School Education Trust,1331.66, 24-Oct-2018
577,Revenue,CAHD,Statemented Support Academies,Schools Funding,Castle School Education Trust,1697.2, 24-Oct-2018
578,Revenue,CAHD,Statemented Support Academies,Schools Funding,Castle School Education Trust,1166.58, 24-Oct-2018
579,Revenue,CAHD,Statemented Support Academies,Schools Funding,Castle School Education Trust,918.95, 24-Oct-2018
580,Revenue,CAHD,Social Lettings Agency,Fees - General,Individual,10.53, 01-Oct-2018
581,Revenue,CAHD,Social Lettings Agency,Fees & Charges Income - General,Individual,595.11, 01-Oct-2018
582,Revenue,CAHD,Home Care - Elderly - North,Day Care / Social Activities,Causeway House,1389.44, 23-Oct-2018
583,Revenue,CAHD,Home Care - Elderly - North,Day Care / Social Activities,Causeway House,1202.8, 23-Oct-2018
584,Revenue,CAHD,Home Care - Elderly - South,Day Care / Social Activities,Causeway House,5130.52, 23-Oct-2018
585,Revenue,CAHD,18-25 Year Olds,Day Care / Social Activities,Causeway House,4311.6, 23-Oct-2018
586,Revenue,CAHD,Home Care - Elderly - North,Day Care / Social Activities,Causeway House,3075.46, 23-Oct-2018
587,Revenue,CAHD,Home Care - Elderly - North,Day Care / Social Activities,Causeway House,3800.76, 23-Oct-2018
588,Revenue,CAHD,Home Care - Elderly - North,Day Care / Social Activities,Causeway House,2029.16, 23-Oct-2018
589,Revenue,CAHD,Home Care - Elderly - North,Day Care / Social Activities,Causeway House,3150.88, 23-Oct-2018
590,Revenue,CAHD,Home Care - Elderly - North,Day Care / Social Activities,Causeway House,4694.24, 23-Oct-2018
591,Revenue,CAHD,Home Care - Elderly - North,Day Care / Social Activities,Causeway House,3566.88, 23-Oct-2018
592,Revenue,CAHD,Home Care - Elderly - North,Day Care / Social Activities,Causeway House,3075.56, 23-Oct-2018
593,Revenue,CAHD,Home Care - Elderly - North,Day Care / Social Activities,Causeway House,555.12, 23-Oct-2018
594,Revenue,CAHD,Bed Purchasing - Elderly S117- North,Permanent Nursing,Cedar Care Homes Limited,4434.68, 23-Oct-2018
595,Revenue,CAHD,Bed Purchasing - Elderly S117- North,Permanent Residential,Challenge House,2511.12, 23-Oct-2018
596,Revenue,CAHD,Bed Purchasing - Southmead Hospital,Respite Emergency - Residential,Challenge House,2315.16, 23-Oct-2018
597,Revenue,CAHD,Bed Purchasing - North,Permanent Residential,Challenge House,2180.68, 23-Oct-2018
598,Revenue,CAHD,Bed Purchasing - North,Permanent Residential,Challenge House,2315.16, 23-Oct-2018
599,Revenue,CAHD,Bed Purchasing - North,Respite Planned - Residential,Challenge House,730.29, 23-Oct-2018
600,Revenue,CAHD,Bed Purchasing - North,Respite Planned - Residential,Challenge House,568, 23-Oct-2018
601,Revenue,CAHD,Bed Purchasing - North,Permanent Residential,Challenge House,2039.72, 23-Oct-2018
602,Revenue,CAHD,Bed Purchasing - North,Permanent Nursing,Challenge House,3057, 23-Oct-2018
603,Revenue,CAHD,Bed Purchasing - Southmead Hospital,Respite Emergency - Residential,Challenge House,750, 23-Oct-2018
604,Revenue,CAHD,Bed Purchasing - Elderly S117- North,Permanent Nursing,Challenge House,2339.64, 23-Oct-2018
605,Revenue,CAHD,Bed Purchasing - Southmead Hospital,Permanent Residential,Challenge House,2343.72, 23-Oct-2018
606,Revenue,CAHD,Bed Purchasing - Southmead Hospital,Permanent Residential,Challenge House,585.93, 23-Oct-2018
607,Revenue,CAHD,Bed Purchasing - North,Fees & Charges Income - General,Challenge House,502.23, 23-Oct-2018
608,Revenue,CAHD,Bed Purchasing - North,Permanent Residential,Challenge House,2683.84, 23-Oct-2018
609,Revenue,CAHD,Bed Purchasing - North,Respite Planned - Nursing,Challenge House,3000, 23-Oct-2018
610,Revenue,CAHD,Bed Purchasing - North,Respite Planned - Nursing,Challenge House,1285.71, 23-Oct-2018
611,Revenue,CAHD,Bed Purchasing - North,Permanent Nursing,Challenge House,2511.12, 23-Oct-2018
612,Revenue,CAHD,Bed Purchasing - Southmead Hospital,Respite Emergency - Residential,Challenge House,3321.43, 23-Oct-2018
613,Revenue,CAHD,Bed Purchasing - North,Permanent Nursing,Challenge House,2339.64, 23-Oct-2018
614,Revenue,CAHD,Bed Purchasing - Southmead Hospital,Permanent Nursing,Challenge House,3057, 23-Oct-2018
615,Revenue,CAHD,Bed Purchasing - Central,Permanent Residential,Challenge House,5678.57, 23-Oct-2018
616,Revenue,CAHD,Bed Purchasing - Central,Permanent Residential,Challenge House,5678.57, 23-Oct-2018
617,Revenue,CAHD,Bed Purchasing - Central,Permanent Residential,Challenge House,3000, 23-Oct-2018
618,Revenue,CAHD,Alexandra Way,"Provisions (Food, etc)",Charles Saunders Limited,627.49, 22-Oct-2018
619,Revenue,CAHD,Bed Purchasing - South,Permanent Nursing,Charnwood House Nursing Home,41450.03, 23-Oct-2018
620,Revenue,CAHD,Bed Purchasing - South,Permanent Nursing,Charnwood House Nursing Home,9835.6, 23-Oct-2018
621,Revenue,CAHD,Home Care - Elderly - South,Other Small Contracts,Cherish Able Care Limited,6825.67, 05-Oct-2018
622,Revenue,CAHD,Home Care - Elderly - North,Other Small Contracts,Cherish Able Care Limited,2483.49, 05-Oct-2018
623,Revenue,CAHD,Home Care - Elderly - South,Other Small Contracts,Cherish Able Care Limited,6295.55, 12-Oct-2018
624,Revenue,CAHD,Home Care - Elderly - North,Other Small Contracts,Cherish Able Care Limited,2688.65, 12-Oct-2018
625,Revenue,CAHD,Home Care - Elderly - South,Other Small Contracts,Cherish Able Care Limited,6053.34, 19-Oct-2018
626,Revenue,CAHD,Home Care - Elderly - North,Other Small Contracts,Cherish Able Care Limited,2763.96, 19-Oct-2018
627,Revenue,CAHD,Home Care - Elderly - South,Other Small Contracts,Cherish Able Care Limited,5504.94, 26-Oct-2018
628,Revenue,CAHD,Home Care - Elderly - North,Other Small Contracts,Cherish Able Care Limited,2912.28, 26-Oct-2018
629,Revenue,CAHD,Home Care - Elderly - South,Other Small Contracts,Cherish Able Care Limited,5089.07, 26-Oct-2018
630,Revenue,CAHD,Home Care - Elderly - North,Other Small Contracts,Cherish Able Care Limited,2777.26, 26-Oct-2018
631,Revenue,CAHD,Home Care - Elderly - South,Other Small Contracts,Cherish Able Care Limited,5075.36, 26-Oct-2018
632,Revenue,CAHD,Home Care - Elderly - North,Other Small Contracts,Cherish Able Care Limited,2483.3, 26-Oct-2018
633,Revenue,CAHD,Home Care - Elderly - South,Other Small Contracts,Cherish Able Care Limited,4572.66, 26-Oct-2018
634,Revenue,CAHD,Home Care - Elderly - North,Other Small Contracts,Cherish Able Care Limited,2234.11, 26-Oct-2018
635,Revenue,CAHD,Home Care - Elderly - South,Other Small Contracts,Cherish Able Care Limited,4668.63, 31-Oct-2018
636,Revenue,CAHD,Home Care - Elderly - North,Other Small Contracts,Cherish Able Care Limited,2223.41, 31-Oct-2018
637,Revenue,CAHD,18-25 Year Olds,Other Small Contracts,Cherry Orchards,3584.94, 10-Oct-2018
638,Revenue,CAHD,Bed purchasing - S28A Under 65 - South,Permanent Residential,Chescombe Lodge,9535.6, 23-Oct-2018
639,Revenue,CAHD,CSC - LAC Placements,Client Transport,Childrens Contact Services Ltd,4250.4, 15-Oct-2018
640,Revenue,CAHD,CSC - LAC Placements,Client Transport,Childrens Contact Services Ltd,3267.8, 15-Oct-2018
641,Revenue,CAHD,Early Years Inclusion Fund,Other Public Bodies,Christchurch Pre School,1400, 04-Oct-2018
642,Revenue,CAHD,Early Years Inclusion Fund,Other Public Bodies,Christchurch Pre School,650, 04-Oct-2018
643,Revenue,CAHD,18-25 Year Olds,Other Small Contracts,Cintre,47.6, 18-Oct-2018
644,Revenue,CAHD,Home Care - Elderly - South,Other Small Contracts,Cintre,380.8, 18-Oct-2018
645,Revenue,CAHD,Home Care - Elderly - North,Other Small Contracts,Cintre,504.56, 18-Oct-2018
646,Revenue,CAHD,18-25 Year Olds,Other Small Contracts,Cintre,104.72, 18-Oct-2018
647,Revenue,CAHD,Home Care - Elderly - South,Other Small Contracts,Cintre,180.88, 18-Oct-2018
648,Revenue,CAHD,Home Care - Elderly - North,Other Small Contracts,Cintre,433.16, 18-Oct-2018
649,Revenue,CAHD,18-25 Year Olds,Other Small Contracts,Cintre,90.44, 26-Oct-2018
650,Revenue,CAHD,Home Care - Elderly - South,Other Small Contracts,Cintre,447.44, 26-Oct-2018
651,Revenue,CAHD,Home Care - Elderly - North,Other Small Contracts,Cintre,233.24, 26-Oct-2018
652,Revenue,CAHD,18-25 Year Olds,Other Small Contracts,Cintre,57.12, 26-Oct-2018
653,Revenue,CAHD,Home Care - Elderly - South,Other Small Contracts,Cintre,761.6, 26-Oct-2018
654,Revenue,CAHD,Home Care - Elderly - North,Other Small Contracts,Cintre,542.64, 26-Oct-2018
655,Revenue,CAHD,18-25 Year Olds,Other Small Contracts,Cintre,104.72, 31-Oct-2018
656,Revenue,CAHD,Home Care - Elderly - South,Other Small Contracts,Cintre,780.64, 31-Oct-2018
657,Revenue,CAHD,Home Care - Elderly - North,Other Small Contracts,Cintre,552.16, 31-Oct-2018
658,Revenue,CAHD,Learning Difficulties,Premises Hire,Circadian Trust,796, 09-Oct-2018
659,Revenue,CAHD,Learning Difficulties,Premises Hire,Circadian Trust,910, 09-Oct-2018
660,Revenue,CAHD,Learning Difficulties,Premises Hire,Circadian Trust,845, 09-Oct-2018
661,Revenue,CAHD,Learning Difficulties,Premises Hire,Circadian Trust,845, 09-Oct-2018
662,Revenue,CAHD,Learning Difficulties,Premises Hire,Circadian Trust,585, 22-Oct-2018
663,Revenue,CAHD,Future Bright,Fees - General,City of Bristol College,635, 05-Oct-2018
664,Revenue,CAHD,Future Bright,Fees - General,City of Bristol College,1265, 26-Oct-2018
665,Revenue,CAHD,Future Bright,Fees - General,City of Bristol College,720, 26-Oct-2018
666,Revenue,CAHD,Information Systems - Software,Software Support & Maintenance,Civica UK Limited,532.62, 15-Oct-2018
667,Revenue,CAHD,Information Systems - Software,Software Support & Maintenance,Civica UK Limited,2202.92, 12-Oct-2018
668,Revenue,CAHD,MH Purchasing - Younger,Permanent Residential,Claro Homes,2803.6, 23-Oct-2018
669,Revenue,CAHD,Section 117 Placements MH Younger,Permanent Residential,Claro Homes,3471.28, 23-Oct-2018
670,Revenue,CAHD,Bed Purchasing - Southmead Hospital,Respite Planned - Nursing,Claro Homes,3240.44, 23-Oct-2018
671,Revenue,CAHD,Bed Purchasing - South,Permanent Residential,Cleeve Lodge,3600, 23-Oct-2018
672,Revenue,CAHD,Bed Purchasing - South,Permanent Residential,Cleeve Lodge,1277.76, 23-Oct-2018
673,Revenue,CAHD,Bed Purchasing - Southmead Hospital,Permanent Residential,Cleeve Lodge,2853.2, 23-Oct-2018
674,Revenue,CAHD,Bed Purchasing - South,Permanent Residential,Cleeve Lodge,3014.16, 23-Oct-2018
675,Revenue,CAHD,Bed Purchasing - South,Permanent Residential,Cleeve Lodge,3220.04, 23-Oct-2018
676,Revenue,CAHD,Bed Purchasing - South,Permanent Residential,Cleeve Lodge,2787.08, 23-Oct-2018
677,Revenue,CAHD,Bed Purchasing - South,Permanent Residential,Cleeve Lodge,2573.84, 23-Oct-2018
678,Revenue,CAHD,Bed Purchasing - South,Permanent Residential,Cleeve Lodge,2955.12, 23-Oct-2018
679,Revenue,CAHD,Bed Purchasing - South,Respite Planned - Residential,Cleeve Lodge,900, 23-Oct-2018
680,Revenue,CAHD,Home Care - Elderly - North,Other Small Contracts,Clover Health and Home Care Ltd,1450.4, 09-Oct-2018
681,Revenue,CAHD,Home Care - Elderly - North,Other Small Contracts,Clover Health and Home Care Ltd,1450.4, 03-Oct-2018
682,Revenue,CAHD,Home Care - Elderly - North,Other Small Contracts,Clover Health and Home Care Ltd,1450.4, 12-Oct-2018
683,Revenue,CAHD,Home Care - Elderly - North,Other Small Contracts,Clover Health and Home Care Ltd,1512.56, 02-Oct-2018
684,Revenue,CAHD,Bed Purchasing - South,Permanent Residential,Collingwood Residential Home,2900, 23-Oct-2018
685,Revenue,CAHD,Bed Purchasing - South,Permanent Residential,Collingwood Residential Home,2760, 23-Oct-2018
686,Revenue,CAHD,Bed Purchasing - South,Permanent Residential,Collingwood Residential Home,2188.76, 23-Oct-2018
687,Revenue,CAHD,Bed Purchasing - South,Permanent Residential,Collingwood Residential Home,2477.4, 23-Oct-2018
688,Revenue,CAHD,Bed Purchasing - South,Permanent Residential,Collingwood Residential Home,2364.08, 23-Oct-2018
689,Revenue,CAHD,Bed Purchasing - South,Permanent Residential,Collingwood Residential Home,2571.43, 23-Oct-2018
690,Revenue,CAHD,Bed Purchasing - South,Permanent Residential,Collingwood Residential Home,2547.52, 23-Oct-2018
691,Revenue,CAHD,Bed Purchasing - South,Permanent Residential,Collingwood Residential Home,2445.6, 23-Oct-2018
692,Revenue,CAHD,Schools Specific Grant Income,Other Public Bodies,Colston`s Girls School Trust,630, 29-Oct-2018
693,Revenue,CAHD,Home Care - Elderly - North,Other Small Contracts,Complimenting Care and Training Services (CCTS) Lt,12396.29, 12-Oct-2018
694,Revenue,CAHD,Home Care - Elderly - North,Other Small Contracts,Complimenting Care and Training Services (CCTS) Lt,11760.11, 12-Oct-2018
695,Revenue,CAHD,Home Care - Elderly - North,Other Small Contracts,Complimenting Care and Training Services (CCTS) Lt,11663.3, 05-Oct-2018
696,Revenue,CAHD,Homecare - Central,Other Small Contracts,Complimenting Care and Training Services (CCTS) Lt,318.09, 18-Oct-2018
697,Revenue,CAHD,Home Care - Elderly - North,Other Small Contracts,Complimenting Care and Training Services (CCTS) Lt,11760.11, 18-Oct-2018
698,Revenue,CAHD,Homecare - Central,Other Small Contracts,Complimenting Care and Training Services (CCTS) Lt,331.92, 19-Oct-2018
699,Revenue,CAHD,Home Care - Elderly - North,Other Small Contracts,Complimenting Care and Training Services (CCTS) Lt,11497.34, 19-Oct-2018
700,Revenue,CAHD,18-25 Year Olds,Other Small Contracts,Complimenting Care and Training Services (CCTS) Lt,115.25, 31-Oct-2018
701,Revenue,CAHD,Homecare - Central,Other Small Contracts,Complimenting Care and Training Services (CCTS) Lt,350.36, 31-Oct-2018
702,Revenue,CAHD,Home Care - Elderly - North,Other Small Contracts,Complimenting Care and Training Services (CCTS) Lt,11437.41, 31-Oct-2018
703,Revenue,CAHD,Pathway 1 - Re-Ablement Home Care,Other Small Contracts,Complimenting Care and Training Services (CCTS) Lt,4130.56, 26-Oct-2018
704,Revenue,CAHD,Performance Management Support,Training Expenses,ComputerWorld Systems Limited,1635, 15-Oct-2018
705,Revenue,CAHD,Performance Management Support,Training Expenses,ComputerWorld Systems Limited,1445, 18-Oct-2018
706,Revenue,CAHD,Statemented Support Equipment,Educational Supplies & Equipment,Connevans Limited,1557.25, 12-Oct-2018
707,Revenue,CAHD,Bed and Breakfast,Bed & Breakfast,Connolly & Callaghan Limited,539, 30-Oct-2018
708,Revenue,CAHD,Bed and Breakfast,Bed & Breakfast,Connolly & Callaghan Limited,539, 30-Oct-2018
709,Revenue,CAHD,Bed and Breakfast,Bed & Breakfast,Connolly & Callaghan Limited,448, 29-Oct-2018
710,Revenue,CAHD,Bed and Breakfast,Bed & Breakfast,Connolly & Callaghan Limited,420, 29-Oct-2018
711,Revenue,CAHD,Bed and Breakfast,Bed & Breakfast,Connolly & Callaghan Limited,798, 01-Oct-2018
712,Revenue,CAHD,Bed and Breakfast,Bed & Breakfast,Connolly & Callaghan Limited,581, 03-Oct-2018
713,Revenue,CAHD,Bed and Breakfast,Bed & Breakfast,Connolly & Callaghan Limited,455, 09-Oct-2018
714,Revenue,CAHD,Bed and Breakfast,Bed & Breakfast,Connolly & Callaghan Limited,791, 09-Oct-2018
715,Revenue,CAHD,Bed and Breakfast,Bed & Breakfast,Connolly & Callaghan Limited,546, 03-Oct-2018
716,Revenue,CAHD,Bed and Breakfast,Bed & Breakfast,Connolly & Callaghan Limited,581, 03-Oct-2018
717,Revenue,CAHD,Bed and Breakfast,Bed & Breakfast,Connolly & Callaghan Limited,798, 03-Oct-2018
718,Revenue,CAHD,Bed and Breakfast,Bed & Breakfast,Connolly & Callaghan Limited,658, 09-Oct-2018
719,Revenue,CAHD,Bed and Breakfast,Bed & Breakfast,Connolly & Callaghan Limited,840, 09-Oct-2018
720,Revenue,CAHD,Bed and Breakfast,Bed & Breakfast,Connolly & Callaghan Limited,497, 03-Oct-2018
721,Revenue,CAHD,Bed and Breakfast,Bed & Breakfast,Connolly & Callaghan Limited,498, 09-Oct-2018
722,Revenue,CAHD,Bed and Breakfast,Bed & Breakfast,Connolly & Callaghan Limited,455, 03-Oct-2018
723,Revenue,CAHD,Bed and Breakfast,Bed & Breakfast,Connolly & Callaghan Limited,497, 16-Oct-2018
724,Revenue,CAHD,Younger MH non-res purchasing,Supported Living,Connolly & Callaghan Limited,420, 02-Oct-2018
725,Revenue,CAHD,Bed and Breakfast,Bed & Breakfast,Connolly & Callaghan Limited,581, 30-Oct-2018
726,Revenue,CAHD,Bed and Breakfast,Bed & Breakfast,Connolly & Callaghan Limited,455, 30-Oct-2018
727,Revenue,CAHD,Bed and Breakfast,Bed & Breakfast,Connolly & Callaghan Limited,497, 31-Oct-2018
728,Revenue,CAHD,Bed and Breakfast,Bed & Breakfast,Connolly & Callaghan Limited,455, 30-Oct-2018
729,Revenue,CAHD,Bed and Breakfast,Bed & Breakfast,Connolly & Callaghan Limited,798, 30-Oct-2018
730,Revenue,CAHD,Bed and Breakfast,Bed & Breakfast,Connolly & Callaghan Limited,658, 31-Oct-2018
731,Revenue,CAHD,Bed and Breakfast,Bed & Breakfast,Connolly & Callaghan Limited,840, 31-Oct-2018
732,Revenue,CAHD,Bed and Breakfast,Bed & Breakfast,Connolly & Callaghan Limited,497, 30-Oct-2018
733,Revenue,CAHD,Bed and Breakfast,Bed & Breakfast,Connolly & Callaghan Limited,581, 31-Oct-2018
734,Revenue,CAHD,Bed and Breakfast,Bed & Breakfast,Connolly & Callaghan Limited,497, 30-Oct-2018
735,Revenue,CAHD,Younger MH non-res purchasing,Supported Living,Connolly & Callaghan Limited,420, 24-Oct-2018
736,Revenue,CAHD,Bed and Breakfast,Bed & Breakfast,Connolly & Callaghan Limited,532, 18-Oct-2018
737,Revenue,CAHD,Bed and Breakfast,Bed & Breakfast,Connolly & Callaghan Limited,455, 18-Oct-2018
738,Revenue,CAHD,Bed and Breakfast,Bed & Breakfast,Connolly & Callaghan Limited,497, 18-Oct-2018
739,Revenue,CAHD,Bed and Breakfast,Bed & Breakfast,Connolly & Callaghan Limited,546, 18-Oct-2018
740,Revenue,CAHD,Bed and Breakfast,Bed & Breakfast,Connolly & Callaghan Limited,581, 18-Oct-2018
741,Revenue,CAHD,Bed and Breakfast,Bed & Breakfast,Connolly & Callaghan Limited,455, 18-Oct-2018
742,Revenue,CAHD,Bed and Breakfast,Bed & Breakfast,Connolly & Callaghan Limited,658, 18-Oct-2018
743,Revenue,CAHD,Bed and Breakfast,Bed & Breakfast,Connolly & Callaghan Limited,840, 18-Oct-2018
744,Revenue,CAHD,Bed and Breakfast,Bed & Breakfast,Connolly & Callaghan Limited,497, 18-Oct-2018
745,Revenue,CAHD,Bed and Breakfast,Bed & Breakfast,Connolly & Callaghan Limited,581, 18-Oct-2018
746,Revenue,CAHD,Bed and Breakfast,Bed & Breakfast,Connolly & Callaghan Limited,798, 18-Oct-2018
747,Revenue,CAHD,Younger MH non-res purchasing,Supported Living,Connolly & Callaghan Limited,420, 24-Oct-2018
748,Revenue,CAHD,Bed and Breakfast,Bed & Breakfast,Connolly & Callaghan Limited,532, 23-Oct-2018
749,Revenue,CAHD,Bed and Breakfast,Bed & Breakfast,Connolly & Callaghan Limited,455, 25-Oct-2018
750,Revenue,CAHD,Bed and Breakfast,Bed & Breakfast,Connolly & Callaghan Limited,497, 23-Oct-2018
751,Revenue,CAHD,Bed and Breakfast,Bed & Breakfast,Connolly & Callaghan Limited,546, 23-Oct-2018
752,Revenue,CAHD,Bed and Breakfast,Bed & Breakfast,Connolly & Callaghan Limited,455, 23-Oct-2018
753,Revenue,CAHD,Bed and Breakfast,Bed & Breakfast,Connolly & Callaghan Limited,658, 23-Oct-2018
754,Revenue,CAHD,Bed and Breakfast,Bed & Breakfast,Connolly & Callaghan Limited,840, 25-Oct-2018
755,Revenue,CAHD,Bed and Breakfast,Bed & Breakfast,Connolly & Callaghan Limited,497, 23-Oct-2018
756,Revenue,CAHD,Bed and Breakfast,Bed & Breakfast,Connolly & Callaghan Limited,581, 23-Oct-2018
757,Revenue,CAHD,Bed and Breakfast,Bed & Breakfast,Connolly & Callaghan Limited,497, 24-Oct-2018
758,Revenue,CAHD,Bed and Breakfast,Bed & Breakfast,Connolly & Callaghan Limited,798, 23-Oct-2018
759,Revenue,CAHD,Younger MH non-res purchasing,Supported Living,Connolly & Callaghan Limited,420, 24-Oct-2018
760,Revenue,CAHD,CSC - Fostering Carer Support,Care Mgt/Asesmnt Staff Pay,Core Assets Expert Services Ltd T/A Carter Brown,2212.25, 09-Oct-2018
761,Revenue,CAHD,Schools Specific Grant Income,Other Public Bodies,Cotswold Chine School,630, 29-Oct-2018
762,Revenue,CAHD,18-25 Year Olds,Permanent Residential,Craegmoor Cedars Gloucester Priory,9718.25, 12-Oct-2018
763,Revenue,CAHD,Tenancy Start Up Scheme,Other Supplies & Services,Individual,1200, 15-Oct-2018
764,Revenue,CAHD,Bed Purchasing - North,Permanent Residential,Cream Iii Ltd,8441.4, 23-Oct-2018
765,Revenue,CAHD,Bed purchasing - S28A Under 65 - South,Permanent Residential,Creedy Court,10349.56, 23-Oct-2018
766,Revenue,CAHD,Bed purchasing - S28A Under 65 - South,Permanent Residential,Creedy Court,8696.2, 23-Oct-2018
767,Revenue,CAHD,Bed Purchasing - North,Permanent Residential,Creedy Court,13724.6, 23-Oct-2018
768,Revenue,CAHD,Childrens - Safeguarding Board,Training Expenses,Cruidin Training and Consultancy Ltd,2106.5, 12-Oct-2018
769,Revenue,CAHD,Telecare,Other Supplies & Services,CSL Dualcom,643.5, 23-Oct-2018
770,Revenue,CAHD,Brokerage and Information Service,Grants to Voluntary Bodies,Curo Care & Support,32098.75, 01-Oct-2018
771,Revenue,CAHD,CSC - LAC Placements,Client Transport,Individual,854.55, 05-Oct-2018
772,Revenue,CAHD,Bed Purchasing - South,Permanent Residential,Daneswood,11981.24, 23-Oct-2018
773,Revenue,CAHD,Home Care - Elderly - South,Day Care / Social Activities,Daneswood,1380.32, 23-Oct-2018
774,Revenue,CAHD,Bed Purchasing - North,Permanent Residential,Daneswood,10023.44, 23-Oct-2018
775,Revenue,CAHD,Homelessness Contingency,Other Supplies & Services,Individual,595.12, 09-Oct-2018
776,Revenue,CAHD,Bed Purchasing - Elderly S117- North,Permanent Nursing,Danshell Healthcare Group,10617.44, 23-Oct-2018
777,Revenue,CAHD,Jointly Funded H&SC Packages,Permanent Nursing,Danshell Healthcare Group,1575.48, 23-Oct-2018
778,Revenue,CAHD,Learning Difficulties PSL,Other Supplies & Services,Individual,2267.91, 22-Oct-2018
779,Revenue,CAHD,Drug and Alcohol Programme,Other Small Contracts,Individual,975, 15-Oct-2018
780,Revenue,CAHD,Children Centres - North Locality,Printing & Stationery,De Lage Landen Leasing Ltd,1117.23, 30-Oct-2018
781,Revenue,CAHD,Children Centres - South Locality,Printing & Stationery,De Lage Landen Leasing Ltd,1117.22, 30-Oct-2018
782,Revenue,CAHD,CSC - Adoption Support Fund,Post Adoption,Individual,202.67, 30-Oct-2018
783,Revenue,CAHD,CSC - Adoption Support Fund,Post Adoption,Individual,202.67, 30-Oct-2018
784,Revenue,CAHD,CSC - Adoption Support Fund,Post Adoption,Individual,202.66, 30-Oct-2018
785,Revenue,CAHD,Adult Safeguarding Board,Complaints External Expenses,Individual,2027, 09-Oct-2018
786,Revenue,CAHD,Schools Specific Grant Income,Other Public Bodies,Dene Magna School,630, 29-Oct-2018
787,Revenue,CAHD,Home Care - Elderly - South,Supported Living,Design House,2599.08, 23-Oct-2018
788,Revenue,CAHD,Home Care - Elderly - South,Supported Living,Design House,2991.52, 23-Oct-2018
789,Revenue,CAHD,Home Care - Elderly - South,Supported Living,Design House,3059.64, 23-Oct-2018
790,Revenue,CAHD,Home Care - Elderly - South,Supported Living,Design House,2923.4, 23-Oct-2018
791,Revenue,CAHD,Home Care - Elderly - South,Day Care / Social Activities,Design House,501.92, 23-Oct-2018
792,Revenue,CAHD,Home Care - Elderly - North,Day Care / Social Activities,Design House,2383.88, 23-Oct-2018
793,Revenue,CAHD,Home Care - Elderly - South,Day Care / Social Activities,Design House,1499.56, 23-Oct-2018
794,Revenue,CAHD,Home Care - Elderly - South,Supported Living,Design House,2577, 23-Oct-2018
795,Revenue,CAHD,Home Care - Elderly - South,Supported Living,Design House,2577, 23-Oct-2018
796,Revenue,CAHD,Home Care - Elderly - South,Supported Living,Design House,2099.16, 23-Oct-2018
797,Revenue,CAHD,Home Care - Elderly - South,Day Care / Social Activities,Design House,501.92, 23-Oct-2018
798,Revenue,CAHD,Home Care - Elderly - South,Supported Living,Design House,1852.24, 23-Oct-2018
799,Revenue,CAHD,Home Care - Elderly - South,Supported Living,Design House,2457.84, 23-Oct-2018
800,Revenue,CAHD,Home Care - Elderly - South,Supported Living,Design House,4206.6, 23-Oct-2018
801,Revenue,CAHD,Home Care - Elderly - South,Supported Living,Design House,2982.96, 23-Oct-2018
802,Revenue,CAHD,Home Care - Elderly - South,Day Care / Social Activities,Design House,1470.8, 23-Oct-2018
803,Revenue,CAHD,Home Care - Elderly - South,Supported Living,Design House,2832.52, 23-Oct-2018
804,Revenue,CAHD,Home Care - Elderly - South,Supported Living,Design House,2483.44, 23-Oct-2018
805,Revenue,CAHD,Home Care - Elderly - South,Supported Living,Design House,2204.8, 23-Oct-2018
806,Revenue,CAHD,Home Care - Elderly - South,Supported Living,Design House,2204.8, 23-Oct-2018
807,Revenue,CAHD,Home Care - Elderly - South,Other Small Contracts,Dhek Bhal,416.34, 18-Oct-2018
808,Revenue,CAHD,Home Care - Elderly - North,Other Small Contracts,Dhek Bhal,118.22, 18-Oct-2018
809,Revenue,CAHD,Home Care - Elderly - South,Other Small Contracts,Dhek Bhal,406.06, 18-Oct-2018
810,Revenue,CAHD,Home Care - Elderly - North,Other Small Contracts,Dhek Bhal,123.36, 18-Oct-2018
811,Revenue,CAHD,Early Years Inclusion Fund,Other Public Bodies,Individual,1600, 30-Oct-2018
812,Revenue,CAHD,Home Care - Elderly - South,Supported Living,Dimensions  Suite 2,1858.68, 23-Oct-2018
813,Revenue,CAHD,Home Care - Elderly - South,Supported Living,Dimensions  Suite 2,1857.88, 23-Oct-2018
814,Revenue,CAHD,Home Care - Elderly - South,Supported Living,Dimensions  Suite 2,1857.88, 23-Oct-2018
815,Revenue,CAHD,Home Care - Elderly - South,Supported Living,Dimensions  Suite 2,1857.88, 23-Oct-2018
816,Revenue,CAHD,Home Care - Elderly - North,Supported Living,Dimensions  Suite 2,1857.88, 23-Oct-2018
817,Revenue,CAHD,Bed Purchasing - South,Permanent Residential,Dimensions  Suite 2,5498.8, 23-Oct-2018
818,Revenue,CAHD,Bed Purchasing - South,Permanent Residential,Dimensions  Suite 2,2740.36, 23-Oct-2018
819,Revenue,CAHD,SACRE,Consultants Fees,Diocesan Board of Finance Limited,2343.38, 26-Oct-2018
820,Revenue,CAHD,Training - Adult Services,Training Expenses,Do The Write Thing,850, 18-Oct-2018
821,Revenue,CAHD,Community Support - South,Preventative Assistance,Dobbins Industrial Cleaning Limited,920, 12-Oct-2018
822,Revenue,CAHD,Homecare - Central,Other Small Contracts,DoCare Limited,243.9, 22-Oct-2018
823,Revenue,CAHD,Home Care - Elderly - South,Day Care / Social Activities,DoCare Limited,68.51, 22-Oct-2018
824,Revenue,CAHD,Home Care - Elderly - South,Other Small Contracts,DoCare Limited,1095.37, 22-Oct-2018
825,Revenue,CAHD,Home Care - Elderly - North,Other Small Contracts,DoCare Limited,5236.65, 22-Oct-2018
826,Revenue,CAHD,Homecare - Central,Other Small Contracts,DoCare Limited,249.32, 22-Oct-2018
827,Revenue,CAHD,Home Care - Elderly - South,Day Care / Social Activities,DoCare Limited,73.78, 22-Oct-2018
828,Revenue,CAHD,Home Care - Elderly - South,Other Small Contracts,DoCare Limited,1117.34, 22-Oct-2018
829,Revenue,CAHD,Home Care - Elderly - North,Other Small Contracts,DoCare Limited,5388.26, 22-Oct-2018
830,Revenue,CAHD,Homecare - Central,Other Small Contracts,DoCare Limited,254.74, 22-Oct-2018
831,Revenue,CAHD,Home Care - Elderly - South,Day Care / Social Activities,DoCare Limited,73.78, 22-Oct-2018
832,Revenue,CAHD,Home Care - Elderly - South,Other Small Contracts,DoCare Limited,1126.68, 22-Oct-2018
833,Revenue,CAHD,Home Care - Elderly - North,Other Small Contracts,DoCare Limited,5441.67, 22-Oct-2018
834,Revenue,CAHD,Homecare - Central,Other Small Contracts,DoCare Limited,168.02, 22-Oct-2018
835,Revenue,CAHD,Home Care - Elderly - South,Day Care / Social Activities,DoCare Limited,79.05, 22-Oct-2018
836,Revenue,CAHD,Home Care - Elderly - South,Other Small Contracts,DoCare Limited,1003.82, 22-Oct-2018
837,Revenue,CAHD,Home Care - Elderly - North,Other Small Contracts,DoCare Limited,5304.92, 22-Oct-2018
838,Revenue,CAHD,Homecare - Central,Other Small Contracts,DoCare Limited,211.38, 26-Oct-2018
839,Revenue,CAHD,Home Care - Elderly - South,Day Care / Social Activities,DoCare Limited,31.62, 26-Oct-2018
840,Revenue,CAHD,Home Care - Elderly - South,Other Small Contracts,DoCare Limited,1009.09, 26-Oct-2018
841,Revenue,CAHD,Home Care - Elderly - North,Other Small Contracts,DoCare Limited,5183.09, 26-Oct-2018
842,Revenue,CAHD,Personnel Costs,Legal Fees,Individual,1480, 15-Oct-2018
843,Revenue,CAHD,Schools Block Growth Contingency,Other Public Bodies,Downend School,74474.58, 23-Oct-2018
844,Revenue,CAHD,Statemented Support Academies,Schools Funding,Downend School,1119.41, 24-Oct-2018
845,Revenue,CAHD,Statemented Support Academies,Schools Funding,Downend School,541.62, 24-Oct-2018
846,Revenue,CAHD,Statemented Support Academies,Schools Funding,Downend School,1166.58, 24-Oct-2018
847,Revenue,CAHD,Statemented Support Academies,Schools Funding,Downend School,565.2, 24-Oct-2018
848,Revenue,CAHD,Statemented Support Academies,Schools Funding,Downend School,1154.78, 24-Oct-2018
849,Revenue,CAHD,Statemented Support Academies,Schools Funding,Downend School,942.53, 24-Oct-2018
850,Revenue,CAHD,Statemented Support Academies,Schools Funding,Downend School,671.33, 24-Oct-2018
851,Revenue,CAHD,Statemented Support Academies,Schools Funding,Downend School,612.37, 24-Oct-2018
852,Revenue,CAHD,Statemented Support Academies,Schools Funding,Downend School,694.91, 24-Oct-2018
853,Revenue,CAHD,Statemented Support Academies,Schools Funding,Downend School,600.58, 24-Oct-2018
854,Revenue,CAHD,Statemented Support Academies,Schools Funding,Downend School,553.41, 24-Oct-2018
855,Revenue,CAHD,Statemented Support Academies,Schools Funding,Downend School,1850.49, 24-Oct-2018
856,Revenue,CAHD,Statemented Support Academies,Schools Funding,Downend School,553.41, 24-Oct-2018
857,Revenue,CAHD,Social Lettings Agency,Other Supplies & Services,Individual,605.64, 24-Oct-2018
858,Revenue,CAHD,South Glos Users in South Glos Homes,Permanent Nursing,Drakes Court,4112.16, 23-Oct-2018
859,Revenue,CAHD,Bed Purchasing - Southmead Hospital,Permanent Nursing,Drakes Court,2832.84, 23-Oct-2018
860,Revenue,CAHD,South Glos Users in South Glos Homes,Permanent Nursing,Drakes Court,632.64, 23-Oct-2018
861,Revenue,CAHD,Bed Purchasing - Southmead Hospital,Permanent Nursing,Drakes Court,2017.24, 23-Oct-2018
862,Revenue,CAHD,South Glos Users in South Glos Homes,Permanent Nursing,Drakes Court,632.64, 23-Oct-2018
863,Revenue,CAHD,Bed Purchasing - South,Permanent Nursing,Drakes Court,2832.84, 23-Oct-2018
864,Revenue,CAHD,South Glos Users in South Glos Homes,Permanent Nursing,Drakes Court,632.64, 23-Oct-2018
865,Revenue,CAHD,South Glos Users in South Glos Homes,Permanent Nursing,Drakes Court,632.64, 23-Oct-2018
866,Revenue,CAHD,Bed Purchasing - Southmead Hospital,Permanent Nursing,Drakes Court,2832.84, 23-Oct-2018
867,Revenue,CAHD,South Glos Users in South Glos Homes,Permanent Nursing,Drakes Court,632.64, 23-Oct-2018
868,Revenue,CAHD,South Glos Users in South Glos Homes,Permanent Nursing,Drakes Court,632.64, 23-Oct-2018
869,Revenue,CAHD,Bed Purchasing - North,Permanent Nursing,Drakes Court,2017.24, 23-Oct-2018
870,Revenue,CAHD,Bed Purchasing - Southmead Hospital,Permanent Nursing,Drakes Court,2017.24, 23-Oct-2018
871,Revenue,CAHD,South Glos Users in South Glos Homes,Permanent Nursing,Drakes Court,632.64, 23-Oct-2018
872,Revenue,CAHD,South Glos Users in South Glos Homes,Permanent Nursing,Drakes Court,4044.38, 23-Oct-2018
873,Revenue,CAHD,South Glos Users in South Glos Homes,Permanent Nursing,Drakes Court,632.64, 23-Oct-2018
874,Revenue,CAHD,South Glos Users in South Glos Homes,Permanent Nursing,Drakes Court,632.64, 23-Oct-2018
875,Revenue,CAHD,South Glos Users in South Glos Homes,Permanent Nursing,Drakes Court,632.64, 23-Oct-2018
876,Revenue,CAHD,South Glos Users in South Glos Homes,Permanent Nursing,Drakes Court,632.64, 23-Oct-2018
877,Revenue,CAHD,Bed Purchasing - North,Permanent Residential,Drakes Court,1956.04, 23-Oct-2018
878,Revenue,CAHD,Bed Purchasing - Central,Permanent Residential,Drakes Court,2780, 23-Oct-2018
879,Revenue,CAHD,South Glos Users in South Glos Homes,Permanent Nursing,Drakes Court,632.64, 23-Oct-2018
880,Revenue,CAHD,South Glos Users in South Glos Homes,Permanent Nursing,Drakes Court,632.64, 23-Oct-2018
881,Revenue,CAHD,South Glos Users in South Glos Homes,Permanent Nursing,Drakes Court,632.64, 23-Oct-2018
882,Revenue,CAHD,Community Support - South,Preventative Assistance,Driving Miss Daisy Victoria Park,560, 10-Oct-2018
883,Revenue,CAHD,MH Purchasing - Younger,Permanent Residential,Dunraven House,2316.16, 23-Oct-2018
884,Revenue,CAHD,Bed and Breakfast,Bed & Breakfast,Individual,567, 11-Oct-2018
885,Revenue,CAHD,Bed and Breakfast,Bed & Breakfast,Individual,567, 11-Oct-2018
886,Revenue,CAHD,Bed and Breakfast,Bed & Breakfast,Individual,532, 09-Oct-2018
887,Revenue,CAHD,Bed and Breakfast,Bed & Breakfast,Individual,567, 11-Oct-2018
888,Revenue,CAHD,Bed and Breakfast,Bed & Breakfast,Individual,532, 09-Oct-2018
889,Revenue,CAHD,Housing Needs,Fees - General,Individual,567, 16-Oct-2018
890,Revenue,CAHD,Bed and Breakfast,Bed & Breakfast,Individual,505, 17-Oct-2018
891,Revenue,CAHD,Bed and Breakfast,Bed & Breakfast,Individual,532, 16-Oct-2018
892,Revenue,CAHD,Bed and Breakfast,Bed & Breakfast,Individual,567, 16-Oct-2018
893,Revenue,CAHD,Bed and Breakfast,Bed & Breakfast,Individual,707, 23-Oct-2018
894,Revenue,CAHD,Housing Needs,Fees - General,Individual,567, 23-Oct-2018
895,Revenue,CAHD,Bed and Breakfast,Bed & Breakfast,Individual,707, 30-Oct-2018
896,Revenue,CAHD,Housing Needs,Fees - General,Individual,567, 30-Oct-2018
897,Revenue,CAHD,Future Bright,Training Expenses,Eagle Education and Training Ltd,474.17, 01-Oct-2018
898,Revenue,CAHD,Bed Purchasing - North,Permanent Residential,East Court,2698.8, 23-Oct-2018
899,Revenue,CAHD,CSC - Corporate Parenting,Other Supplies & Services,Edge Church International,2120, 12-Oct-2018
900,Revenue,CAHD,CSC - Corporate Parenting,Other Supplies & Services,Edge Church International,2120, 16-Oct-2018
901,Revenue,CAHD,Bed Purchasing - South,Permanent Residential,Edgecumbe Lodge,2600, 23-Oct-2018
902,Revenue,CAHD,Bed Purchasing - Southmead Hospital,Permanent Residential,Edgecumbe Lodge,2148.68, 23-Oct-2018
903,Revenue,CAHD,Bed Purchasing - Elderly S117- North,Permanent Residential,Edgecumbe Lodge,2656, 23-Oct-2018
904,Revenue,CAHD,Bed Purchasing - Southmead Hospital,Fees & Charges Income - General,Edgecumbe Lodge,1755.84, 23-Oct-2018
905,Revenue,CAHD,Bed Purchasing - South,Permanent Residential,Edgecumbe Lodge,2220, 23-Oct-2018
906,Revenue,CAHD,Bed Purchasing - South,Respite Planned - Residential,Edgecumbe Lodge,4271.43, 23-Oct-2018
907,Revenue,CAHD,Bed Purchasing - South,Permanent Residential,Edgecumbe Lodge,2220, 23-Oct-2018
908,Revenue,CAHD,Bed Purchasing - South,Permanent Residential,Edgecumbe Lodge,2445.6, 23-Oct-2018
909,Revenue,CAHD,Bed Purchasing - Southmead Hospital,Permanent Residential,Edgecumbe Lodge,2477.4, 23-Oct-2018
910,Revenue,CAHD,Bed Purchasing - North,Permanent Residential,Edgecumbe Lodge,2197.2, 23-Oct-2018
911,Revenue,CAHD,Bed Purchasing - South,Permanent Residential,Edgemont House Ltd,2600, 23-Oct-2018
912,Revenue,CAHD,Bed Purchasing - South,Permanent Residential,Edgemont House Ltd,1948.72, 23-Oct-2018
913,Revenue,CAHD,Bed Purchasing - South,Permanent Residential,Edgemont House Ltd,2649.4, 23-Oct-2018
914,Revenue,CAHD,Bed Purchasing - South,Permanent Residential,Edgemont House Ltd,4550, 23-Oct-2018
915,Revenue,CAHD,Bed Purchasing - South,Fees & Charges Income - General,Edgemont House Ltd,696.51, 23-Oct-2018
916,Revenue,CAHD,South Glos Users in South Glos Homes,Permanent Nursing,Edgemont View Nursing Home,632.64, 23-Oct-2018
917,Revenue,CAHD,Bed Purchasing - South,Permanent Nursing,Edgemont View Nursing Home,3464.6, 23-Oct-2018
918,Revenue,CAHD,South Glos Users in South Glos Homes,Permanent Nursing,Edgemont View Nursing Home,632.64, 23-Oct-2018
919,Revenue,CAHD,South Glos Users in South Glos Homes,Permanent Nursing,Edgemont View Nursing Home,632.64, 23-Oct-2018
920,Revenue,CAHD,South Glos Users in South Glos Homes,Permanent Nursing,Edgemont View Nursing Home,632.64, 23-Oct-2018
921,Revenue,CAHD,Bed Purchasing - South,Permanent Nursing,Edgemont View Nursing Home,2500, 23-Oct-2018
922,Revenue,CAHD,South Glos Users in South Glos Homes,Permanent Nursing,Edgemont View Nursing Home,632.64, 23-Oct-2018
923,Revenue,CAHD,South Glos Users in South Glos Homes,Permanent Nursing,Edgemont View Nursing Home,632.64, 23-Oct-2018
924,Revenue,CAHD,South Glos Users in South Glos Homes,Permanent Nursing,Edgemont View Nursing Home,632.64, 23-Oct-2018
925,Revenue,CAHD,South Glos Users in South Glos Homes,Permanent Nursing,Edgemont View Nursing Home,632.64, 23-Oct-2018
926,Revenue,CAHD,South Glos Users in South Glos Homes,Permanent Nursing,Edgemont View Nursing Home,632.64, 23-Oct-2018
927,Revenue,CAHD,Bed Purchasing - South,Permanent Nursing,Edgemont View Nursing Home,2934.72, 23-Oct-2018
928,Revenue,CAHD,South Glos Users in South Glos Homes,Permanent Nursing,Edgemont View Nursing Home,632.64, 23-Oct-2018
929,Revenue,CAHD,South Glos Users in South Glos Homes,Permanent Nursing,Edgemont View Nursing Home,632.64, 23-Oct-2018
930,Revenue,CAHD,South Glos Users in South Glos Homes,Permanent Nursing,Edgemont View Nursing Home,632.64, 23-Oct-2018
931,Revenue,CAHD,South Glos Users in South Glos Homes,Permanent Nursing,Edgemont View Nursing Home,632.64, 23-Oct-2018
932,Revenue,CAHD,South Glos Users in South Glos Homes,Permanent Nursing,Edgemont View Nursing Home,632.64, 23-Oct-2018
933,Revenue,CAHD,Bed Purchasing - South,Permanent Nursing,Edgemont View Nursing Home,2934.72, 23-Oct-2018
934,Revenue,CAHD,South Glos Users in South Glos Homes,Permanent Nursing,Edgemont View Nursing Home,632.64, 23-Oct-2018
935,Revenue,CAHD,Bed Purchasing - South,Permanent Nursing,Edgemont View Nursing Home,2310.44, 23-Oct-2018
936,Revenue,CAHD,South Glos Users in South Glos Homes,Permanent Nursing,Edgemont View Nursing Home,632.64, 23-Oct-2018
937,Revenue,CAHD,South Glos Users in South Glos Homes,Permanent Nursing,Edgemont View Nursing Home,632.64, 23-Oct-2018
938,Revenue,CAHD,South Glos Users in South Glos Homes,Permanent Nursing,Edgemont View Nursing Home,632.64, 23-Oct-2018
939,Revenue,CAHD,NTS Grant - Trainee Social Wor,Training Expenses,EG People Development,1060.9, 11-Oct-2018
940,Revenue,CAHD,Early Years Inclusion Fund,Other Public Bodies,Individual,3600, 02-Oct-2018
941,Revenue,CAHD,Planning and Partnerships Procurement,Other Supplies & Services,Eldercare,2982.9, 12-Oct-2018
942,Revenue,CAHD,Planning and Partnerships Procurement,Other Supplies & Services,Eldercare,3023.16, 17-Oct-2018
943,Revenue,CAHD,Planning and Partnerships Procurement,Other Supplies & Services,Eldercare,2250.04, 12-Oct-2018
944,Revenue,CAHD,Bed and Breakfast,Bed & Breakfast,Elim Housing Association Limited,980, 26-Oct-2018
945,Revenue,CAHD,Bed and Breakfast,Bed & Breakfast,Elim Housing Association Limited,980, 26-Oct-2018
946,Revenue,CAHD,Supporting People Programme,Grants to Voluntary Bodies,Elim Housing Association Limited,5236, 01-Oct-2018
947,Revenue,CAHD,Home Care - Elderly - South,Day Care / Social Activities,Elite Home Care Ltd,185.2, 18-Oct-2018
948,Revenue,CAHD,Home Care - Elderly - South,Other Small Contracts,Elite Home Care Ltd,5590.64, 18-Oct-2018
949,Revenue,CAHD,Home Care - Elderly - North,Other Small Contracts,Elite Home Care Ltd,444.48, 18-Oct-2018
950,Revenue,CAHD,Home Care - Elderly - South,Day Care / Social Activities,Elite Home Care Ltd,180.57, 18-Oct-2018
951,Revenue,CAHD,Home Care - Elderly - South,Other Small Contracts,Elite Home Care Ltd,5453.28, 18-Oct-2018
952,Revenue,CAHD,Home Care - Elderly - North,Other Small Contracts,Elite Home Care Ltd,416.7, 18-Oct-2018
953,Revenue,CAHD,Home Care - Elderly - South,Day Care / Social Activities,Elite Home Care Ltd,185.2, 18-Oct-2018
954,Revenue,CAHD,Home Care - Elderly - South,Other Small Contracts,Elite Home Care Ltd,5656.23, 18-Oct-2018
955,Revenue,CAHD,Home Care - Elderly - North,Other Small Contracts,Elite Home Care Ltd,425.96, 18-Oct-2018
956,Revenue,CAHD,Home Care - Elderly - South,Day Care / Social Activities,Elite Home Care Ltd,189.83, 24-Oct-2018
957,Revenue,CAHD,Home Care - Elderly - South,Other Small Contracts,Elite Home Care Ltd,5961.81, 24-Oct-2018
958,Revenue,CAHD,Home Care - Elderly - North,Other Small Contracts,Elite Home Care Ltd,444.48, 24-Oct-2018
959,Revenue,CAHD,Home Care - Elderly - South,Day Care / Social Activities,Elite Home Care Ltd,185.2, 31-Oct-2018
960,Revenue,CAHD,Home Care - Elderly - South,Other Small Contracts,Elite Home Care Ltd,6356.9, 31-Oct-2018
961,Revenue,CAHD,Home Care - Elderly - North,Other Small Contracts,Elite Home Care Ltd,416.7, 31-Oct-2018
962,Revenue,CAHD,Bed Purchasing - South,Permanent Nursing,Ellenborough House,2934.72, 23-Oct-2018
963,Revenue,CAHD,Special ISB,Other Public Bodies,Enable Trust,1540.83, 23-Oct-2018
964,Revenue,CAHD,Special ISB,Other Public Bodies,Enable Trust,892.04, 23-Oct-2018
965,Revenue,CAHD,Special ISB,Other Public Bodies,Enable Trust,892.04, 23-Oct-2018
966,Revenue,CAHD,Special ISB,Other Public Bodies,Enable Trust,1175.88, 23-Oct-2018
967,Revenue,CAHD,Special ISB,Other Public Bodies,Enable Trust,1175.88, 23-Oct-2018
968,Revenue,CAHD,Special ISB,Other Public Bodies,Enable Trust,1175.88, 23-Oct-2018
969,Revenue,CAHD,Special ISB,Other Public Bodies,Enable Trust,1540.83, 23-Oct-2018
970,Revenue,CAHD,Special ISB,Other Public Bodies,Enable Trust,892.04, 23-Oct-2018
971,Revenue,CAHD,Special ISB,Other Public Bodies,Enable Trust,1175.88, 23-Oct-2018
972,Revenue,CAHD,Special ISB,Other Public Bodies,Enable Trust,1175.88, 23-Oct-2018
973,Revenue,CAHD,Special ISB,Other Public Bodies,Enable Trust,648.71, 23-Oct-2018
974,Revenue,CAHD,Special ISB,Other Public Bodies,Enable Trust,1540.83, 23-Oct-2018
975,Revenue,CAHD,Special ISB,Other Public Bodies,Enable Trust,648.71, 23-Oct-2018
976,Revenue,CAHD,Special ISB,Other Public Bodies,Enable Trust,1013.74, 23-Oct-2018
977,Revenue,CAHD,Special ISB,Other Public Bodies,Enable Trust,892.04, 23-Oct-2018
978,Revenue,CAHD,Special ISB,Other Public Bodies,Enable Trust,1175.88, 23-Oct-2018
979,Revenue,CAHD,Special ISB,Other Public Bodies,Enable Trust,1175.88, 23-Oct-2018
980,Revenue,CAHD,Special ISB,Other Public Bodies,Enable Trust,1013.74, 23-Oct-2018
981,Revenue,CAHD,Special ISB,Other Public Bodies,Enable Trust,892.04, 23-Oct-2018
982,Revenue,CAHD,Special ISB,Other Public Bodies,Enable Trust,1175.88, 23-Oct-2018
983,Revenue,CAHD,Special ISB,Other Public Bodies,Enable Trust,648.71, 23-Oct-2018
984,Revenue,CAHD,Special ISB,Other Public Bodies,Enable Trust,892.04, 23-Oct-2018
985,Revenue,CAHD,Special ISB,Other Public Bodies,Enable Trust,1540.83, 23-Oct-2018
986,Revenue,CAHD,Special ISB,Other Public Bodies,Enable Trust,1175.88, 23-Oct-2018
987,Revenue,CAHD,Special ISB,Other Public Bodies,Enable Trust,892.04, 23-Oct-2018
988,Revenue,CAHD,Special ISB,Other Public Bodies,Enable Trust,1175.88, 23-Oct-2018
989,Revenue,CAHD,Special ISB,Other Public Bodies,Enable Trust,892.04, 23-Oct-2018
990,Revenue,CAHD,Special ISB,Other Public Bodies,Enable Trust,1175.88, 23-Oct-2018
991,Revenue,CAHD,Special ISB,Other Public Bodies,Enable Trust,2189.53, 23-Oct-2018
992,Revenue,CAHD,Special ISB,Other Public Bodies,Enable Trust,1175.88, 23-Oct-2018
993,Revenue,CAHD,Special ISB,Other Public Bodies,Enable Trust,1175.88, 23-Oct-2018
994,Revenue,CAHD,Special ISB,Other Public Bodies,Enable Trust,1175.88, 23-Oct-2018
995,Revenue,CAHD,Special ISB,Other Public Bodies,Enable Trust,1175.88, 23-Oct-2018
996,Revenue,CAHD,Special ISB,Other Public Bodies,Enable Trust,1540.83, 23-Oct-2018
997,Revenue,CAHD,Special ISB,Other Public Bodies,Enable Trust,1175.88, 23-Oct-2018
998,Revenue,CAHD,Special ISB,Other Public Bodies,Enable Trust,1540.83, 23-Oct-2018
999,Revenue,CAHD,Special ISB,Other Public Bodies,Enable Trust,1175.88, 23-Oct-2018
1000,Revenue,CAHD,Special ISB,Other Public Bodies,Enable Trust,892.04, 23-Oct-2018
1001,Revenue,CAHD,Special ISB,Other Public Bodies,Enable Trust,1540.83, 23-Oct-2018
1002,Revenue,CAHD,Special ISB,Other Public Bodies,Enable Trust,1175.88, 23-Oct-2018
1003,Revenue,CAHD,Special ISB,Other Public Bodies,Enable Trust,1540.83, 23-Oct-2018
1004,Revenue,CAHD,Special ISB,Other Public Bodies,Enable Trust,1175.88, 23-Oct-2018
1005,Revenue,CAHD,Special ISB,Other Public Bodies,Enable Trust,892.04, 23-Oct-2018
1006,Revenue,CAHD,Special ISB,Other Public Bodies,Enable Trust,1175.88, 23-Oct-2018
1007,Revenue,CAHD,Special ISB,Other Public Bodies,Enable Trust,1175.88, 23-Oct-2018
1008,Revenue,CAHD,Special ISB,Other Public Bodies,Enable Trust,1175.88, 23-Oct-2018
1009,Revenue,CAHD,Special ISB,Other Public Bodies,Enable Trust,1540.83, 23-Oct-2018
1010,Revenue,CAHD,Special ISB,Other Public Bodies,Enable Trust,892.04, 23-Oct-2018
1011,Revenue,CAHD,Special ISB,Other Public Bodies,Enable Trust,1175.88, 23-Oct-2018
1012,Revenue,CAHD,Special ISB,Other Public Bodies,Enable Trust,892.04, 23-Oct-2018
1013,Revenue,CAHD,Special ISB,Other Public Bodies,Enable Trust,1175.88, 23-Oct-2018
1014,Revenue,CAHD,Special ISB,Other Public Bodies,Enable Trust,1540.83, 23-Oct-2018
1015,Revenue,CAHD,Special ISB,Other Public Bodies,Enable Trust,892.04, 23-Oct-2018
1016,Revenue,CAHD,Special ISB,Other Public Bodies,Enable Trust,892.04, 23-Oct-2018
1017,Revenue,CAHD,Special ISB,Other Public Bodies,Enable Trust,892.04, 23-Oct-2018
1018,Revenue,CAHD,Special ISB,Other Public Bodies,Enable Trust,1540.83, 23-Oct-2018
1019,Revenue,CAHD,Special ISB,Other Public Bodies,Enable Trust,1540.83, 23-Oct-2018
1020,Revenue,CAHD,Special ISB,Other Public Bodies,Enable Trust,648.71, 23-Oct-2018
1021,Revenue,CAHD,Special ISB,Other Public Bodies,Enable Trust,1175.88, 23-Oct-2018
1022,Revenue,CAHD,Special ISB,Other Public Bodies,Enable Trust,1540.83, 23-Oct-2018
1023,Revenue,CAHD,Special ISB,Other Public Bodies,Enable Trust,1137.95, 23-Oct-2018
1024,Revenue,CAHD,Special ISB,Other Public Bodies,Enable Trust,981.04, 23-Oct-2018
1025,Revenue,CAHD,Special ISB,Other Public Bodies,Enable Trust,981.04, 23-Oct-2018
1026,Revenue,CAHD,Special ISB,Other Public Bodies,Enable Trust,1137.95, 23-Oct-2018
1027,Revenue,CAHD,Special ISB,Other Public Bodies,Enable Trust,1491.12, 23-Oct-2018
1028,Revenue,CAHD,Special ISB,Other Public Bodies,Enable Trust,863.26, 23-Oct-2018
1029,Revenue,CAHD,Special ISB,Other Public Bodies,Enable Trust,1137.95, 23-Oct-2018
1030,Revenue,CAHD,Special ISB,Other Public Bodies,Enable Trust,863.26, 23-Oct-2018
1031,Revenue,CAHD,Special ISB,Other Public Bodies,Enable Trust,863.26, 23-Oct-2018
1032,Revenue,CAHD,Schools Specific Grant Income - from OLA,Other Public Bodies,Enable Trust,2250, 23-Oct-2018
1033,Revenue,CAHD,Special ISB,Other Public Bodies,Enable Trust,1702.96, 23-Oct-2018
1034,Revenue,CAHD,Special ISB,Other Public Bodies,Enable Trust,892.04, 23-Oct-2018
1035,Revenue,CAHD,Special ISB,Other Public Bodies,Enable Trust,1175.88, 23-Oct-2018
1036,Revenue,CAHD,Special ISB,Other Public Bodies,Enable Trust,2189.53, 23-Oct-2018
1037,Revenue,CAHD,Special ISB,Other Public Bodies,Enable Trust,2189.53, 23-Oct-2018
1038,Revenue,CAHD,Special ISB,Other Public Bodies,Enable Trust,1175.88, 23-Oct-2018
1039,Revenue,CAHD,Special ISB,Other Public Bodies,Enable Trust,892.04, 23-Oct-2018
1040,Revenue,CAHD,Special ISB,Other Public Bodies,Enable Trust,892.04, 23-Oct-2018
1041,Revenue,CAHD,Special ISB,Other Public Bodies,Enable Trust,892.04, 23-Oct-2018
1042,Revenue,CAHD,Special ISB,Other Public Bodies,Enable Trust,1175.88, 23-Oct-2018
1043,Revenue,CAHD,Special ISB,Other Public Bodies,Enable Trust,1175.88, 23-Oct-2018
1044,Revenue,CAHD,Special ISB,Other Public Bodies,Enable Trust,1175.88, 23-Oct-2018
1045,Revenue,CAHD,Special ISB,Other Public Bodies,Enable Trust,892.04, 23-Oct-2018
1046,Revenue,CAHD,Special ISB,Other Public Bodies,Enable Trust,1702.96, 23-Oct-2018
1047,Revenue,CAHD,Special ISB,Other Public Bodies,Enable Trust,892.04, 23-Oct-2018
1048,Revenue,CAHD,Special ISB,Other Public Bodies,Enable Trust,1175.88, 23-Oct-2018
1049,Revenue,CAHD,Special ISB,Other Public Bodies,Enable Trust,2189.53, 23-Oct-2018
1050,Revenue,CAHD,Special ISB,Other Public Bodies,Enable Trust,2513.89, 23-Oct-2018
1051,Revenue,CAHD,Special ISB,Other Public Bodies,Enable Trust,892.04, 23-Oct-2018
1052,Revenue,CAHD,Special ISB,Other Public Bodies,Enable Trust,892.04, 23-Oct-2018
1053,Revenue,CAHD,Special ISB,Other Public Bodies,Enable Trust,1702.96, 23-Oct-2018
1054,Revenue,CAHD,Special ISB,Other Public Bodies,Enable Trust,1508.33, 23-Oct-2018
1055,Revenue,CAHD,Special ISB,Other Public Bodies,Enable Trust,1175.88, 23-Oct-2018
1056,Revenue,CAHD,Special ISB,Other Public Bodies,Enable Trust,1175.88, 23-Oct-2018
1057,Revenue,CAHD,Special ISB,Other Public Bodies,Enable Trust,1175.88, 23-Oct-2018
1058,Revenue,CAHD,Special ISB,Other Public Bodies,Enable Trust,1702.96, 23-Oct-2018
1059,Revenue,CAHD,Special ISB,Other Public Bodies,Enable Trust,1702.96, 23-Oct-2018
1060,Revenue,CAHD,Special ISB,Other Public Bodies,Enable Trust,1175.88, 23-Oct-2018
1061,Revenue,CAHD,Special ISB,Other Public Bodies,Enable Trust,1175.88, 23-Oct-2018
1062,Revenue,CAHD,Special ISB,Other Public Bodies,Enable Trust,892.04, 23-Oct-2018
1063,Revenue,CAHD,Special ISB,Other Public Bodies,Enable Trust,1175.88, 23-Oct-2018
1064,Revenue,CAHD,Special ISB,Other Public Bodies,Enable Trust,1175.88, 23-Oct-2018
1065,Revenue,CAHD,Special ISB,Other Public Bodies,Enable Trust,1175.88, 23-Oct-2018
1066,Revenue,CAHD,Special ISB,Other Public Bodies,Enable Trust,1702.96, 23-Oct-2018
1067,Revenue,CAHD,Special ISB,Other Public Bodies,Enable Trust,1702.96, 23-Oct-2018
1068,Revenue,CAHD,Special ISB,Other Public Bodies,Enable Trust,892.04, 23-Oct-2018
1069,Revenue,CAHD,Special ISB,Other Public Bodies,Enable Trust,1175.88, 23-Oct-2018
1070,Revenue,CAHD,Special ISB,Other Public Bodies,Enable Trust,1702.96, 23-Oct-2018
1071,Revenue,CAHD,Special ISB,Other Public Bodies,Enable Trust,892.04, 23-Oct-2018
1072,Revenue,CAHD,Special ISB,Other Public Bodies,Enable Trust,1175.88, 23-Oct-2018
1073,Revenue,CAHD,Special ISB,Other Public Bodies,Enable Trust,1175.88, 23-Oct-2018
1074,Revenue,CAHD,Special ISB,Other Public Bodies,Enable Trust,1175.88, 23-Oct-2018
1075,Revenue,CAHD,Special ISB,Other Public Bodies,Enable Trust,892.04, 23-Oct-2018
1076,Revenue,CAHD,Special ISB,Other Public Bodies,Enable Trust,1175.88, 23-Oct-2018
1077,Revenue,CAHD,Special ISB,Other Public Bodies,Enable Trust,892.04, 23-Oct-2018
1078,Revenue,CAHD,Special ISB,Other Public Bodies,Enable Trust,1175.88, 23-Oct-2018
1079,Revenue,CAHD,Special ISB,Other Public Bodies,Enable Trust,1175.88, 23-Oct-2018
1080,Revenue,CAHD,Special ISB,Other Public Bodies,Enable Trust,2189.53, 23-Oct-2018
1081,Revenue,CAHD,Special ISB,Other Public Bodies,Enable Trust,1702.96, 23-Oct-2018
1082,Revenue,CAHD,Special ISB,Other Public Bodies,Enable Trust,892.04, 23-Oct-2018
1083,Revenue,CAHD,Special ISB,Other Public Bodies,Enable Trust,1175.88, 23-Oct-2018
1084,Revenue,CAHD,Special ISB,Other Public Bodies,Enable Trust,892.04, 23-Oct-2018
1085,Revenue,CAHD,Special ISB,Other Public Bodies,Enable Trust,1175.88, 23-Oct-2018
1086,Revenue,CAHD,Special ISB,Other Public Bodies,Enable Trust,1175.88, 23-Oct-2018
1087,Revenue,CAHD,Special ISB,Other Public Bodies,Enable Trust,1702.96, 23-Oct-2018
1088,Revenue,CAHD,Special ISB,Other Public Bodies,Enable Trust,1702.96, 23-Oct-2018
1089,Revenue,CAHD,Special ISB,Other Public Bodies,Enable Trust,1540.83, 23-Oct-2018
1090,Revenue,CAHD,Special ISB,Other Public Bodies,Enable Trust,892.04, 23-Oct-2018
1091,Revenue,CAHD,Special ISB,Other Public Bodies,Enable Trust,1175.88, 23-Oct-2018
1092,Revenue,CAHD,Special ISB,Other Public Bodies,Enable Trust,2513.89, 23-Oct-2018
1093,Revenue,CAHD,Special ISB,Other Public Bodies,Enable Trust,1175.88, 23-Oct-2018
1094,Revenue,CAHD,Special ISB,Other Public Bodies,Enable Trust,1175.88, 23-Oct-2018
1095,Revenue,CAHD,Special ISB,Other Public Bodies,Enable Trust,892.04, 23-Oct-2018
1096,Revenue,CAHD,Special ISB,Other Public Bodies,Enable Trust,892.04, 23-Oct-2018
1097,Revenue,CAHD,Special ISB,Other Public Bodies,Enable Trust,892.04, 23-Oct-2018
1098,Revenue,CAHD,Special ISB,Other Public Bodies,Enable Trust,1175.88, 23-Oct-2018
1099,Revenue,CAHD,Special ISB,Other Public Bodies,Enable Trust,892.04, 23-Oct-2018
1100,Revenue,CAHD,Special ISB,Other Public Bodies,Enable Trust,892.04, 23-Oct-2018
1101,Revenue,CAHD,Special ISB,Other Public Bodies,Enable Trust,892.04, 23-Oct-2018
1102,Revenue,CAHD,Special ISB,Other Public Bodies,Enable Trust,1175.88, 23-Oct-2018
1103,Revenue,CAHD,Special ISB,Other Public Bodies,Enable Trust,1702.96, 23-Oct-2018
1104,Revenue,CAHD,Special ISB,Other Public Bodies,Enable Trust,2189.53, 23-Oct-2018
1105,Revenue,CAHD,Special ISB,Other Public Bodies,Enable Trust,892.04, 23-Oct-2018
1106,Revenue,CAHD,Special ISB,Other Public Bodies,Enable Trust,1175.88, 23-Oct-2018
1107,Revenue,CAHD,Special ISB,Other Public Bodies,Enable Trust,2189.53, 23-Oct-2018
1108,Revenue,CAHD,Special ISB,Other Public Bodies,Enable Trust,1702.96, 23-Oct-2018
1109,Revenue,CAHD,Special ISB,Other Public Bodies,Enable Trust,892.04, 23-Oct-2018
1110,Revenue,CAHD,Special ISB,Other Public Bodies,Enable Trust,892.04, 23-Oct-2018
1111,Revenue,CAHD,Special ISB,Other Public Bodies,Enable Trust,1175.88, 23-Oct-2018
1112,Revenue,CAHD,Special ISB,Other Public Bodies,Enable Trust,1702.96, 23-Oct-2018
1113,Revenue,CAHD,Special ISB,Other Public Bodies,Enable Trust,1702.96, 23-Oct-2018
1114,Revenue,CAHD,Special ISB,Other Public Bodies,Enable Trust,1175.88, 23-Oct-2018
1115,Revenue,CAHD,Special ISB,Other Public Bodies,Enable Trust,863.26, 23-Oct-2018
1116,Revenue,CAHD,Special ISB,Other Public Bodies,Enable Trust,847.56, 23-Oct-2018
1117,Revenue,CAHD,Schools Specific Grant Income,Other Public Bodies,Enable Trust,630, 29-Oct-2018
1118,Revenue,CAHD,Schools Specific Grant Income,Other Public Bodies,Enable Trust,630, 29-Oct-2018
1119,Revenue,CAHD,Schools Specific Grant Income,Other Public Bodies,Enable Trust,630, 29-Oct-2018
1120,Revenue,CAHD,Schools Block Growth Contingency,Other Public Bodies,Enable Trust,277894.58, 23-Oct-2018
1121,Revenue,CAHD,Schools Block Growth Contingency,Other Public Bodies,Enable Trust,16932.3, 23-Oct-2018
1122,Revenue,CAHD,Bed Purchasing - North,Permanent Residential,Eyre Court,3632, 23-Oct-2018
1123,Revenue,CAHD,South Glos Users in South Glos Homes,Permanent Nursing,Fairview Court,632.64, 23-Oct-2018
1124,Revenue,CAHD,South Glos Users in South Glos Homes,Permanent Nursing,Fairview Court,632.64, 23-Oct-2018
1125,Revenue,CAHD,South Glos Users in South Glos Homes,Permanent Nursing,Fairview Court,2530.56, 23-Oct-2018
1126,Revenue,CAHD,South Glos Users in South Glos Homes,Permanent Nursing,Fairview Court,632.64, 23-Oct-2018
1127,Revenue,CAHD,South Glos Users in South Glos Homes,Permanent Nursing,Fairview Court,3366.55, 23-Oct-2018
1128,Revenue,CAHD,South Glos Users in South Glos Homes,Permanent Nursing,Fairview Court,632.64, 23-Oct-2018
1129,Revenue,CAHD,Bed Purchasing - Southmead Hospital,Permanent Nursing,Fairview Court,5182.93, 23-Oct-2018
1130,Revenue,CAHD,Bed Purchasing - Southmead Hospital,Permanent Nursing,Fairview Court,2126.33, 23-Oct-2018
1131,Revenue,CAHD,Bed Purchasing - Southmead Hospital,Permanent Nursing,Fairview Court,1594.75, 23-Oct-2018
1132,Revenue,CAHD,Bed Purchasing - Southmead Hospital,Fees & Charges Income - General,Fairview Court,749.69, 23-Oct-2018
1133,Revenue,CAHD,Bed Purchasing - South,Permanent Nursing,Fairview Court,3464.6, 23-Oct-2018
1134,Revenue,CAHD,South Glos Users in South Glos Homes,Permanent Nursing,Fairview Court,632.64, 23-Oct-2018
1135,Revenue,CAHD,Bed Purchasing - South,Permanent Nursing,Fairview Court,3423.84, 23-Oct-2018
1136,Revenue,CAHD,South Glos Users in South Glos Homes,Permanent Nursing,Fairview Court,632.64, 23-Oct-2018
1137,Revenue,CAHD,South Glos Users in South Glos Homes,Permanent Nursing,Fairview Court,632.64, 23-Oct-2018
1138,Revenue,CAHD,Bed purchasing - Elderly S117 - South,Permanent Nursing,Fairview Court,4076, 23-Oct-2018
1139,Revenue,CAHD,South Glos Users in South Glos Homes,Permanent Nursing,Fairview Court,632.64, 23-Oct-2018
1140,Revenue,CAHD,South Glos Users in South Glos Homes,Permanent Nursing,Fairview Court,632.64, 23-Oct-2018
1141,Revenue,CAHD,Bed Purchasing - South,Permanent Nursing,Fairview Court,3303.2, 23-Oct-2018
1142,Revenue,CAHD,South Glos Users in South Glos Homes,Permanent Nursing,Fairview Court,632.64, 23-Oct-2018
1143,Revenue,CAHD,Bed Purchasing - South,Permanent Nursing,Fairview Court,3721.08, 23-Oct-2018
1144,Revenue,CAHD,South Glos Users in South Glos Homes,Permanent Nursing,Fairview Court,2779.1, 23-Oct-2018
1145,Revenue,CAHD,South Glos Users in South Glos Homes,Permanent Nursing,Fairview Court,632.64, 23-Oct-2018
1146,Revenue,CAHD,South Glos Users in South Glos Homes,Permanent Nursing,Fairview Court,4225.13, 23-Oct-2018
1147,Revenue,CAHD,South Glos Users in South Glos Homes,Permanent Nursing,Fairview Court,632.64, 23-Oct-2018
1148,Revenue,CAHD,South Glos Users in South Glos Homes,Permanent Nursing,Fairview Court,632.64, 23-Oct-2018
1149,Revenue,CAHD,South Glos Users in South Glos Homes,Permanent Nursing,Fairview Court,632.64, 23-Oct-2018
1150,Revenue,CAHD,Bed Purchasing - South,Permanent Nursing,Fairview Court,3464.6, 23-Oct-2018
1151,Revenue,CAHD,South Glos Users in South Glos Homes,Permanent Nursing,Fairview Court,632.64, 23-Oct-2018
1152,Revenue,CAHD,South Glos Users in South Glos Homes,Permanent Nursing,Fairview Court,632.64, 23-Oct-2018
1153,Revenue,CAHD,South Glos Users in South Glos Homes,Permanent Nursing,Fairview Court,632.64, 23-Oct-2018
1154,Revenue,CAHD,South Glos Users in South Glos Homes,Permanent Nursing,Fairview Court,632.64, 23-Oct-2018
1155,Revenue,CAHD,South Glos Users in South Glos Homes,Permanent Nursing,Fairview Court,632.64, 23-Oct-2018
1156,Revenue,CAHD,South Glos Users in South Glos Homes,Permanent Nursing,Fairview Court,632.64, 23-Oct-2018
1157,Revenue,CAHD,South Glos Users in South Glos Homes,Permanent Nursing,Fairview Court,2214.24, 23-Oct-2018
1158,Revenue,CAHD,South Glos Users in South Glos Homes,Permanent Nursing,Fairview Court,632.64, 23-Oct-2018
1159,Revenue,CAHD,Bed Purchasing - South,Permanent Nursing,Fairview Court,3400, 23-Oct-2018
1160,Revenue,CAHD,South Glos Users in South Glos Homes,Permanent Nursing,Fairview Court,632.64, 23-Oct-2018
1161,Revenue,CAHD,South Glos Users in South Glos Homes,Permanent Nursing,Fairview Court,632.64, 23-Oct-2018
1162,Revenue,CAHD,South Glos Users in South Glos Homes,Permanent Nursing,Fairview Court,632.64, 23-Oct-2018
1163,Revenue,CAHD,Bed Purchasing - North,Permanent Nursing,Fairview Court,3464.6, 23-Oct-2018
1164,Revenue,CAHD,South Glos Users in South Glos Homes,Permanent Nursing,Fairview Court,632.64, 23-Oct-2018
1165,Revenue,CAHD,Bed Purchasing - South,Permanent Nursing,Fairview Court,3400, 23-Oct-2018
1166,Revenue,CAHD,South Glos Users in South Glos Homes,Permanent Nursing,Fairview Court,632.64, 23-Oct-2018
1167,Revenue,CAHD,South Glos Users in South Glos Homes,Permanent Nursing,Fairview Court,2033.49, 23-Oct-2018
1168,Revenue,CAHD,South Glos Users in South Glos Homes,Permanent Nursing,Fairview Court,632.64, 23-Oct-2018
1169,Revenue,CAHD,South Glos Users in South Glos Homes,Permanent Nursing,Fairview Court,632.64, 23-Oct-2018
1170,Revenue,CAHD,Bed Purchasing - South,Permanent Nursing,Fairview Court,3057, 23-Oct-2018
1171,Revenue,CAHD,South Glos Users in South Glos Homes,Permanent Nursing,Fairview Court,632.64, 23-Oct-2018
1172,Revenue,CAHD,South Glos Users in South Glos Homes,Permanent Nursing,Fairview Court,632.64, 23-Oct-2018
1173,Revenue,CAHD,South Glos Users in South Glos Homes,Permanent Nursing,Fairview Court,3095.42, 23-Oct-2018
1174,Revenue,CAHD,South Glos Users in South Glos Homes,Permanent Nursing,Fairview Court,632.64, 23-Oct-2018
1175,Revenue,CAHD,Bed Purchasing - South,Permanent Nursing,Fairview Court,3464.6, 23-Oct-2018
1176,Revenue,CAHD,South Glos Users in South Glos Homes,Permanent Nursing,Fairview Court,632.64, 23-Oct-2018
1177,Revenue,CAHD,Bed Purchasing - South,Permanent Nursing,Fairview Court,3464.6, 23-Oct-2018
1178,Revenue,CAHD,South Glos Users in South Glos Homes,Permanent Nursing,Fairview Court,632.64, 23-Oct-2018
1179,Revenue,CAHD,South Glos Users in South Glos Homes,Permanent Nursing,Fairview Court,632.64, 23-Oct-2018
1180,Revenue,CAHD,South Glos Users in South Glos Homes,Permanent Nursing,Fairview Court,632.64, 23-Oct-2018
1181,Revenue,CAHD,Bed purchasing - Elderly S117 - South,Permanent Residential,Fairview House,2219.2, 23-Oct-2018
1182,Revenue,CAHD,Bed Purchasing - South,Permanent Residential,Fairview House,2219.2, 23-Oct-2018
1183,Revenue,CAHD,Bed Purchasing - North,Respite Planned - Residential,Fairview House,992.86, 23-Oct-2018
1184,Revenue,CAHD,Bed Purchasing - Southmead Hospital,Permanent Residential,Fairview House,3971.43, 23-Oct-2018
1185,Revenue,CAHD,Bed Purchasing - Southmead Hospital,Permanent Residential,Fairview House,2780, 23-Oct-2018
1186,Revenue,CAHD,Bed Purchasing - Central,Respite Emergency - Residential,Fairview House,3180, 23-Oct-2018
1187,Revenue,CAHD,Bed Purchasing - Central,Respite Emergency - Residential,Fairview House,3180, 23-Oct-2018
1188,Revenue,CAHD,Bed Purchasing - South,Permanent Residential,Fairview House,2219.2, 23-Oct-2018
1189,Revenue,CAHD,Bed Purchasing - South,Permanent Residential,Fairview House,2148.68, 23-Oct-2018
1190,Revenue,CAHD,Bed Purchasing - South,Permanent Residential,Fairview House,2157.48, 23-Oct-2018
1191,Revenue,CAHD,Bed Purchasing - South,Permanent Residential,Fairview House,2547.52, 23-Oct-2018
1192,Revenue,CAHD,Bed Purchasing - Southmead Hospital,Permanent Residential,Faith House,2740, 23-Oct-2018
1193,Revenue,CAHD,Bed Purchasing - Southmead Hospital,Respite Emergency - Residential,Faith House,4110, 23-Oct-2018
1194,Revenue,CAHD,Bed Purchasing - South,Permanent Residential,Faith House,2740, 23-Oct-2018
1195,Revenue,CAHD,CSC - Agency Fostering,Foster Parent Allowances,Family Fostercare Ltd,3941.34, 08-Oct-2018
1196,Revenue,CAHD,CSC - Agency Fostering,Foster Parent Allowances,Family Fostercare Ltd,508.56, 08-Oct-2018
1197,Revenue,CAHD,Post 16 High Needs Placements,Other Private Contractors,Farleigh FEC-Frome Priory,21204.85, 08-Oct-2018
1198,Revenue,CAHD,Post 16 High Needs Placements,Other Private Contractors,Farleigh FEC-Frome Priory,24293.43, 08-Oct-2018
1199,Revenue,CAHD,Post 16 High Needs Placements,Other Private Contractors,Farleigh FEC-Frome Priory,22499.38, 08-Oct-2018
1200,Revenue,CAHD,Discretionary Housing Payment,Other Supplies & Services,Farringtons Sales & Lettings,500, 30-Oct-2018
1201,Revenue,CAHD,Bed Purchasing - Southmead Hospital,Permanent Nursing,Festival House,2983.44, 23-Oct-2018
1202,Revenue,CAHD,Bed Purchasing - North,Permanent Nursing,Field House Care Home,2164.36, 23-Oct-2018
1203,Revenue,CAHD,Bed Purchasing - North,Permanent Nursing,Field House Care Home,3440, 23-Oct-2018
1204,Revenue,CAHD,South Glos Users in South Glos Homes,Permanent Nursing,Field House Care Home,632.64, 23-Oct-2018
1205,Revenue,CAHD,Bed Purchasing - North,Permanent Nursing,Field House Care Home,3440, 23-Oct-2018
1206,Revenue,CAHD,Bed Purchasing - North,Permanent Nursing,Field House Care Home,3323.84, 23-Oct-2018
1207,Revenue,CAHD,Bed Purchasing - North,Permanent Nursing,Field House Care Home,3505.36, 23-Oct-2018
1208,Revenue,CAHD,Bed Purchasing - North,Permanent Nursing,Field House Care Home,3342.32, 23-Oct-2018
1209,Revenue,CAHD,Bed Purchasing - Southmead Hospital,Respite Planned - Nursing,Field House Care Home,3342.32, 23-Oct-2018
1210,Revenue,CAHD,Bed Purchasing - North,Permanent Nursing,Field House Care Home,3342.32, 23-Oct-2018
1211,Revenue,CAHD,Bed Purchasing - North,Permanent Nursing,Field House Care Home,2164.36, 23-Oct-2018
1212,Revenue,CAHD,South Glos Users in South Glos Homes,Permanent Nursing,Field House Care Home,632.64, 23-Oct-2018
1213,Revenue,CAHD,Bed Purchasing - South,Respite Planned - Nursing,Field House Care Home,1280, 23-Oct-2018
1214,Revenue,CAHD,Bed Purchasing - South,Respite Planned - Nursing,Field House Care Home,960, 23-Oct-2018
1215,Revenue,CAHD,Bed Purchasing - North,Permanent Nursing,Field House Care Home,2164.36, 23-Oct-2018
1216,Revenue,CAHD,Bed Purchasing - North,Permanent Nursing,Field House Care Home,3423.84, 23-Oct-2018
1217,Revenue,CAHD,Bed Purchasing - North,Permanent Nursing,Field House Care Home,3423.84, 23-Oct-2018
1218,Revenue,CAHD,Bed Purchasing - Central,Permanent Residential,Fieldview,3400, 23-Oct-2018
1219,Revenue,CAHD,Bed Purchasing - North,Permanent Residential,Fieldview,2890.28, 23-Oct-2018
1220,Revenue,CAHD,Bed Purchasing - North,Permanent Residential,Fieldview,3668.4, 23-Oct-2018
1221,Revenue,CAHD,MH Purchasing - Younger,Permanent Nursing,Fieldview,5367.68, 23-Oct-2018
1222,Revenue,CAHD,Bed Purchasing - South,Permanent Residential,Fig House,2890.28, 23-Oct-2018
1223,Revenue,CAHD,Statemented Support Payments to OLAs,Other L.A.'s - General,Filton Avenue Primary School,1131.2, 24-Oct-2018
1224,Revenue,CAHD,Early Years Inclusion Fund,Other Public Bodies,First Friends (Mangotsfield),3600, 12-Oct-2018
1225,Revenue,CAHD,CSC - Agency Fostering,Foster Parent Allowances,Foster Care Associates Limited,4131.68, 08-Oct-2018
1226,Revenue,CAHD,CSC - Asylum Seekers - Unaccompanied,Foster Parent Allowances,Foster Care Associates Limited,2406.22, 08-Oct-2018
1227,Revenue,CAHD,Training Budget - Children`s Social Serv,Training Expenses,Fostering Attachments Limited,1450, 12-Oct-2018
1228,Revenue,CAHD,Home Care - Elderly - South,Other Small Contracts,Fourways Care Limited,2592.96, 18-Oct-2018
1229,Revenue,CAHD,Home Care - Elderly - North,Other Small Contracts,Fourways Care Limited,7078.08, 18-Oct-2018
1230,Revenue,CAHD,Home Care - Elderly - South,Day Care / Social Activities,Fourways Care Limited,13.14, 18-Oct-2018
1231,Revenue,CAHD,Home Care - Elderly - South,Other Small Contracts,Fourways Care Limited,2811.96, 18-Oct-2018
1232,Revenue,CAHD,Home Care - Elderly - North,Other Small Contracts,Fourways Care Limited,7165.68, 18-Oct-2018
1233,Revenue,CAHD,Home Care - Elderly - South,Other Small Contracts,Fourways Care Limited,2952.12, 18-Oct-2018
1234,Revenue,CAHD,Home Care - Elderly - North,Other Small Contracts,Fourways Care Limited,7599.3, 18-Oct-2018
1235,Revenue,CAHD,Home Care - Elderly - South,Other Small Contracts,Fourways Care Limited,2842.62, 31-Oct-2018
1236,Revenue,CAHD,Home Care - Elderly - North,Other Small Contracts,Fourways Care Limited,7551.12, 31-Oct-2018
1237,Revenue,CAHD,Home Care - Elderly - South,Other Small Contracts,Fourways Care Limited,2947.74, 31-Oct-2018
1238,Revenue,CAHD,Home Care - Elderly - North,Other Small Contracts,Fourways Care Limited,7800.78, 31-Oct-2018
1239,Revenue,CAHD,Post 16 High Needs Placements,Other Private Contractors,Foxes Academy,15425.63, 03-Oct-2018
1240,Revenue,CAHD,Supporting People Programme,Grants to Voluntary Bodies,Freeways Trust Limited,5989.85, 01-Oct-2018
1241,Revenue,CAHD,Freeways,Permanent Residential,Freeways Trust Limited,3748.6, 25-Oct-2018
1242,Revenue,CAHD,Freeways,Permanent Residential,Freeways Trust Limited,2410.8, 25-Oct-2018
1243,Revenue,CAHD,Freeways,Permanent Residential,Freeways Trust Limited,2410.8, 25-Oct-2018
1244,Revenue,CAHD,Freeways,Permanent Residential,Freeways Trust Limited,3507.76, 25-Oct-2018
1245,Revenue,CAHD,Freeways,Permanent Residential,Freeways Trust Limited,2410.8, 25-Oct-2018
1246,Revenue,CAHD,Freeways,Permanent Residential,Freeways Trust Limited,3553.44, 25-Oct-2018
1247,Revenue,CAHD,Freeways,Permanent Residential,Freeways Trust Limited,2674.68, 25-Oct-2018
1248,Revenue,CAHD,Freeways,Permanent Residential,Freeways Trust Limited,3719.68, 25-Oct-2018
1249,Revenue,CAHD,Freeways,Permanent Residential,Freeways Trust Limited,2267.4, 25-Oct-2018
1250,Revenue,CAHD,Freeways,Permanent Residential,Freeways Trust Limited,2847.12, 25-Oct-2018
1251,Revenue,CAHD,Freeways,Permanent Residential,Freeways Trust Limited,2819.8, 25-Oct-2018
1252,Revenue,CAHD,Freeways,Permanent Residential,Freeways Trust Limited,3183.32, 25-Oct-2018
1253,Revenue,CAHD,Freeways,Permanent Residential,Freeways Trust Limited,2410.8, 25-Oct-2018
1254,Revenue,CAHD,Freeways,Respite Planned - Residential,Freeways Trust Limited,1923.9, 25-Oct-2018
1255,Revenue,CAHD,Freeways,Respite Planned - Residential,Freeways Trust Limited,3165.2, 25-Oct-2018
1256,Revenue,CAHD,Freeways,Respite Planned - Residential,Freeways Trust Limited,2565.2, 25-Oct-2018
1257,Revenue,CAHD,Home Care - Elderly - North,Supported Living,Freeways Trust Ltd,825.8, 23-Oct-2018
1258,Revenue,CAHD,Bed purchasing - S28A Under 65 - South,Permanent Residential,Freeways Trust Ltd,3795.56, 23-Oct-2018
1259,Revenue,CAHD,Bed Purchasing - North,Permanent Residential,Freeways Trust Ltd,3675.2, 23-Oct-2018
1260,Revenue,CAHD,Bed Purchasing - South,Permanent Residential,Freeways Trust Ltd,3897.84, 23-Oct-2018
1261,Revenue,CAHD,Bed Purchasing - North,Permanent Residential,Freeways Trust Ltd,2943.2, 23-Oct-2018
1262,Revenue,CAHD,Bed Purchasing - South,Permanent Residential,Freeways Trust Ltd,3101.48, 23-Oct-2018
1263,Revenue,CAHD,Bed Purchasing - North,Permanent Residential,Freeways Trust Ltd,3250.6, 23-Oct-2018
1264,Revenue,CAHD,Bed Purchasing - North,Permanent Residential,Freeways Trust Ltd,3890.76, 23-Oct-2018
1265,Revenue,CAHD,18-25 Year Olds,Permanent Residential,Freeways Trust Ltd,3594.2, 23-Oct-2018
1266,Revenue,CAHD,Section 117 Placements MH Younger,Permanent Residential,Freeways Trust Ltd,3200, 23-Oct-2018
1267,Revenue,CAHD,Home Care - Elderly - South,Day Care / Social Activities,Frenchay Beckspool Building,801.44, 23-Oct-2018
1268,Revenue,CAHD,Home Care - Elderly - North,Day Care / Social Activities,Frenchay Beckspool Building,1851.36, 23-Oct-2018
1269,Revenue,CAHD,Home Care - Elderly - South,Day Care / Social Activities,Frenchay Beckspool Building,880.4, 23-Oct-2018
1270,Revenue,CAHD,Home Care - Elderly - South,Day Care / Social Activities,Frenchay Beckspool Building,625.12, 23-Oct-2018
1271,Revenue,CAHD,Bed Purchasing - North,Permanent Nursing,Frenchay Park Nursing Home,3400, 23-Oct-2018
1272,Revenue,CAHD,Bed Purchasing - North,Permanent Nursing,Frenchay Park Nursing Home,3260.8, 23-Oct-2018
1273,Revenue,CAHD,Sexual Health,Other Small Contracts,Frome Valley Medical Centre,1370.7, 09-Oct-2018
1274,Revenue,CAHD,CSC - Social Work Team - NORTH,Agency Staff (Admin/Support Staff) Pay,Frontline Staffing Ltd,1731.23, 02-Oct-2018
1275,Revenue,CAHD,CSC - Social Work Team - NORTH,Agency Staff (Admin/Support Staff) Pay,Frontline Staffing Ltd,1731.23, 09-Oct-2018
1276,Revenue,CAHD,CSC - Social Work Team - CENTRAL,Other Transport Costs,Frontline Staffing Ltd,1871.6, 11-Oct-2018
1277,Revenue,CAHD,CSC - Social Work Team - NORTH,Agency Staff (Admin/Support Staff) Pay,Frontline Staffing Ltd,1403.7, 15-Oct-2018
1278,Revenue,CAHD,CSC - Social Work Team - NORTH,Agency Staff (Admin/Support Staff) Pay,Frontline Staffing Ltd,1731.23, 22-Oct-2018
1279,Revenue,CAHD,CSC - Social Work Team - SOUTH,Agency Staff (Admin/Support Staff) Pay,Frontline Staffing Ltd,1871.6, 25-Oct-2018
1280,Revenue,CAHD,CSC - Social Work Team - SOUTH,Agency Staff (Admin/Support Staff) Pay,Frontline Staffing Ltd,1871.6, 25-Oct-2018
1281,Revenue,CAHD,CSC - Social Work Team - SOUTH,Agency Staff (Admin/Support Staff) Pay,Frontline Staffing Ltd,1333.52, 25-Oct-2018
1282,Revenue,CAHD,CSC - Social Work Team - NORTH,Agency Staff (Admin/Support Staff) Pay,Frontline Staffing Ltd,1731.23, 30-Oct-2018
1283,Revenue,CAHD,Bed Purchasing - South,Permanent Nursing,Fshc  1St Floor,2670.96, 23-Oct-2018
1284,Revenue,CAHD,South Glos Users in South Glos Homes,Permanent Nursing,Fshc  1St Floor,632.64, 23-Oct-2018
1285,Revenue,CAHD,Bed Purchasing - South,Permanent Nursing,Fshc  1St Floor,2324.64, 23-Oct-2018
1286,Revenue,CAHD,Bed Purchasing - South,Permanent Nursing,Fshc  1St Floor,2310.44, 23-Oct-2018
1287,Revenue,CAHD,South Glos Users in South Glos Homes,Permanent Nursing,Fshc  1St Floor,632.64, 23-Oct-2018
1288,Revenue,CAHD,Bed Purchasing - Southmead Hospital,Permanent Nursing,Fshc  1St Floor,2310.44, 23-Oct-2018
1289,Revenue,CAHD,South Glos Users in South Glos Homes,Permanent Nursing,Fshc  1St Floor,632.64, 23-Oct-2018
1290,Revenue,CAHD,Bed Purchasing - South,Permanent Residential,Fshc  1St Floor,2404.84, 23-Oct-2018
1291,Revenue,CAHD,Bed Purchasing - South,Permanent Nursing,Fshc  1St Floor,2560, 23-Oct-2018
1292,Revenue,CAHD,Bed Purchasing - South,Permanent Nursing,Fshc  1St Floor,3200, 23-Oct-2018
1293,Revenue,CAHD,Bed Purchasing - North,Permanent Nursing,Fshc  1St Floor,2420.57, 23-Oct-2018
1294,Revenue,CAHD,Bed Purchasing - South,Permanent Nursing,Fshc  1St Floor,11792.86, 23-Oct-2018
1295,Revenue,CAHD,South Glos Users in South Glos Homes,Permanent Nursing,Fshc  1St Floor,2869.47, 23-Oct-2018
1296,Revenue,CAHD,Bed Purchasing - South,Permanent Nursing,Fshc  1St Floor,2600, 23-Oct-2018
1297,Revenue,CAHD,South Glos Users in South Glos Homes,Permanent Nursing,Fshc  1St Floor,632.64, 23-Oct-2018
1298,Revenue,CAHD,South Glos Users in South Glos Homes,Permanent Nursing,Fshc  1St Floor,632.64, 23-Oct-2018
1299,Revenue,CAHD,Bed Purchasing - South,Respite Emergency - Residential,Fshc  1St Floor,5040, 23-Oct-2018
1300,Revenue,CAHD,South Glos Users in South Glos Homes,Permanent Nursing,Fshc  1St Floor,632.64, 23-Oct-2018
1301,Revenue,CAHD,Bed Purchasing - South,Permanent Nursing,Fshc  1St Floor,2310.44, 23-Oct-2018
1302,Revenue,CAHD,Bed Purchasing - South,Permanent Nursing,Fshc  1St Floor,2824, 23-Oct-2018
1303,Revenue,CAHD,Bed Purchasing - South,Permanent Nursing,Fshc  1St Floor,2404.84, 23-Oct-2018
1304,Revenue,CAHD,South Glos Users in South Glos Homes,Permanent Nursing,Fshc  1St Floor,632.64, 23-Oct-2018
1305,Revenue,CAHD,Bed Purchasing - South,Permanent Nursing,Fshc  1St Floor,2560, 23-Oct-2018
1306,Revenue,CAHD,South Glos Users in South Glos Homes,Permanent Nursing,Fshc  1St Floor,632.64, 23-Oct-2018
1307,Revenue,CAHD,Bed Purchasing - South,Permanent Nursing,Fshc  1St Floor,2663.2, 23-Oct-2018
1308,Revenue,CAHD,South Glos Users in South Glos Homes,Permanent Nursing,Fshc  1St Floor,632.64, 23-Oct-2018
1309,Revenue,CAHD,Bed Purchasing - North,Respite Planned - Nursing,Fshc  1St Floor,720, 23-Oct-2018
1310,Revenue,CAHD,South Glos Users in South Glos Homes,Permanent Nursing,Fshc  1St Floor,632.64, 23-Oct-2018
1311,Revenue,CAHD,South Glos Users in South Glos Homes,Permanent Nursing,Fshc  1St Floor,632.64, 23-Oct-2018
1312,Revenue,CAHD,South Glos Users in South Glos Homes,Permanent Nursing,Fshc  1St Floor,632.64, 23-Oct-2018
1313,Revenue,CAHD,South Glos Users in South Glos Homes,Permanent Nursing,Fshc  1St Floor,632.64, 23-Oct-2018
1314,Revenue,CAHD,South Glos Users in South Glos Homes,Permanent Nursing,Fshc  1St Floor,632.64, 23-Oct-2018
1315,Revenue,CAHD,Bed Purchasing - South,Permanent Nursing,Fshc  1St Floor,2800, 23-Oct-2018
1316,Revenue,CAHD,Bed Purchasing - Southmead Hospital,Permanent Nursing,Fshc  1St Floor,2324.64, 23-Oct-2018
1317,Revenue,CAHD,South Glos Users in South Glos Homes,Permanent Nursing,Fshc  1St Floor,632.64, 23-Oct-2018
1318,Revenue,CAHD,Bed Purchasing - South,Permanent Nursing,Fshc  1St Floor,2404.84, 23-Oct-2018
1319,Revenue,CAHD,South Glos Users in South Glos Homes,Permanent Nursing,Fshc  1St Floor,632.64, 23-Oct-2018
1320,Revenue,CAHD,Bed Purchasing - South,Permanent Nursing,Fshc  1St Floor,2310.44, 23-Oct-2018
1321,Revenue,CAHD,South Glos Users in South Glos Homes,Permanent Nursing,Fshc  1St Floor,632.64, 23-Oct-2018
1322,Revenue,CAHD,Bed Purchasing - South,Permanent Nursing,Fshc  1St Floor,2310.44, 23-Oct-2018
1323,Revenue,CAHD,South Glos Users in South Glos Homes,Permanent Nursing,Fshc  1St Floor,632.64, 23-Oct-2018
1324,Revenue,CAHD,Bed Purchasing - South,Permanent Nursing,Fshc  1St Floor,2310.44, 23-Oct-2018
1325,Revenue,CAHD,South Glos Users in South Glos Homes,Permanent Nursing,Fshc  1St Floor,632.64, 23-Oct-2018
1326,Revenue,CAHD,Bed Purchasing - South,Permanent Nursing,Fshc  1St Floor,3072, 23-Oct-2018
1327,Revenue,CAHD,Bed Purchasing - South,Respite Planned - Nursing,Fshc  1St Floor,1974.86, 23-Oct-2018
1328,Revenue,CAHD,Bed Purchasing - South,Permanent Nursing,Fshc  1St Floor,2324.64, 23-Oct-2018
1329,Revenue,CAHD,South Glos Users in South Glos Homes,Permanent Nursing,Fshc  1St Floor,632.64, 23-Oct-2018
1330,Revenue,CAHD,Bed Purchasing - Southmead Hospital,Permanent Nursing,Fshc  1St Floor,14537.14, 23-Oct-2018
1331,Revenue,CAHD,Bed Purchasing - South,Permanent Nursing,Fshc  1St Floor,2560, 23-Oct-2018
1332,Revenue,CAHD,South Glos Users in South Glos Homes,Permanent Nursing,Fshc  1St Floor,632.64, 23-Oct-2018
1333,Revenue,CAHD,Bed Purchasing - Southmead Hospital,Permanent Nursing,Fshc  1St Floor,6948.57, 23-Oct-2018
1334,Revenue,CAHD,Bed Purchasing - Southmead Hospital,Fees & Charges Income - General,Fshc  1St Floor,1585.36, 23-Oct-2018
1335,Revenue,CAHD,Bed Purchasing - Southmead Hospital,Fees & Charges Income - General,Fshc  1St Floor,2178.43, 23-Oct-2018
1336,Revenue,CAHD,Bed Purchasing - Southmead Hospital,Fees & Charges Income - General,Fshc  1St Floor,1752.24, 23-Oct-2018
1337,Revenue,CAHD,Bed Purchasing - South,Permanent Nursing,Fshc  1St Floor,2600, 23-Oct-2018
1338,Revenue,CAHD,South Glos Users in South Glos Homes,Permanent Nursing,Fshc  1St Floor,632.64, 23-Oct-2018
1339,Revenue,CAHD,Bed Purchasing - South,Permanent Nursing,Fshc  1St Floor,2445.6, 23-Oct-2018
1340,Revenue,CAHD,Bed Purchasing - South,Permanent Nursing,Fshc  1St Floor,3097.76, 23-Oct-2018
1341,Revenue,CAHD,South Glos Users in South Glos Homes,Permanent Nursing,Fshc  1St Floor,632.64, 23-Oct-2018
1342,Revenue,CAHD,Bed Purchasing - South,Permanent Nursing,Fshc  1St Floor,2404.84, 23-Oct-2018
1343,Revenue,CAHD,South Glos Users in South Glos Homes,Permanent Nursing,Fshc  1St Floor,632.64, 23-Oct-2018
1344,Revenue,CAHD,Bed Purchasing - South,Permanent Nursing,Fshc  1St Floor,2864.24, 23-Oct-2018
1345,Revenue,CAHD,Bed Purchasing - North,Permanent Residential,Fshc  1St Floor,2824, 23-Oct-2018
1346,Revenue,CAHD,Bed Purchasing - Southmead Hospital,Permanent Nursing,Fshc  1St Floor,2310.44, 23-Oct-2018
1347,Revenue,CAHD,South Glos Users in South Glos Homes,Permanent Nursing,Fshc  1St Floor,632.64, 23-Oct-2018
1348,Revenue,CAHD,Bed Purchasing - Southmead Hospital,Permanent Nursing,Fshc  1St Floor,2339.64, 23-Oct-2018
1349,Revenue,CAHD,South Glos Users in South Glos Homes,Permanent Nursing,Fshc  1St Floor,632.64, 23-Oct-2018
1350,Revenue,CAHD,Bed Purchasing - North,Permanent Nursing,Fshc  1St Floor,2339.64, 23-Oct-2018
1351,Revenue,CAHD,South Glos Users in South Glos Homes,Permanent Nursing,Fshc  1St Floor,632.64, 23-Oct-2018
1352,Revenue,CAHD,Bed Purchasing - Southmead Hospital,Permanent Nursing,Fshc  1St Floor,2339.64, 23-Oct-2018
1353,Revenue,CAHD,South Glos Users in South Glos Homes,Permanent Nursing,Fshc  1St Floor,632.64, 23-Oct-2018
1354,Revenue,CAHD,South Glos Users in South Glos Homes,Permanent Nursing,Fshc  1St Floor,632.64, 23-Oct-2018
1355,Revenue,CAHD,Bed Purchasing - Central,Permanent Residential,Fshc  1St Floor,3567.86, 23-Oct-2018
1356,Revenue,CAHD,Bed Purchasing - Central,Permanent Residential,Fshc  1St Floor,2700, 23-Oct-2018
1357,Revenue,CAHD,Bed Purchasing - Central,Fees & Charges Income - General,Fshc  1St Floor,710.23, 23-Oct-2018
1358,Revenue,CAHD,Bed Purchasing - Central,Permanent Residential,Fshc  1St Floor,2700, 23-Oct-2018
1359,Revenue,CAHD,Bed Purchasing - North,Permanent Nursing,Fshc  1St Floor,2310.44, 23-Oct-2018
1360,Revenue,CAHD,South Glos Users in South Glos Homes,Permanent Nursing,Fshc  1St Floor,632.64, 23-Oct-2018
1361,Revenue,CAHD,Bed Purchasing - Southmead Hospital,Permanent Residential,Fshc  1St Floor,2148.68, 23-Oct-2018
1362,Revenue,CAHD,South Glos Users in South Glos Homes,Permanent Nursing,Fshc  1St Floor,632.64, 23-Oct-2018
1363,Revenue,CAHD,South Glos Users in South Glos Homes,Permanent Nursing,Fshc  1St Floor,632.64, 23-Oct-2018
1364,Revenue,CAHD,Bed Purchasing - North,Permanent Residential,Fshc  1St Floor,2832.84, 23-Oct-2018
1365,Revenue,CAHD,Bed Purchasing - South,Permanent Residential,Fshc  1St Floor,2751.32, 23-Oct-2018
1366,Revenue,CAHD,Bed Purchasing - North,Permanent Nursing,Fshc  1St Floor,2339.64, 23-Oct-2018
1367,Revenue,CAHD,South Glos Users in South Glos Homes,Permanent Nursing,Fshc  1St Floor,632.64, 23-Oct-2018
1368,Revenue,CAHD,South Glos Users in South Glos Homes,Permanent Nursing,Fshc  1St Floor,632.64, 23-Oct-2018
1369,Revenue,CAHD,Bed Purchasing - Southmead Hospital,Permanent Nursing,Fshc  1St Floor,2311.2, 23-Oct-2018
1370,Revenue,CAHD,South Glos Users in South Glos Homes,Permanent Nursing,Fshc  1St Floor,632.64, 23-Oct-2018
1371,Revenue,CAHD,Bed Purchasing - Southmead Hospital,Permanent Nursing,Fshc  1St Floor,2310.44, 23-Oct-2018
1372,Revenue,CAHD,South Glos Users in South Glos Homes,Permanent Nursing,Fshc  1St Floor,632.64, 23-Oct-2018
1373,Revenue,CAHD,Bed Purchasing - North,Permanent Nursing,Fshc  1St Floor,2310.44, 23-Oct-2018
1374,Revenue,CAHD,South Glos Users in South Glos Homes,Permanent Nursing,Fshc  1St Floor,632.64, 23-Oct-2018
1375,Revenue,CAHD,Bed Purchasing - North,Permanent Nursing,Fshc  1St Floor,2310.44, 23-Oct-2018
1376,Revenue,CAHD,South Glos Users in South Glos Homes,Permanent Nursing,Fshc  1St Floor,632.64, 23-Oct-2018
1377,Revenue,CAHD,Bed Purchasing - Southmead Hospital,Permanent Residential,Fshc  1St Floor,2700, 23-Oct-2018
1378,Revenue,CAHD,Bed Purchasing - North,Permanent Nursing,Fshc  1St Floor,2339.64, 23-Oct-2018
1379,Revenue,CAHD,South Glos Users in South Glos Homes,Permanent Nursing,Fshc  1St Floor,632.64, 23-Oct-2018
1380,Revenue,CAHD,Bed Purchasing - North,Permanent Nursing,Fshc  1St Floor,2339.64, 23-Oct-2018
1381,Revenue,CAHD,South Glos Users in South Glos Homes,Permanent Nursing,Fshc  1St Floor,632.64, 23-Oct-2018
1382,Revenue,CAHD,Bed Purchasing - North,Permanent Nursing,Fshc  1St Floor,2310.44, 23-Oct-2018
1383,Revenue,CAHD,South Glos Users in South Glos Homes,Permanent Nursing,Fshc  1St Floor,632.64, 23-Oct-2018
1384,Revenue,CAHD,South Glos Users in South Glos Homes,Permanent Nursing,Fshc  1St Floor,632.64, 23-Oct-2018
1385,Revenue,CAHD,South Glos Users in South Glos Homes,Permanent Nursing,Fshc  1St Floor,632.64, 23-Oct-2018
1386,Revenue,CAHD,Bed Purchasing - North,Permanent Nursing,Fshc  1St Floor,9187.71, 23-Oct-2018
1387,Revenue,CAHD,South Glos Users in South Glos Homes,Permanent Nursing,Fshc  1St Floor,2598.34, 23-Oct-2018
1388,Revenue,CAHD,Bed Purchasing - North,Permanent Nursing,Fshc  1St Floor,2382, 23-Oct-2018
1389,Revenue,CAHD,Bed Purchasing - North,Fees & Charges Income - General,Fshc  1St Floor,2746.65, 23-Oct-2018
1390,Revenue,CAHD,South Glos Users in South Glos Homes,Permanent Nursing,Fshc  1St Floor,632.64, 23-Oct-2018
1391,Revenue,CAHD,Bed Purchasing - North,Fees & Charges Income - General,Fshc  1St Floor,827.68, 23-Oct-2018
1392,Revenue,CAHD,Bed Purchasing - North,Fees & Charges Income - General,Fshc  1St Floor,1691.16, 23-Oct-2018
1393,Revenue,CAHD,Bed Purchasing - North,Permanent Residential,Fshc  1St Floor,2751.32, 23-Oct-2018
1394,Revenue,CAHD,Bed Purchasing - North,Permanent Nursing,Fshc  1St Floor,2310.44, 23-Oct-2018
1395,Revenue,CAHD,South Glos Users in South Glos Homes,Permanent Nursing,Fshc  1St Floor,632.64, 23-Oct-2018
1396,Revenue,CAHD,Bed Purchasing - Central,Respite Planned - Nursing,Fshc  1St Floor,2311.2, 23-Oct-2018
1397,Revenue,CAHD,Bed Purchasing - Central,Respite Planned - Nursing,Fshc  1St Floor,1238.14, 23-Oct-2018
1398,Revenue,CAHD,South Glos Users in South Glos Homes,Permanent Nursing,Fshc  1St Floor,632.64, 23-Oct-2018
1399,Revenue,CAHD,Bed Purchasing - Southmead Hospital,Permanent Nursing,Fshc  1St Floor,2310.44, 23-Oct-2018
1400,Revenue,CAHD,South Glos Users in South Glos Homes,Permanent Nursing,Fshc  1St Floor,632.64, 23-Oct-2018
1401,Revenue,CAHD,South Glos Users in South Glos Homes,Permanent Nursing,Fshc  1St Floor,632.64, 23-Oct-2018
1402,Revenue,CAHD,Bed Purchasing - Central,Permanent Nursing,Fshc  1St Floor,3342, 23-Oct-2018
1403,Revenue,CAHD,Bed Purchasing - Central,Fees & Charges Income - General,Fshc  1St Floor,787.49, 23-Oct-2018
1404,Revenue,CAHD,South Glos Users in South Glos Homes,Permanent Nursing,Fshc  1St Floor,632.64, 23-Oct-2018
1405,Revenue,CAHD,South Glos Users in South Glos Homes,Permanent Nursing,Fshc  1St Floor,2779.1, 23-Oct-2018
1406,Revenue,CAHD,South Glos Users in South Glos Homes,Permanent Nursing,Fshc  1St Floor,632.64, 23-Oct-2018
1407,Revenue,CAHD,South Glos Users in South Glos Homes,Permanent Nursing,Fshc  1St Floor,3434.33, 23-Oct-2018
1408,Revenue,CAHD,Bed Purchasing - North,Permanent Nursing,Fshc  1St Floor,2310.44, 23-Oct-2018
1409,Revenue,CAHD,South Glos Users in South Glos Homes,Permanent Nursing,Fshc  1St Floor,632.64, 23-Oct-2018
1410,Revenue,CAHD,Bed Purchasing - Central,Permanent Residential,Fshc  1St Floor,2780, 23-Oct-2018
1411,Revenue,CAHD,South Glos Users in South Glos Homes,Permanent Nursing,Fshc  1St Floor,632.64, 23-Oct-2018
1412,Revenue,CAHD,South Glos Users in South Glos Homes,Permanent Nursing,Fshc  1St Floor,632.64, 23-Oct-2018
1413,Revenue,CAHD,Bed Purchasing - North,Permanent Nursing,Fshc  1St Floor,7225, 23-Oct-2018
1414,Revenue,CAHD,Bed Purchasing - North,Permanent Nursing,Fshc  1St Floor,2380, 23-Oct-2018
1415,Revenue,CAHD,Bed Purchasing - North,Fees & Charges Income - General,Fshc  1St Floor,1874.72, 23-Oct-2018
1416,Revenue,CAHD,South Glos Users in South Glos Homes,Permanent Nursing,Fshc  1St Floor,632.64, 23-Oct-2018
1417,Revenue,CAHD,Bed Purchasing - Central,Fees & Charges Income - General,Fshc  1St Floor,1341.54, 23-Oct-2018
1418,Revenue,CAHD,Bed Purchasing - North,Permanent Nursing,Fshc  1St Floor,2310.44, 23-Oct-2018
1419,Revenue,CAHD,South Glos Users in South Glos Homes,Permanent Nursing,Fshc  1St Floor,632.64, 23-Oct-2018
1420,Revenue,CAHD,Bed Purchasing - North,Permanent Nursing,Fshc  1St Floor,2310.44, 23-Oct-2018
1421,Revenue,CAHD,South Glos Users in South Glos Homes,Permanent Nursing,Fshc  1St Floor,632.64, 23-Oct-2018
1422,Revenue,CAHD,Bed Purchasing - North,Permanent Nursing,Fshc  1St Floor,2310.44, 23-Oct-2018
1423,Revenue,CAHD,South Glos Users in South Glos Homes,Permanent Nursing,Fshc  1St Floor,632.64, 23-Oct-2018
1424,Revenue,CAHD,Bed Purchasing - Southmead Hospital,Permanent Nursing,Fshc  1St Floor,2310.44, 23-Oct-2018
1425,Revenue,CAHD,South Glos Users in South Glos Homes,Permanent Nursing,Fshc  1St Floor,632.64, 23-Oct-2018
1426,Revenue,CAHD,Bed Purchasing - North,Permanent Nursing,Fshc  1St Floor,2380.96, 23-Oct-2018
1427,Revenue,CAHD,South Glos Users in South Glos Homes,Permanent Nursing,Fshc  1St Floor,632.64, 23-Oct-2018
1428,Revenue,CAHD,South Glos Users in South Glos Homes,Permanent Nursing,Fshc  1St Floor,632.64, 23-Oct-2018
1429,Revenue,CAHD,Bed Purchasing - North,Permanent Nursing,Fshc  1St Floor,2270.32, 23-Oct-2018
1430,Revenue,CAHD,South Glos Users in South Glos Homes,Permanent Nursing,Fshc  1St Floor,632.64, 23-Oct-2018
1431,Revenue,CAHD,Bed Purchasing - North,Permanent Nursing,Fshc  1St Floor,2380.96, 23-Oct-2018
1432,Revenue,CAHD,South Glos Users in South Glos Homes,Permanent Nursing,Fshc  1St Floor,632.64, 23-Oct-2018
1433,Revenue,CAHD,Bed Purchasing - Southmead Hospital,Permanent Nursing,Fshc  1St Floor,2427.84, 23-Oct-2018
1434,Revenue,CAHD,South Glos Users in South Glos Homes,Permanent Nursing,Fshc  1St Floor,632.64, 23-Oct-2018
1435,Revenue,CAHD,Bed Purchasing - North,Permanent Nursing,Fshc  1St Floor,2310.44, 23-Oct-2018
1436,Revenue,CAHD,South Glos Users in South Glos Homes,Permanent Nursing,Fshc  1St Floor,632.64, 23-Oct-2018
1437,Revenue,CAHD,Bed Purchasing - North,Permanent Nursing,Fshc  1St Floor,2310.44, 23-Oct-2018
1438,Revenue,CAHD,South Glos Users in South Glos Homes,Permanent Nursing,Fshc  1St Floor,632.64, 23-Oct-2018
1439,Revenue,CAHD,Bed Purchasing - Southmead Hospital,Permanent Nursing,Fshc  1St Floor,3158.92, 23-Oct-2018
1440,Revenue,CAHD,South Glos Users in South Glos Homes,Permanent Nursing,Fshc  1St Floor,632.64, 23-Oct-2018
1441,Revenue,CAHD,South Glos Users in South Glos Homes,Permanent Nursing,Fshc  1St Floor,632.64, 23-Oct-2018
1442,Revenue,CAHD,South Glos Users in South Glos Homes,Permanent Nursing,Fshc  1St Floor,632.64, 23-Oct-2018
1443,Revenue,CAHD,South Glos Users in South Glos Homes,Permanent Nursing,Fshc  1St Floor,632.64, 23-Oct-2018
1444,Revenue,CAHD,Bed Purchasing - North,Permanent Nursing,Fshc  1St Floor,2323.12, 23-Oct-2018
1445,Revenue,CAHD,South Glos Users in South Glos Homes,Permanent Nursing,Fshc  1St Floor,632.64, 23-Oct-2018
1446,Revenue,CAHD,South Glos Users in South Glos Homes,Permanent Nursing,Fshc  1St Floor,632.64, 23-Oct-2018
1447,Revenue,CAHD,South Glos Users in South Glos Homes,Permanent Nursing,Fshc  1St Floor,632.64, 23-Oct-2018
1448,Revenue,CAHD,Bed Purchasing - Central,Permanent Nursing,Fshc  1St Floor,2667.36, 23-Oct-2018
1449,Revenue,CAHD,South Glos Users in South Glos Homes,Permanent Nursing,Fshc  1St Floor,632.64, 23-Oct-2018
1450,Revenue,CAHD,Bed Purchasing - Central,Permanent Nursing,Fshc  1St Floor,2867.36, 23-Oct-2018
1451,Revenue,CAHD,Bed Purchasing - Central,Permanent Nursing,Fshc  1St Floor,921.65, 23-Oct-2018
1452,Revenue,CAHD,Bed Purchasing - Central,Permanent Nursing,Fshc  1St Floor,2927.36, 23-Oct-2018
1453,Revenue,CAHD,South Glos Users in South Glos Homes,Permanent Nursing,Fshc  1St Floor,632.64, 23-Oct-2018
1454,Revenue,CAHD,South Glos Users in South Glos Homes,Permanent Nursing,Fshc  1St Floor,632.64, 23-Oct-2018
1455,Revenue,CAHD,Bed Purchasing - North,Permanent Nursing,Fshc  1St Floor,2323.12, 23-Oct-2018
1456,Revenue,CAHD,South Glos Users in South Glos Homes,Permanent Nursing,Fshc  1St Floor,632.64, 23-Oct-2018
1457,Revenue,CAHD,South Glos Users in South Glos Homes,Permanent Nursing,Fshc  1St Floor,632.64, 23-Oct-2018
1458,Revenue,CAHD,Bed Purchasing - North,Respite Planned - Nursing,Fshc  1St Floor,2526.92, 23-Oct-2018
1459,Revenue,CAHD,South Glos Users in South Glos Homes,Permanent Nursing,Fshc  1St Floor,632.64, 23-Oct-2018
1460,Revenue,CAHD,Bed Purchasing - Southmead Hospital,Fees & Charges Income - General,Fshc  1St Floor,671.93, 23-Oct-2018
1461,Revenue,CAHD,South Glos Users in South Glos Homes,Permanent Nursing,Fshc  1St Floor,632.64, 23-Oct-2018
1462,Revenue,CAHD,South Glos Users in South Glos Homes,Permanent Nursing,Fshc  1St Floor,1084.53, 23-Oct-2018
1463,Revenue,CAHD,Bed Purchasing - Southmead Hospital,Permanent Nursing,Fshc  1St Floor,2547.52, 23-Oct-2018
1464,Revenue,CAHD,South Glos Users in South Glos Homes,Permanent Nursing,Fshc  1St Floor,632.64, 23-Oct-2018
1465,Revenue,CAHD,South Glos Users in South Glos Homes,Permanent Nursing,Fshc  1St Floor,632.64, 23-Oct-2018
1466,Revenue,CAHD,Bed Purchasing - North,Permanent Nursing,Fshc  1St Floor,2380.96, 23-Oct-2018
1467,Revenue,CAHD,South Glos Users in South Glos Homes,Permanent Nursing,Fshc  1St Floor,632.64, 23-Oct-2018
1468,Revenue,CAHD,South Glos Users in South Glos Homes,Permanent Nursing,Fshc  1St Floor,3095.42, 23-Oct-2018
1469,Revenue,CAHD,Bed Purchasing - Southmead Hospital,Permanent Nursing,Fshc  1St Floor,2967.36, 23-Oct-2018
1470,Revenue,CAHD,South Glos Users in South Glos Homes,Permanent Nursing,Fshc  1St Floor,632.64, 23-Oct-2018
1471,Revenue,CAHD,Bed Purchasing - Central,Respite Planned - Nursing,Fshc  1St Floor,1428.94, 23-Oct-2018
1472,Revenue,CAHD,South Glos Users in South Glos Homes,Permanent Nursing,Fshc  1St Floor,632.64, 23-Oct-2018
1473,Revenue,CAHD,Bed Purchasing - North,Permanent Nursing,Fshc  1St Floor,4942.43, 23-Oct-2018
1474,Revenue,CAHD,Bed Purchasing - North,Permanent Nursing,Fshc  1St Floor,2767.76, 23-Oct-2018
1475,Revenue,CAHD,South Glos Users in South Glos Homes,Permanent Nursing,Fshc  1St Floor,632.64, 23-Oct-2018
1476,Revenue,CAHD,South Glos Users in South Glos Homes,Permanent Nursing,Fshc  1St Floor,632.64, 23-Oct-2018
1477,Revenue,CAHD,Bed Purchasing - Southmead Hospital,Permanent Nursing,Fshc  1St Floor,3158.92, 23-Oct-2018
1478,Revenue,CAHD,South Glos Users in South Glos Homes,Permanent Nursing,Fshc  1St Floor,632.64, 23-Oct-2018
1479,Revenue,CAHD,South Glos Users in South Glos Homes,Permanent Nursing,Fshc  1St Floor,632.64, 23-Oct-2018
1480,Revenue,CAHD,Bed Purchasing - North,Permanent Nursing,Fshc  1St Floor,2456.52, 23-Oct-2018
1481,Revenue,CAHD,South Glos Users in South Glos Homes,Permanent Nursing,Fshc  1St Floor,632.64, 23-Oct-2018
1482,Revenue,CAHD,Bed Purchasing - South,Permanent Nursing,Fshc  1St Floor,2554.8, 23-Oct-2018
1483,Revenue,CAHD,South Glos Users in South Glos Homes,Permanent Nursing,Fshc  1St Floor,632.64, 23-Oct-2018
1484,Revenue,CAHD,Bed Purchasing - Southmead Hospital,Permanent Nursing,Fshc  1St Floor,2380.96, 23-Oct-2018
1485,Revenue,CAHD,South Glos Users in South Glos Homes,Permanent Nursing,Fshc  1St Floor,632.64, 23-Oct-2018
1486,Revenue,CAHD,South Glos Users in South Glos Homes,Permanent Nursing,Fshc  1St Floor,2688.72, 23-Oct-2018
1487,Revenue,CAHD,South Glos Users in South Glos Homes,Permanent Nursing,Fshc  1St Floor,632.64, 23-Oct-2018
1488,Revenue,CAHD,Bed Purchasing - South,Permanent Nursing,Fshc  1St Floor,2477.4, 23-Oct-2018
1489,Revenue,CAHD,South Glos Users in South Glos Homes,Permanent Nursing,Fshc  1St Floor,632.64, 23-Oct-2018
1490,Revenue,CAHD,South Glos Users in South Glos Homes,Permanent Nursing,Fshc  1St Floor,632.64, 23-Oct-2018
1491,Revenue,CAHD,Bed Purchasing - South,Permanent Nursing,Fshc  1St Floor,2547.52, 23-Oct-2018
1492,Revenue,CAHD,South Glos Users in South Glos Homes,Permanent Nursing,Fshc  1St Floor,632.64, 23-Oct-2018
1493,Revenue,CAHD,Bed Purchasing - South,Permanent Nursing,Fshc  1St Floor,2310.44, 23-Oct-2018
1494,Revenue,CAHD,South Glos Users in South Glos Homes,Permanent Nursing,Fshc  1St Floor,632.64, 23-Oct-2018
1495,Revenue,CAHD,South Glos Users in South Glos Homes,Permanent Nursing,Fshc  1St Floor,632.64, 23-Oct-2018
1496,Revenue,CAHD,Bed Purchasing - South,Permanent Nursing,Fshc  1St Floor,2445.6, 23-Oct-2018
1497,Revenue,CAHD,South Glos Users in South Glos Homes,Permanent Nursing,Fshc  1St Floor,632.64, 23-Oct-2018
1498,Revenue,CAHD,South Glos Users in South Glos Homes,Permanent Nursing,Fshc  1St Floor,632.64, 23-Oct-2018
1499,Revenue,CAHD,South Glos Users in South Glos Homes,Permanent Nursing,Fshc  1St Floor,632.64, 23-Oct-2018
1500,Revenue,CAHD,South Glos Users in South Glos Homes,Permanent Nursing,Fshc  1St Floor,632.64, 23-Oct-2018
1501,Revenue,CAHD,Bed Purchasing - Southmead Hospital,Permanent Residential,Fshc  1St Floor,2343.72, 23-Oct-2018
1502,Revenue,CAHD,South Glos Users in South Glos Homes,Permanent Nursing,Fshc  1St Floor,632.64, 23-Oct-2018
1503,Revenue,CAHD,South Glos Users in South Glos Homes,Permanent Nursing,Fshc  1St Floor,2305.13, 23-Oct-2018
1504,Revenue,CAHD,South Glos Users in South Glos Homes,Permanent Nursing,Fshc  1St Floor,632.64, 23-Oct-2018
1505,Revenue,CAHD,Bed Purchasing - Southmead Hospital,Permanent Residential,Fshc  1St Floor,1885.71, 23-Oct-2018
1506,Revenue,CAHD,Bed Purchasing - Southmead Hospital,Permanent Residential,Fshc  1St Floor,514.29, 23-Oct-2018
1507,Revenue,CAHD,Bed Purchasing - Southmead Hospital,Permanent Residential,Fshc  1St Floor,10542.86, 23-Oct-2018
1508,Revenue,CAHD,Bed Purchasing - Southmead Hospital,Fees & Charges Income - General,Fshc  1St Floor,2406.89, 23-Oct-2018
1509,Revenue,CAHD,South Glos Users in South Glos Homes,Permanent Nursing,Fshc  1St Floor,632.64, 23-Oct-2018
1510,Revenue,CAHD,Bed Purchasing - South,Permanent Residential,Fshc  1St Floor,2180.68, 23-Oct-2018
1511,Revenue,CAHD,Bed Purchasing - South,Permanent Nursing,Fshc  1St Floor,2380.96, 23-Oct-2018
1512,Revenue,CAHD,South Glos Users in South Glos Homes,Permanent Nursing,Fshc  1St Floor,632.64, 23-Oct-2018
1513,Revenue,CAHD,Bed Purchasing - Southmead Hospital,Permanent Residential,Fshc  1St Floor,868.06, 23-Oct-2018
1514,Revenue,CAHD,Bed Purchasing - South,Permanent Nursing,Fshc  1St Floor,2310.44, 23-Oct-2018
1515,Revenue,CAHD,South Glos Users in South Glos Homes,Permanent Nursing,Fshc  1St Floor,632.64, 23-Oct-2018
1516,Revenue,CAHD,Bed Purchasing - South,Permanent Nursing,Fshc  1St Floor,2683.84, 23-Oct-2018
1517,Revenue,CAHD,South Glos Users in South Glos Homes,Permanent Nursing,Fshc  1St Floor,632.64, 23-Oct-2018
1518,Revenue,CAHD,Bed Purchasing - South,Permanent Nursing,Fshc  1St Floor,2310.44, 23-Oct-2018
1519,Revenue,CAHD,South Glos Users in South Glos Homes,Permanent Nursing,Fshc  1St Floor,632.64, 23-Oct-2018
1520,Revenue,CAHD,Bed Purchasing - South,Permanent Residential,Fshc  1St Floor,2223.84, 23-Oct-2018
1521,Revenue,CAHD,Bed Purchasing - South,Permanent Nursing,Fshc  1St Floor,2233.76, 23-Oct-2018
1522,Revenue,CAHD,Bed purchasing - Elderly S117 - South,Permanent Nursing,Fshc  1St Floor,2233.76, 23-Oct-2018
1523,Revenue,CAHD,Bed Purchasing - South,Permanent Nursing,Fshc  1St Floor,3509.64, 23-Oct-2018
1524,Revenue,CAHD,Bed Purchasing - North,Permanent Nursing,Fshc  1St Floor,2233.76, 23-Oct-2018
1525,Revenue,CAHD,Bed Purchasing - North,Permanent Nursing,Fshc  1St Floor,3668.4, 23-Oct-2018
1526,Revenue,CAHD,Bed Purchasing - Southmead Hospital,Permanent Nursing,Fshc  1St Floor,3158.92, 23-Oct-2018
1527,Revenue,CAHD,Bed Purchasing - North,Permanent Nursing,Fshc  1St Floor,2233.76, 23-Oct-2018
1528,Revenue,CAHD,Bed Purchasing - South,Permanent Nursing,Fshc  1St Floor,2233.76, 23-Oct-2018
1529,Revenue,CAHD,Bed Purchasing - South,Permanent Residential,Fshc  1St Floor,3656.28, 23-Oct-2018
1530,Revenue,CAHD,Bed Purchasing - North,Respite Emergency - Residential,Fshc  1St Floor,921.47, 23-Oct-2018
1531,Revenue,CAHD,Bed Purchasing - North,Respite Emergency - Residential,Fshc  1St Floor,1340.32, 23-Oct-2018
1532,Revenue,CAHD,Bed Purchasing - North,Permanent Nursing,Fshc  1St Floor,2235.88, 23-Oct-2018
1533,Revenue,CAHD,Bed Purchasing - North,Respite Planned - Residential,Fshc  1St Floor,2292.2, 23-Oct-2018
1534,Revenue,CAHD,Bed Purchasing - North,Respite Planned - Residential,Fshc  1St Floor,1146.1, 23-Oct-2018
1535,Revenue,CAHD,Bed Purchasing - Southmead Hospital,Permanent Nursing,Fshc  1St Floor,4076, 23-Oct-2018
1536,Revenue,CAHD,Bed Purchasing - Central,Respite Emergency - Residential,Fshc  1St Floor,2292.2, 23-Oct-2018
1537,Revenue,CAHD,Bed Purchasing - North,Permanent Nursing,Fshc  1St Floor,2309.04, 23-Oct-2018
1538,Revenue,CAHD,Bed Purchasing - North,Permanent Residential,Fshc  1St Floor,1890.36, 23-Oct-2018
1539,Revenue,CAHD,Bed Purchasing - Southmead Hospital,Permanent Nursing,Fshc  1St Floor,11401.75, 23-Oct-2018
1540,Revenue,CAHD,Bed Purchasing - Southmead Hospital,Permanent Nursing,Fshc  1St Floor,2595.52, 23-Oct-2018
1541,Revenue,CAHD,CSC - Care Leavers Independent Living,Independent Living,Fusion Independence Limited,5935.43, 30-Oct-2018
1542,Revenue,CAHD,CSC - Care Leavers Independent Living,Independent Living,Fusion Independence Limited,7076.86, 30-Oct-2018
1543,Revenue,CAHD,Statemented Support Equipment,Educational Supplies & Equipment,G & S Smirthwaite Limited,649, 11-Oct-2018
1544,Revenue,CAHD,CSC - Vinney Green Secure Unit,Training Expenses,G Map Services Limited,2128.9, 09-Oct-2018
1545,Revenue,CAHD,CSC - Professional Fees Foster Carers,Respite Care,Individual,736, 19-Oct-2018
1546,Revenue,CAHD,CSC - Vinney Green Secure Unit,External Lecturers Fees,Gary Thomas Films,2200, 02-Oct-2018
1547,Revenue,CAHD,CSC - Corporate Parenting Manager,Agency Staff (Admin/Support Staff) Pay,Gatenby Sanderson Limited,2900, 02-Oct-2018
1548,Revenue,CAHD,CSC - Corporate Parenting Manager,Agency Staff (Admin/Support Staff) Pay,Gatenby Sanderson Limited,5800, 24-Oct-2018
1549,Revenue,CAHD,Alexandra Way,Fees & Charges Income - General,Gillian Shelper,818.14, 22-Oct-2018
1550,Revenue,CAHD,Bed Purchasing - North,Fees & Charges Income - General,Gladstone House,2907.43, 23-Oct-2018
1551,Revenue,CAHD,Bed Purchasing - North,Fees & Charges Income - General,Gladstone House,14072.65, 23-Oct-2018
1552,Revenue,CAHD,Bed Purchasing - North,Fees & Charges Income - General,Gladstone House,1233.8, 23-Oct-2018
1553,Revenue,CAHD,Bed Purchasing - North,Fees & Charges Income - General,Gladstone House,1273.43, 23-Oct-2018
1554,Revenue,CAHD,Bed Purchasing - South,Permanent Residential,Gladstone House,5859.2, 23-Oct-2018
1555,Revenue,CAHD,Jointly Funded H&SC Packages,Permanent Residential,Gladstone House,765.6, 23-Oct-2018
1556,Revenue,CAHD,MH Purchasing - Younger,Permanent Residential,Gladstone House,3062.4, 23-Oct-2018
1557,Revenue,CAHD,Bed Purchasing - North,Permanent Residential,Glan Y Felin,6643.96, 23-Oct-2018
1558,Revenue,CAHD,Bed Purchasing - South,Permanent Residential,Glasallt Fawr,5219.16, 23-Oct-2018
1559,Revenue,CAHD,Bed Purchasing - North,Permanent Nursing,Glebe House Nursing Home,3578.28, 23-Oct-2018
1560,Revenue,CAHD,South Glos Users in South Glos Homes,Permanent Nursing,Glebe House Nursing Home,632.64, 23-Oct-2018
1561,Revenue,CAHD,South Glos Users in South Glos Homes,Permanent Nursing,Glebe House Nursing Home,2620.94, 23-Oct-2018
1562,Revenue,CAHD,South Glos Users in South Glos Homes,Permanent Nursing,Glebe House Nursing Home,632.64, 23-Oct-2018
1563,Revenue,CAHD,South Glos Users in South Glos Homes,Permanent Nursing,Glebe House Nursing Home,632.64, 23-Oct-2018
1564,Revenue,CAHD,Bed Purchasing - North,Permanent Nursing,Glebe House Nursing Home,3789.28, 23-Oct-2018
1565,Revenue,CAHD,South Glos Users in South Glos Homes,Permanent Nursing,Glebe House Nursing Home,632.64, 23-Oct-2018
1566,Revenue,CAHD,South Glos Users in South Glos Homes,Permanent Nursing,Glebe House Nursing Home,632.64, 23-Oct-2018
1567,Revenue,CAHD,South Glos Users in South Glos Homes,Permanent Nursing,Glebe House Nursing Home,632.64, 23-Oct-2018
1568,Revenue,CAHD,South Glos Users in South Glos Homes,Permanent Nursing,Glebe House Nursing Home,632.64, 23-Oct-2018
1569,Revenue,CAHD,Bed Purchasing - North,Permanent Residential,Glebe House Nursing Home,3696.32, 23-Oct-2018
1570,Revenue,CAHD,Bed Purchasing - North,Permanent Residential,Glebe House Nursing Home,3744, 23-Oct-2018
1571,Revenue,CAHD,South Glos Users in South Glos Homes,Permanent Nursing,Glebe House Nursing Home,632.64, 23-Oct-2018
1572,Revenue,CAHD,South Glos Users in South Glos Homes,Permanent Nursing,Glebe House Nursing Home,632.64, 23-Oct-2018
1573,Revenue,CAHD,Bed Purchasing - North,Fees & Charges Income - General,Glebe House Nursing Home,17932.94, 23-Oct-2018
1574,Revenue,CAHD,Bed Purchasing - North,Permanent Nursing,Glebe House Nursing Home,3953.72, 23-Oct-2018
1575,Revenue,CAHD,Bed Purchasing - North,Fees & Charges Income - General,Glebe House Nursing Home,3222.73, 23-Oct-2018
1576,Revenue,CAHD,South Glos Users in South Glos Homes,Permanent Nursing,Glebe House Nursing Home,632.64, 23-Oct-2018
1577,Revenue,CAHD,Bed Purchasing - North,Permanent Nursing,Glebe House Nursing Home,25699.18, 23-Oct-2018
1578,Revenue,CAHD,Bed Purchasing - North,Permanent Nursing,Glebe House Nursing Home,692.86, 23-Oct-2018
1579,Revenue,CAHD,South Glos Users in South Glos Homes,Permanent Nursing,Glebe House Nursing Home,632.64, 23-Oct-2018
1580,Revenue,CAHD,South Glos Users in South Glos Homes,Permanent Nursing,Glebe House Nursing Home,632.64, 23-Oct-2018
1581,Revenue,CAHD,Bed Purchasing - North,Permanent Nursing,Glebe House Nursing Home,3867.36, 23-Oct-2018
1582,Revenue,CAHD,South Glos Users in South Glos Homes,Permanent Nursing,Glebe House Nursing Home,632.64, 23-Oct-2018
1583,Revenue,CAHD,Bed Purchasing - Southmead Hospital,Respite Planned - Residential,Glebe House Nursing Home,3645, 23-Oct-2018
1584,Revenue,CAHD,Bed Purchasing - Southmead Hospital,Respite Planned - Residential,Glebe House Nursing Home,2025, 23-Oct-2018
1585,Revenue,CAHD,South Glos Users in South Glos Homes,Permanent Nursing,Glebe House Nursing Home,1965.7, 23-Oct-2018
1586,Revenue,CAHD,South Glos Users in South Glos Homes,Permanent Nursing,Glebe House Nursing Home,632.64, 23-Oct-2018
1587,Revenue,CAHD,Bed Purchasing - Southmead Hospital,Permanent Nursing,Glebe House Nursing Home,6214.29, 23-Oct-2018
1588,Revenue,CAHD,South Glos Users in South Glos Homes,Permanent Nursing,Glebe House Nursing Home,632.64, 23-Oct-2018
1589,Revenue,CAHD,Bed Purchasing - North,Permanent Nursing,Glebe House Nursing Home,3420, 23-Oct-2018
1590,Revenue,CAHD,South Glos Users in South Glos Homes,Permanent Nursing,Glebe House Nursing Home,632.64, 23-Oct-2018
1591,Revenue,CAHD,Bed Purchasing - Southmead Hospital,Permanent Nursing,Glenview,3224, 23-Oct-2018
1592,Revenue,CAHD,Bed Purchasing - South,Permanent Nursing,Glenview,3900, 23-Oct-2018
1593,Revenue,CAHD,Bed Purchasing - South,Permanent Residential,Goldcare House,4625.52, 23-Oct-2018
1594,Revenue,CAHD,Bed Purchasing - Southmead Hospital,Permanent Residential,Gordena Care Home,3925.68, 23-Oct-2018
1595,Revenue,CAHD,Bed Purchasing - South,Permanent Residential,Gordena Care Home,2635.96, 23-Oct-2018
1596,Revenue,CAHD,Bed Purchasing - South,Permanent Residential,Gordena Care Home,3752.8, 23-Oct-2018
1597,Revenue,CAHD,Bed Purchasing - South,Permanent Residential,Gordena Care Home,3764.24, 23-Oct-2018
1598,Revenue,CAHD,Bed Purchasing - South,Permanent Residential,Gordena Care Limited,4918.6, 23-Oct-2018
1599,Revenue,CAHD,Bed purchasing - S28A Under 65 - South,Permanent Residential,Gordena Care Limited,4783.6, 23-Oct-2018
1600,Revenue,CAHD,Bed Purchasing - North,Permanent Residential,Gordena Care Limited,4985.6, 23-Oct-2018
1601,Revenue,CAHD,South Glos Users in South Glos Homes,Permanent Nursing,Gracefields Nursing Home,632.64, 23-Oct-2018
1602,Revenue,CAHD,South Glos Users in South Glos Homes,Permanent Nursing,Gracefields Nursing Home,632.64, 23-Oct-2018
1603,Revenue,CAHD,Bed Purchasing - South,Permanent Nursing,Gracefields Nursing Home,3707.36, 23-Oct-2018
1604,Revenue,CAHD,South Glos Users in South Glos Homes,Permanent Nursing,Gracefields Nursing Home,632.64, 23-Oct-2018
1605,Revenue,CAHD,South Glos Users in South Glos Homes,Permanent Nursing,Gracefields Nursing Home,632.64, 23-Oct-2018
1606,Revenue,CAHD,Bed Purchasing - South,Permanent Nursing,Gracefields Nursing Home,3566.52, 23-Oct-2018
1607,Revenue,CAHD,South Glos Users in South Glos Homes,Permanent Nursing,Gracefields Nursing Home,632.64, 23-Oct-2018
1608,Revenue,CAHD,South Glos Users in South Glos Homes,Permanent Nursing,Gracefields Nursing Home,632.64, 23-Oct-2018
1609,Revenue,CAHD,Bed purchasing - Elderly S117 - South,Permanent Nursing,Gracefields Nursing Home,2492.16, 23-Oct-2018
1610,Revenue,CAHD,South Glos Users in South Glos Homes,Permanent Nursing,Gracefields Nursing Home,632.64, 23-Oct-2018
1611,Revenue,CAHD,Bed Purchasing - South,Permanent Nursing,Gracefields Nursing Home,3668.4, 23-Oct-2018
1612,Revenue,CAHD,South Glos Users in South Glos Homes,Permanent Nursing,Gracefields Nursing Home,632.64, 23-Oct-2018
1613,Revenue,CAHD,Bed Purchasing - South,Permanent Nursing,Gracefields Nursing Home,3153.52, 23-Oct-2018
1614,Revenue,CAHD,South Glos Users in South Glos Homes,Permanent Nursing,Gracefields Nursing Home,632.64, 23-Oct-2018
1615,Revenue,CAHD,South Glos Users in South Glos Homes,Permanent Nursing,Gracefields Nursing Home,632.64, 23-Oct-2018
1616,Revenue,CAHD,Bed Purchasing - South,Permanent Nursing,Gracefields Nursing Home,3464.6, 23-Oct-2018
1617,Revenue,CAHD,South Glos Users in South Glos Homes,Permanent Nursing,Gracefields Nursing Home,632.64, 23-Oct-2018
1618,Revenue,CAHD,Bed Purchasing - South,Permanent Nursing,Gracefields Nursing Home,3464.6, 23-Oct-2018
1619,Revenue,CAHD,South Glos Users in South Glos Homes,Permanent Nursing,Gracefields Nursing Home,632.64, 23-Oct-2018
1620,Revenue,CAHD,South Glos Users in South Glos Homes,Permanent Nursing,Gracefields Nursing Home,632.64, 23-Oct-2018
1621,Revenue,CAHD,South Glos Users in South Glos Homes,Permanent Nursing,Gracefields Nursing Home,632.64, 23-Oct-2018
1622,Revenue,CAHD,Bed Purchasing - Southmead Hospital,Permanent Nursing,Gracefields Nursing Home,3567.36, 23-Oct-2018
1623,Revenue,CAHD,South Glos Users in South Glos Homes,Permanent Nursing,Gracefields Nursing Home,1739.76, 23-Oct-2018
1624,Revenue,CAHD,South Glos Users in South Glos Homes,Permanent Nursing,Gracefields Nursing Home,632.64, 23-Oct-2018
1625,Revenue,CAHD,South Glos Users in South Glos Homes,Permanent Nursing,Gracefields Nursing Home,632.64, 23-Oct-2018
1626,Revenue,CAHD,Bed Purchasing - South,Permanent Nursing,Gracefields Nursing Home,3567.36, 23-Oct-2018
1627,Revenue,CAHD,South Glos Users in South Glos Homes,Permanent Nursing,Gracefields Nursing Home,632.64, 23-Oct-2018
1628,Revenue,CAHD,South Glos Users in South Glos Homes,Permanent Nursing,Gracefields Nursing Home,632.64, 23-Oct-2018
1629,Revenue,CAHD,South Glos Users in South Glos Homes,Permanent Nursing,Gracefields Nursing Home,4292.91, 23-Oct-2018
1630,Revenue,CAHD,Bed Purchasing - South,Permanent Nursing,Gracefields Nursing Home,3566.52, 23-Oct-2018
1631,Revenue,CAHD,South Glos Users in South Glos Homes,Permanent Nursing,Gracefields Nursing Home,632.64, 23-Oct-2018
1632,Revenue,CAHD,Bed Purchasing - South,Permanent Nursing,Gracefields Nursing Home,3487.36, 23-Oct-2018
1633,Revenue,CAHD,South Glos Users in South Glos Homes,Permanent Nursing,Gracefields Nursing Home,632.64, 23-Oct-2018
1634,Revenue,CAHD,Bed Purchasing - South,Permanent Nursing,Gracefields Nursing Home,3129.76, 23-Oct-2018
1635,Revenue,CAHD,South Glos Users in South Glos Homes,Permanent Nursing,Gracefields Nursing Home,632.64, 23-Oct-2018
1636,Revenue,CAHD,South Glos Users in South Glos Homes,Permanent Nursing,Gracefields Nursing Home,632.64, 23-Oct-2018
1637,Revenue,CAHD,South Glos Users in South Glos Homes,Permanent Nursing,Gracefields Nursing Home,632.64, 23-Oct-2018
1638,Revenue,CAHD,South Glos Users in South Glos Homes,Permanent Nursing,Gracefields Nursing Home,632.64, 23-Oct-2018
1639,Revenue,CAHD,Bed Purchasing - South,Permanent Nursing,Gracefields Nursing Home,3153.52, 23-Oct-2018
1640,Revenue,CAHD,South Glos Users in South Glos Homes,Permanent Nursing,Gracefields Nursing Home,632.64, 23-Oct-2018
1641,Revenue,CAHD,Bed Purchasing - South,Permanent Nursing,Gracefields Nursing Home,3026.56, 23-Oct-2018
1642,Revenue,CAHD,South Glos Users in South Glos Homes,Permanent Nursing,Gracefields Nursing Home,632.64, 23-Oct-2018
1643,Revenue,CAHD,South Glos Users in South Glos Homes,Permanent Nursing,Gracefields Nursing Home,632.64, 23-Oct-2018
1644,Revenue,CAHD,South Glos Users in South Glos Homes,Permanent Nursing,Gracefields Nursing Home,632.64, 23-Oct-2018
1645,Revenue,CAHD,South Glos Users in South Glos Homes,Permanent Nursing,Gracefields Nursing Home,632.64, 23-Oct-2018
1646,Revenue,CAHD,South Glos Users in South Glos Homes,Permanent Nursing,Gracefields Nursing Home,4292.91, 23-Oct-2018
1647,Revenue,CAHD,South Glos Users in South Glos Homes,Permanent Nursing,Gracefields Nursing Home,632.64, 23-Oct-2018
1648,Revenue,CAHD,South Glos Users in South Glos Homes,Permanent Nursing,Gracefields Nursing Home,8084.75, 23-Oct-2018
1649,Revenue,CAHD,South Glos Users in South Glos Homes,Permanent Nursing,Gracefields Nursing Home,4292.91, 23-Oct-2018
1650,Revenue,CAHD,South Glos Users in South Glos Homes,Permanent Nursing,Gracefields Nursing Home,3750.65, 23-Oct-2018
1651,Revenue,CAHD,South Glos Users in South Glos Homes,Permanent Nursing,Gracefields Nursing Home,632.64, 23-Oct-2018
1652,Revenue,CAHD,South Glos Users in South Glos Homes,Permanent Nursing,Gracefields Nursing Home,632.64, 23-Oct-2018
1653,Revenue,CAHD,South Glos Users in South Glos Homes,Permanent Nursing,Gracefields Nursing Home,632.64, 23-Oct-2018
1654,Revenue,CAHD,South Glos Users in South Glos Homes,Permanent Nursing,Gracefields Nursing Home,3276.17, 23-Oct-2018
1655,Revenue,CAHD,South Glos Users in South Glos Homes,Permanent Nursing,Gracefields Nursing Home,632.64, 23-Oct-2018
1656,Revenue,CAHD,Bed Purchasing - South,Permanent Nursing,Gracefields Nursing Home,4292.91, 23-Oct-2018
1657,Revenue,CAHD,Bed Purchasing - South,Permanent Nursing,Gracefields Nursing Home,632.64, 23-Oct-2018
1658,Revenue,CAHD,South Glos Users in South Glos Homes,Permanent Nursing,Gracefields Nursing Home,858.58, 23-Oct-2018
1659,Revenue,CAHD,South Glos Users in South Glos Homes,Permanent Nursing,Gracefields Nursing Home,2056.08, 23-Oct-2018
1660,Revenue,CAHD,South Glos Users in South Glos Homes,Permanent Nursing,Gracefields Nursing Home,3569.9, 23-Oct-2018
1661,Revenue,CAHD,South Glos Users in South Glos Homes,Permanent Nursing,Gracefields Nursing Home,632.64, 23-Oct-2018
1662,Revenue,CAHD,Bed Purchasing - South,Permanent Nursing,Gracefields Nursing Home,3400, 23-Oct-2018
1663,Revenue,CAHD,South Glos Users in South Glos Homes,Permanent Nursing,Gracefields Nursing Home,632.64, 23-Oct-2018
1664,Revenue,CAHD,Bed Purchasing - South,Permanent Nursing,Gracefields Nursing Home,10702.08, 23-Oct-2018
1665,Revenue,CAHD,Bed Purchasing - South,Permanent Nursing,Gracefields Nursing Home,3567.36, 23-Oct-2018
1666,Revenue,CAHD,Bed Purchasing - South,Fees & Charges Income - General,Gracefields Nursing Home,1267.68, 23-Oct-2018
1667,Revenue,CAHD,Bed Purchasing - South,Fees & Charges Income - General,Gracefields Nursing Home,589.6, 23-Oct-2018
1668,Revenue,CAHD,Bed Purchasing - South,Permanent Nursing,Gracefields Nursing Home,2492.16, 23-Oct-2018
1669,Revenue,CAHD,South Glos Users in South Glos Homes,Permanent Nursing,Gracefields Nursing Home,632.64, 23-Oct-2018
1670,Revenue,CAHD,Bed Purchasing - South,Permanent Nursing,Gracefields Nursing Home,3464.6, 23-Oct-2018
1671,Revenue,CAHD,South Glos Users in South Glos Homes,Permanent Nursing,Gracefields Nursing Home,632.64, 23-Oct-2018
1672,Revenue,CAHD,South Glos Users in South Glos Homes,Permanent Nursing,Gracefields Nursing Home,3569.9, 23-Oct-2018
1673,Revenue,CAHD,South Glos Users in South Glos Homes,Permanent Nursing,Gracefields Nursing Home,632.64, 23-Oct-2018
1674,Revenue,CAHD,South Glos Users in South Glos Homes,Permanent Nursing,Gracefields Nursing Home,632.64, 23-Oct-2018
1675,Revenue,CAHD,Bed Purchasing - South,Permanent Nursing,Gracefields Nursing Home,3567.36, 23-Oct-2018
1676,Revenue,CAHD,South Glos Users in South Glos Homes,Permanent Nursing,Gracefields Nursing Home,632.64, 23-Oct-2018
1677,Revenue,CAHD,Bed Purchasing - South,Permanent Nursing,Gracefields Nursing Home,3336.2, 23-Oct-2018
1678,Revenue,CAHD,South Glos Users in South Glos Homes,Permanent Nursing,Gracefields Nursing Home,632.64, 23-Oct-2018
1679,Revenue,CAHD,CSC - Residential Placements,Permanent Residential,Greenfields Adolecent Development Limited,22248.57, 29-Oct-2018
1680,Revenue,CAHD,CSC - Residential Placements,Permanent Residential,Greenfields Adolecent Development Limited,26527.14, 29-Oct-2018
1681,Revenue,CAHD,CSC - Residential Placements,Permanent Residential,Greenfields Adolecent Development Limited,25671.43, 29-Oct-2018
1682,Revenue,CAHD,CSC - Residential Placements,Permanent Residential,Greenfields Adolecent Development Limited,26527.14, 29-Oct-2018
1683,Revenue,CAHD,CSC - Residential Placements,Permanent Residential,Greenfields Adolecent Development Limited,26527.14, 29-Oct-2018
1684,Revenue,CAHD,CSC - Residential Placements,Permanent Residential,Greenfields Adolecent Development Limited,1426.69, 17-Oct-2018
1685,Revenue,CAHD,CSC - Residential Placements,Permanent Residential,Greenfields Adolecent Development Limited,25671.43, 30-Oct-2018
1686,Revenue,CAHD,Academy Resource Base Funding,Other Public Bodies,Greenshaw Learning Trust T/A Yate Academy,1013.74, 23-Oct-2018
1687,Revenue,CAHD,Academy Resource Base Funding,Other Public Bodies,Greenshaw Learning Trust T/A Yate Academy,1013.74, 23-Oct-2018
1688,Revenue,CAHD,Academy Resource Base Funding,Other Public Bodies,Greenshaw Learning Trust T/A Yate Academy,1540.83, 23-Oct-2018
1689,Revenue,CAHD,Academy Resource Base Funding,Other Public Bodies,Greenshaw Learning Trust T/A Yate Academy,1175.88, 23-Oct-2018
1690,Revenue,CAHD,Academy Resource Base Funding,Other Public Bodies,Greenshaw Learning Trust T/A Yate Academy,648.71, 23-Oct-2018
1691,Revenue,CAHD,Academy Resource Base Funding,Other Public Bodies,Greenshaw Learning Trust T/A Yate Academy,1702.96, 23-Oct-2018
1692,Revenue,CAHD,Academy Resource Base Funding,Other Public Bodies,Greenshaw Learning Trust T/A Yate Academy,1540.83, 23-Oct-2018
1693,Revenue,CAHD,Statemented Support Academies,Schools Funding,Greenshaw Learning Trust T/A Yate Academy,694.91, 24-Oct-2018
1694,Revenue,CAHD,Statemented Support Academies,Schools Funding,Greenshaw Learning Trust T/A Yate Academy,1213.74, 24-Oct-2018
1695,Revenue,CAHD,Statemented Support Academies,Schools Funding,Greenshaw Learning Trust T/A Yate Academy,848.2, 24-Oct-2018
1696,Revenue,CAHD,Statemented Support Academies,Schools Funding,Greenshaw Learning Trust T/A Yate Academy,1461.37, 24-Oct-2018
1697,Revenue,CAHD,Statemented Support Academies,Schools Funding,Greenshaw Learning Trust T/A Yate Academy,1461.37, 24-Oct-2018
1698,Revenue,CAHD,Statemented Support Academies,Schools Funding,Greenshaw Learning Trust T/A Yate Academy,1213.74, 24-Oct-2018
1699,Revenue,CAHD,Statemented Support Academies,Schools Funding,Greenshaw Learning Trust T/A Yate Academy,1213.74, 24-Oct-2018
1700,Revenue,CAHD,Statemented Support Academies,Schools Funding,Greenshaw Learning Trust T/A Yate Academy,977.91, 24-Oct-2018
1701,Revenue,CAHD,Statemented Support Academies,Schools Funding,Greenshaw Learning Trust T/A Yate Academy,942.53, 24-Oct-2018
1702,Revenue,CAHD,Statemented Support Academies,Schools Funding,Greenshaw Learning Trust T/A Yate Academy,883.58, 24-Oct-2018
1703,Revenue,CAHD,Statemented Support Academies,Schools Funding,Greenshaw Learning Trust T/A Yate Academy,966.12, 24-Oct-2018
1704,Revenue,CAHD,Statemented Support Academies,Schools Funding,Greenshaw Learning Trust T/A Yate Academy,765.66, 24-Oct-2018
1705,Revenue,CAHD,Statemented Support Academies,Schools Funding,Greenshaw Learning Trust T/A Yate Academy,694.91, 24-Oct-2018
1706,Revenue,CAHD,Bed Purchasing - North,Permanent Residential,Greensleeves,2075.4, 23-Oct-2018
1707,Revenue,CAHD,CSC - Legal Fees,Legal Fees,Gregg Latchams Ltd,750, 23-Oct-2018
1708,Revenue,CAHD,Bed Purchasing - South,Permanent Residential,Gwendoline House,2613.96, 23-Oct-2018
1709,Revenue,CAHD,Bed Purchasing - South,Permanent Residential,Gwendoline House,606.31, 23-Oct-2018
1710,Revenue,CAHD,Bed Purchasing - Central,Respite Planned - Residential,Gwendoline House,2285.71, 23-Oct-2018
1711,Revenue,CAHD,Bed Purchasing - South,Permanent Residential,Gwendoline House,2415.44, 23-Oct-2018
1712,Revenue,CAHD,Bed Purchasing - Southmead Hospital,Fees & Charges Income - General,Gwendoline House,516.12, 23-Oct-2018
1713,Revenue,CAHD,Supporting People Programme,Grants to Voluntary Bodies,Habinteg Housing Association,678, 01-Oct-2018
1714,Revenue,CAHD,Early Years Inclusion Fund,Other Public Bodies,Halley Nursery Frenchay T/A The Students Union,1541.67, 03-Oct-2018
1715,Revenue,CAHD,Social Lettings Agency,Fees - General,Individual,13.13, 26-Oct-2018
1716,Revenue,CAHD,Social Lettings Agency,Other Supplies & Services,Individual,577.72, 26-Oct-2018
1717,Revenue,CAHD,CSC - Residential Placements,Permanent Residential,Hampshire County Council,31000, 03-Oct-2018
1718,Revenue,CAHD,CSC - Residential Placements,Permanent Residential,Hampshire County Council,30000, 31-Oct-2018
1719,Revenue,CAHD,Community Promoting Independence Team,Other Supplies & Services,Hands Free Computing Ltd,956, 26-Oct-2018
1720,Revenue,CAHD,EARLY YEARS DISABILITY  ACCES FUND,Preventative Assistance,Hanham Toddlers Pre School,615, 29-Oct-2018
1721,Revenue,CAHD,Supporting People Programme,Grants to Voluntary Bodies,Hanover Housing Association,1015, 01-Oct-2018
1722,Revenue,CAHD,Bed Purchasing - North,Permanent Nursing,Hazelwood Gardens Nursing Home,2658.04, 23-Oct-2018
1723,Revenue,CAHD,Bed Purchasing - North,Permanent Nursing,Hazelwood Gardens Nursing Home,2288.56, 23-Oct-2018
1724,Revenue,CAHD,Bed Purchasing - Southmead Hospital,Permanent Residential,Hc-One Ltd,2181, 23-Oct-2018
1725,Revenue,CAHD,Bed Purchasing - North,Permanent Nursing,Hc-One Ltd,2816.28, 23-Oct-2018
1726,Revenue,CAHD,Bed Purchasing - North,Permanent Nursing,Hc-One Ltd,2156.56, 23-Oct-2018
1727,Revenue,CAHD,Bed Purchasing - Central,Permanent Residential,Hc-One Ltd,2224.52, 23-Oct-2018
1728,Revenue,CAHD,Bed Purchasing - Central,Permanent Residential,Hc-One Ltd,1350.6, 23-Oct-2018
1729,Revenue,CAHD,Bed Purchasing - Central,Respite Planned - Residential,Hc-One Ltd,2313.72, 23-Oct-2018
1730,Revenue,CAHD,Bed Purchasing - Central,Permanent Nursing,Hc-One Ltd,2267.32, 23-Oct-2018
1731,Revenue,CAHD,Bed Purchasing - North,Permanent Nursing,Hc-One Ltd,2171.08, 23-Oct-2018
1732,Revenue,CAHD,Bed Purchasing - Central,Permanent Residential,Hc-One Ltd,2224.52, 23-Oct-2018
1733,Revenue,CAHD,Bed Purchasing - Central,Permanent Residential,Hc-One Ltd,2224.52, 23-Oct-2018
1734,Revenue,CAHD,Bed Purchasing - Southmead Hospital,Permanent Nursing,Hc-One Ltd,2609.44, 23-Oct-2018
1735,Revenue,CAHD,Bed Purchasing - North,Permanent Nursing,Head Office,2412.88, 23-Oct-2018
1736,Revenue,CAHD,Home Care - Elderly - North,Day Care / Social Activities,Head Office,1040.55, 23-Oct-2018
1737,Revenue,CAHD,Home Care - Elderly - North,Day Care / Social Activities,Head Office,563.52, 23-Oct-2018
1738,Revenue,CAHD,Home Care - Elderly - North,Day Care / Social Activities,Head Office,845.28, 23-Oct-2018
1739,Revenue,CAHD,CSC - Agency Fostering,Permanent Residential,Headway Adolescent Resources Limited,13600, 17-Oct-2018
1740,Revenue,CAHD,Home Care - Elderly - South,Day Care / Social Activities,Headway Bristol,165.3, 18-Oct-2018
1741,Revenue,CAHD,Home Care - Elderly - South,Other Small Contracts,Headway Bristol,66.12, 18-Oct-2018
1742,Revenue,CAHD,Home Care - Elderly - North,Day Care / Social Activities,Headway Bristol,506.92, 18-Oct-2018
1743,Revenue,CAHD,Home Care - Elderly - North,Other Small Contracts,Headway Bristol,192.85, 18-Oct-2018
1744,Revenue,CAHD,Younger MH non-res purchasing,Day Care / Social Activities,Headway Bristol,44.08, 18-Oct-2018
1745,Revenue,CAHD,Home Care - Elderly - South,Day Care / Social Activities,Headway Bristol,198.36, 08-Oct-2018
1746,Revenue,CAHD,Home Care - Elderly - South,Other Small Contracts,Headway Bristol,132.24, 08-Oct-2018
1747,Revenue,CAHD,Home Care - Elderly - North,Day Care / Social Activities,Headway Bristol,705.28, 08-Oct-2018
1748,Revenue,CAHD,Home Care - Elderly - North,Other Small Contracts,Headway Bristol,462.84, 08-Oct-2018
1749,Revenue,CAHD,Younger MH non-res purchasing,Day Care / Social Activities,Headway Bristol,88.16, 08-Oct-2018
1750,Revenue,CAHD,Home Care - Elderly - South,Day Care / Social Activities,Headway Bristol,330.6, 22-Oct-2018
1751,Revenue,CAHD,Home Care - Elderly - South,Other Small Contracts,Headway Bristol,132.24, 22-Oct-2018
1752,Revenue,CAHD,Home Care - Elderly - North,Day Care / Social Activities,Headway Bristol,815.48, 22-Oct-2018
1753,Revenue,CAHD,Home Care - Elderly - North,Other Small Contracts,Headway Bristol,396.72, 22-Oct-2018
1754,Revenue,CAHD,Younger MH non-res purchasing,Day Care / Social Activities,Headway Bristol,88.16, 22-Oct-2018
1755,Revenue,CAHD,Home Care - Elderly - South,Day Care / Social Activities,Headway Bristol,330.6, 29-Oct-2018
1756,Revenue,CAHD,Home Care - Elderly - South,Other Small Contracts,Headway Bristol,264.48, 29-Oct-2018
1757,Revenue,CAHD,Home Care - Elderly - North,Day Care / Social Activities,Headway Bristol,859.56, 29-Oct-2018
1758,Revenue,CAHD,Home Care - Elderly - North,Other Small Contracts,Headway Bristol,330.6, 29-Oct-2018
1759,Revenue,CAHD,Younger MH non-res purchasing,Day Care / Social Activities,Headway Bristol,88.16, 29-Oct-2018
1760,Revenue,CAHD,Homecare - Central,Other Small Contracts,Helping Hands Homecare,118.82, 12-Oct-2018
1761,Revenue,CAHD,Home Care - Elderly - South,Other Small Contracts,Helping Hands Homecare,671.79, 12-Oct-2018
1762,Revenue,CAHD,Home Care - Elderly - North,Other Small Contracts,Helping Hands Homecare,3136.75, 12-Oct-2018
1763,Revenue,CAHD,Homecare - Central,Other Small Contracts,Helping Hands Homecare,123.39, 26-Oct-2018
1764,Revenue,CAHD,Home Care - Elderly - South,Other Small Contracts,Helping Hands Homecare,461.57, 26-Oct-2018
1765,Revenue,CAHD,Home Care - Elderly - North,Other Small Contracts,Helping Hands Homecare,2286.72, 26-Oct-2018
1766,Revenue,CAHD,Homecare - Central,Other Small Contracts,Helping Hands Homecare,118.82, 26-Oct-2018
1767,Revenue,CAHD,Home Care - Elderly - South,Other Small Contracts,Helping Hands Homecare,607.81, 26-Oct-2018
1768,Revenue,CAHD,Home Care - Elderly - North,Other Small Contracts,Helping Hands Homecare,2814.17, 26-Oct-2018
1769,Revenue,CAHD,CSC - Special Guardianship Orders,Legal Fees,Henriques Griffiths Solicitors,885.4, 25-Oct-2018
1770,Revenue,CAHD,S117 Placements PCT,Permanent Residential,Hesley Hall,19258.12, 23-Oct-2018
1771,Revenue,CAHD,Bed Purchasing - Central,Permanent Residential,High Border Lodge,2092, 23-Oct-2018
1772,Revenue,CAHD,Bed Purchasing - North,Permanent Residential,High Border Lodge,2039.72, 23-Oct-2018
1773,Revenue,CAHD,CSC - Corporate Parenting,Other Supplies & Services,High Street Vouchers Ltd T/A Park Retail Ltd,809, 24-Oct-2018
1774,Revenue,CAHD,Home Care - Elderly - North,Supported Living,Hillcairnie House,4857.56, 23-Oct-2018
1775,Revenue,CAHD,Home Care - Elderly - South,Supported Living,Hillcairnie House,4195.52, 23-Oct-2018
1776,Revenue,CAHD,Home Care - Elderly - South,Supported Living,Hillcairnie House,2517.76, 23-Oct-2018
1777,Revenue,CAHD,Home Care - Elderly - North,Supported Living,Hillcairnie House,2517.76, 23-Oct-2018
1778,Revenue,CAHD,Home Care - Elderly - South,Supported Living,Hillcairnie House,3895.84, 23-Oct-2018
1779,Revenue,CAHD,Home Care - Elderly - South,Supported Living,Hillcairnie House,2517.76, 23-Oct-2018
1780,Revenue,CAHD,CSC - Residential Placements,Permanent Residential,Hillcrest Children`s Services Ltd,19200, 26-Oct-2018
1781,Revenue,CAHD,18-25 Year Olds,Permanent Residential,Hilltop Residential Home,8603.72, 23-Oct-2018
1782,Revenue,CAHD,Jointly Funded H&SC Packages,Permanent Residential,Hilltop Residential Home,5463.12, 23-Oct-2018
1783,Revenue,CAHD,Discretionary Housing Payment,Other Supplies & Services,Individual,1488, 12-Oct-2018
1784,Revenue,CAHD,Bed Purchasing - North,Permanent Residential,Holly Tree Cottage,8331.28, 23-Oct-2018
1785,Revenue,CAHD,Jointly Funded H&SC Packages,Permanent Residential,Holly Tree Cottage,2517.28, 23-Oct-2018
1786,Revenue,CAHD,Bed Purchasing - Southmead Hospital,Permanent Nursing,Holly Villa,2102.68, 23-Oct-2018
1787,Revenue,CAHD,Supported Living - South,Adults - Family Support,Holmleigh Care Home Ltd,1548.75, 26-Oct-2018
1788,Revenue,CAHD,Bed Purchasing - North,Permanent Residential,Holmleigh Care Homes Ltd,4666.12, 23-Oct-2018
1789,Revenue,CAHD,Bed Purchasing - Central,Permanent Residential,Holmleigh Care Homes Ltd,14595.04, 23-Oct-2018
1790,Revenue,CAHD,Jointly Funded H&SC Packages,Permanent Residential,Holmleigh Care Homes Ltd,7922.86, 23-Oct-2018
1791,Revenue,CAHD,Bed Purchasing - Central,Permanent Residential,Holmleigh Care Homes Ltd,8694.92, 23-Oct-2018
1792,Revenue,CAHD,Jointly Funded H&SC Packages,Permanent Residential,Holmleigh Care Homes Ltd,4720, 23-Oct-2018
1793,Revenue,CAHD,Bed Purchasing - South,Permanent Residential,Holmleigh Care Homes Ltd,4457.24, 23-Oct-2018
1794,Revenue,CAHD,Jointly Funded H&SC Packages,Permanent Residential,Holmleigh Care Homes Ltd,1276.96, 23-Oct-2018
1795,Revenue,CAHD,Home Care - Elderly - North,Supported Living,Home Farm Trust Ltd  5-6 Brook Office Pa,2111.48, 23-Oct-2018
1796,Revenue,CAHD,Home Care - Elderly - South,Supported Living,Home Farm Trust Ltd  5-6 Brook Office Pa,4151.6, 23-Oct-2018
1797,Revenue,CAHD,18-25 Year Olds,Permanent Residential,Home From Home Care Ltd,11822.76, 23-Oct-2018
1798,Revenue,CAHD,Discretionary Housing Payment,Other Supplies & Services,Individual,2704, 17-Oct-2018
1799,Revenue,CAHD,Home Care - Elderly - North,Day Care / Social Activities,Housing & Care 21,1173.9, 16-Oct-2018
1800,Revenue,CAHD,Home Care - Elderly - North,Day Care / Social Activities,Housing & Care 21,1173.9, 16-Oct-2018
1801,Revenue,CAHD,Home Care - Elderly - North,Day Care / Social Activities,Housing & Care 21,1173.9, 16-Oct-2018
1802,Revenue,CAHD,Home Care - Elderly - North,Day Care / Social Activities,Housing & Care 21,1173.9, 16-Oct-2018
1803,Revenue,CAHD,Home Care - Elderly - North,Day Care / Social Activities,Housing & Care 21,649.83, 16-Oct-2018
1804,Revenue,CAHD,Supporting People Programme,Grants to Voluntary Bodies,Housing 21,975, 01-Oct-2018
1805,Revenue,CAHD,Supporting People Programme,Grants to Voluntary Bodies,Housing 21,643, 01-Oct-2018
1806,Revenue,CAHD,Extra Care Housing,Private & Voluntary Home Care,Housing 21,37678.33, 15-Oct-2018
1807,Revenue,CAHD,Extra Care Housing,Private & Voluntary Home Care,Housing 21,34872.5, 05-Oct-2018
1808,Revenue,CAHD,Hospital Tuition,Other Private Contractors,Huntercombe Hospital Maidenhead,2145, 23-Oct-2018
1809,Revenue,CAHD,Hospital Tuition,Other Private Contractors,Huntercombe Hospital Maidenhead,1980, 23-Oct-2018
1810,Revenue,CAHD,Hospital Tuition,Other Private Contractors,Huntercombe Hospital Maidenhead,825, 23-Oct-2018
1811,Revenue,CAHD,Bed Purchasing - South,Permanent Nursing,Hydon Hill,6286.84, 23-Oct-2018
1812,Revenue,CAHD,CSC - Corporate Parenting,Computer Services,IAP UK Limited,3960.75, 31-Oct-2018
1813,Revenue,CAHD,Independent Special Placements - Pre 16,Other Private Contractors,Immanuel Christian School,1326.13, 22-Oct-2018
1814,Revenue,CAHD,Schools Specific Grant Income,Other Private Contractors,Immanuel Christian School,1725, 23-Oct-2018
1815,Revenue,CAHD,SEN High Needs - Not at School Base,Other Private Contractors,Impact Mentoring,450, 01-Oct-2018
1816,Revenue,CAHD,18-25 Year Olds,Day Care / Social Activities,Impact Mentoring,2000, 12-Oct-2018
1817,Revenue,CAHD,18-25 Year Olds,Day Care / Social Activities,Impact Mentoring,1750, 16-Oct-2018
1818,Revenue,CAHD,Social Lettings Agency,Fees - General,Individual,12.22, 11-Oct-2018
1819,Revenue,CAHD,Social Lettings Agency,Other Supplies & Services,Individual,690.32, 11-Oct-2018
1820,Revenue,CAHD,CSC - Age Related Allowances,Adults - Family Support,Individual,871.43, 05-Oct-2018
1821,Revenue,CAHD,CSC - Professional Fees Foster Carers,Special Fostering Scheme,Individual,708.43, 12-Oct-2018
1822,Revenue,CAHD,Tenancy Start Up Scheme,Other Supplies & Services,Individual,1487.68, 09-Oct-2018
1823,Revenue,CAHD,Social Lettings Agency,Fees - General,Individual,7.9, 01-Oct-2018
1824,Revenue,CAHD,Social Lettings Agency,Other Supplies & Services,Individual,609.24, 01-Oct-2018
1825,Revenue,CAHD,Tobacco Control,Drugs & Medical Supplies,jhoots,598.84, 10-Oct-2018
1826,Revenue,CAHD,ASSIST - Health Promotion in Schools,Other Supplies & Services,Jigsaw PSHE Ltd,500, 18-Oct-2018
1827,Revenue,CAHD,CSC - Ofsted Work,Consultants Fees,Jo Hope,1150, 16-Oct-2018
1828,Revenue,CAHD,Training - Adult Services,Training Expenses,Individual,792, 10-Oct-2018
1829,Revenue,CAHD,Social Lettings Agency,Fees - General,Individual,12.93, 16-Oct-2018
1830,Revenue,CAHD,Social Lettings Agency,Other Supplies & Services,Individual,730.35, 16-Oct-2018
1831,Revenue,CAHD,Training - Adult Services,Training Expenses,Individual,640, 18-Oct-2018
1832,Revenue,CAHD,Bed Purchasing - South,Permanent Residential,Jonen House,4226.52, 23-Oct-2018
1833,Revenue,CAHD,Tobacco Control,Drugs & Medical Supplies,JRW Billing,1396.51, 10-Oct-2018
1834,Revenue,CAHD,Drug and Alcohol Programme,Other Small Contracts,JRW Billing,1425, 15-Oct-2018
1835,Revenue,CAHD,Virtual School for Looked After Children,Consultants Fees,Judith Mee Education,2800, 09-Oct-2018
1836,Revenue,CAHD,Post 16 High Needs Placements,Other Private Contractors,Julian & Shani Payne T/A Peopleton Brook Farm,1968, 15-Oct-2018
1837,Revenue,CAHD,Early Years Inclusion Fund,Other Public Bodies,Julie Dean,1600, 30-Oct-2018
1838,Revenue,CAHD,Bed Purchasing - Elderly S117- North,Permanent Residential,Kahala Court,2853.2, 23-Oct-2018
1839,Revenue,CAHD,CSC - Adoption Support Fund,Post Adoption,Individual,577.5, 04-Oct-2018
1840,Revenue,CAHD,CSC - Adoption Support Fund,Post Adoption,Individual,792, 04-Oct-2018
1841,Revenue,CAHD,CSC - Adoption Support Fund,Post Adoption,Individual,848, 04-Oct-2018
1842,Revenue,CAHD,CSC - Adoption Support Fund,Post Adoption,Individual,612, 04-Oct-2018
1843,Revenue,CAHD,Statemented Support Payments to OLAs,Other L.A.'s - General,Katharine Lady Berkeley School,529.83, 24-Oct-2018
1844,Revenue,CAHD,Statemented Support Payments to OLAs,Other L.A.'s - General,Katharine Lady Berkeley School,647.74, 24-Oct-2018
1845,Revenue,CAHD,Statemented Support Payments to OLAs,Other L.A.'s - General,Katharine Lady Berkeley School,624.16, 24-Oct-2018
1846,Revenue,CAHD,CSC - Ofsted Work,Consultants Fees,Kathy O`Mahoney,5740.5, 17-Oct-2018
1847,Revenue,CAHD,CSC - Ofsted Work,Consultants Fees,Kathy O`Mahoney,4497.2, 29-Oct-2018
1848,Revenue,CAHD,CSC - Adoption Support Fund,Post Adoption,Individual,550.5, 08-Oct-2018
1849,Revenue,CAHD,CSC - Adoption Support Fund,Post Adoption,Individual,550.5, 08-Oct-2018
1850,Revenue,CAHD,Tobacco Control,Other Small Contracts,Kennedy Way Surgery,580, 10-Oct-2018
1851,Revenue,CAHD,Home Care - Elderly - South,Other Small Contracts,Kensington Community Care,1873.7, 02-Oct-2018
1852,Revenue,CAHD,Home Care - Elderly - North,Other Small Contracts,Kensington Community Care,1352.72, 02-Oct-2018
1853,Revenue,CAHD,Homecare - Central,Other Small Contracts,Kensington Community Care,155.38, 02-Oct-2018
1854,Revenue,CAHD,Home Care - Elderly - South,Other Small Contracts,Kensington Community Care,1864.56, 02-Oct-2018
1855,Revenue,CAHD,Home Care - Elderly - North,Other Small Contracts,Kensington Community Care,1538.49, 02-Oct-2018
1856,Revenue,CAHD,Home Care - Elderly - South,Other Small Contracts,Kensington Community Care,1773.16, 18-Oct-2018
1857,Revenue,CAHD,Home Care - Elderly - North,Other Small Contracts,Kensington Community Care,1672.62, 18-Oct-2018
1858,Revenue,CAHD,Home Care - Elderly - South,Other Small Contracts,Kensington Community Care,1805.15, 18-Oct-2018
1859,Revenue,CAHD,Home Care - Elderly - North,Other Small Contracts,Kensington Community Care,1654.34, 18-Oct-2018
1860,Revenue,CAHD,Home Care - Elderly - South,Other Small Contracts,Kensington Community Care,1599.5, 22-Oct-2018
1861,Revenue,CAHD,Home Care - Elderly - North,Other Small Contracts,Kensington Community Care,1617.78, 22-Oct-2018
1862,Revenue,CAHD,Home Care - Elderly - South,Other Small Contracts,Kensington Community Care,1220.19, 22-Oct-2018
1863,Revenue,CAHD,Home Care - Elderly - North,Other Small Contracts,Kensington Community Care,1334.44, 22-Oct-2018
1864,Revenue,CAHD,Home Care - Elderly - South,Other Small Contracts,Kensington Community Care,1508.1, 31-Oct-2018
1865,Revenue,CAHD,Home Care - Elderly - North,Other Small Contracts,Kensington Community Care,1270.46, 31-Oct-2018
1866,Revenue,CAHD,Bed Purchasing - South,Permanent Residential,Kenver House Residential Home,2291.68, 23-Oct-2018
1867,Revenue,CAHD,Bed Purchasing - South,Permanent Residential,Kenver House Residential Home,2294.84, 23-Oct-2018
1868,Revenue,CAHD,Bed Purchasing - South,Permanent Residential,Kenver House Residential Home,2509.88, 23-Oct-2018
1869,Revenue,CAHD,Bed Purchasing - South,Permanent Residential,Kenver House Residential Home,2663.2, 23-Oct-2018
1870,Revenue,CAHD,Bed Purchasing - South,Permanent Residential,Kenver House Residential Home,2509.88, 23-Oct-2018
1871,Revenue,CAHD,Bed Purchasing - North,Permanent Residential,Kenver House Residential Home,2934.72, 23-Oct-2018
